Workbook

Sheet Sumário
A1: Caderno de Informação
A2: da Saúde Suplementar
A3: beneficiários, operadoras e planos
A5: Perfil do setor
A6: Beneficiários
A7: Tabela 1 - Beneficiários de planos privados de saúde por cobertura assistencial do plano (Brasil - dezembro/2000 - setembro/2024)
A8: Gráfico 1 - Beneficiários de planos privados de saúde por cobertura assistencial do plano (Brasil - dezembro/2000 - setembro/2024)
A9: Tabela 2 - Beneficiários de planos privados de saúde por tipo de contratação do plano, segundo cobertura assistencial do plano (Brasil - setembro/2023 - setembro/2024)
A10: Tabela 3 - Taxa de variação do número de beneficiários de planos privados de saúde por tipo de contratação do plano, segundo cobertura assistencial do plano (Brasil - setembro/2023 - setembro/2024)
A11: Gráfico 2 - Taxa de crescimento anual do número de beneficiários de planos de saúde, por cobertura assistencial (Brasil - setembro/2019 - setembro/2024)
A12: Gráfico 3 - Beneficiários de planos de assistência médica por modalidade da operadora (Brasil - setembro/2019 - setembro/2024)
A13: Gráfico 4 - Número-índice de beneficiários em planos individuais de assistência médica, segundo a modalidade da operadora (Brasil - setembro/2019 - setembro/2024)
A14: Gráfico 5 - Taxa de cobertura dos planos de assistência médica, por localização (Brasil - dezembro/2004 - setembro/2024)
A15: Tabela 4 - Taxa de cobertura por cobertura assistencial do plano e localização, segundo Grandes Regiões e Unidades da Federação (Brasil - setembro/2024)
A16: Gráfico 6 - Distribuição percentual dos beneficiários de planos privados de saúde, por tipo de contratação, segundo cobertura assistencial do plano (Brasil - setembro/2024)
A17: Gráfico 7 - Taxa de variação trimestral do número de beneficiários em planos de assistência médica por tipo de contratação do plano (Brasil - setembro/2018 - setembro/2024)
A18: Gráfico 8 - Taxa de variação trimestral do número de beneficiários em planos exclusivamente odontológicos por tipo de contratação do plano (Brasil - setembro/2018 - setembro/2024)
A19: Tabela 5 - Beneficiários de planos privados de assistência médica, por época de contratação do plano e sexo, segundo tipo de contratação do plano e faixas etárias (Brasil - setembro/2024)
A20: Tabela 6 - Beneficiários de planos privados exclusivamente odontológicos por época de contratação do plano e sexo, segundo tipo de contratação do plano e faixas etárias (Brasil - setembro/2024)
A21: Gráfico 9 - Taxa de rotatividade dos beneficiários de planos de assistência médica, por tipo de contratação do plano, segundo modalidade da operadora (Brasil - setembro/2024)
A23: Operadoras e planos
A24: Gráfico 10 - Operadoras de planos privados de saúde em atividade (Brasil - dezembro/1999 - setembro/2024)
A25: Tabela 7 - Resumo do registro de operadoras (Brasil - setembro/2024)
A26: Gráfico 11 - Distribuição dos beneficiários de planos privados de assistência médica entre as operadoras, segundo cobertura assistencial do plano (Brasil - setembro/2024)
A27: Gráfico 12 - Distribuição dos beneficiários de planos privados exclusivamente odontológicos entre as operadoras, segundo cobertura assistencial do plano (Brasil - setembro/2024)
A28: Tabela 8 - Planos privados de assistência médica, por tipo de contratação, segundo época de contratação e abrangência geográfica (Brasil - setembro/2024)
A29: Tabela 9 - Planos privados de assistência médica, com beneficiários, por época de contratação, segundo número de beneficiários (Brasil - setembro/2024)
A30: Tabela 10 - Receitas e despesas, por modalidade das operadoras, por tipo, segundo a modalidade da operadora
A31: Gráfico 13 - Taxa de sinistralidade das operadoras médico-hospitalares, por modalidade da operadora (Brasil - 2022-2024)
A32: Gráfico 14 - Taxa de sinistralidade das operadoras exclusivamente odontológicas, por modalidade da operadora (Brasil - 2022-2024)
A33: Gráfico 15 - Índice combinado saúde das operadoras médico-hospitalares, por modalidade da operadora (Brasil - 2022-2024)
A34: Gráfico 16 - Índice combinado saúde das operadoras exclusivamente odontológicas, por modalidade da operadora (Brasil - 2022-2024)
A36: Rede de serviços de saúde
A37: Tabela 11 - Estabelecimentos de saúde por atendimento a planos privados de saúde, segundo tipo (Brasil - setembro/2024)
A38: Tabela 12 - Estabelecimentos de saúde por tipo de convênio, segundo tipo de atendimento (Brasil - setembro/2024)
A39: Tabela 13 - Leitos para internação, por vínculo ao SUS, segundo localização (Brasil - setembro/2024)
A41: Demandas dos consumidores e fiscalização
A42: Gráfico 17 - Demandas dos consumidores, por classificação do atendimento (Brasil - janeiro-setembro/2010 - janeiro-setembro/2024)
A43: Tabela 14 - Reclamações por 100.000 beneficiários de planos privados de saúde, segundo Unidades da Federação (Brasil - janeiro-setembro/2024)
A44: Gráfico 18 - Distribuição percentual de reclamações por tema da demanda (Brasil - janeiro-setembro/2023 e janeiro-setembro/2024)
A45: Gráfico 19 - Distribuição percentual de demandas NIP, por natureza da demanda (Brasil - janeiro-setembro/2023 e janeiro-setembro/2024)
A46: Gráfico 20 - Distribuição percentual de demandas NIP assistenciais, por subtema da demanda (Brasil - janeiro-setembro/2023 e janeiro-setembro/2024)
A47: Gráfico 21 - Demandas NIP assistenciais e Índice de Resolutividade (Brasil - 2009-2023)
A49: Indicadores econômico-financeiros
A50: Gráfico 22 - Variação do PIB acumulado no ano em relação ao mesmo período do ano anterior e do número de beneficiários de planos novos (Brasil - 3º trimestre/2020-3º trimestre/2024)
A51: Gráfico 23 - Variação anual de beneficiários em planos de assistência médica e de empregos formais (Brasil - 2006-2024)
A52: Tabela 15 - Índices de preços selecionados (Brasil - setembro/2023-setembro/2024)
A53: Tabela 16 - Índices de preços - Expectativas de mercado

Sheet tab 1
A4: Tabela 1 - Beneficiários de planos privados de saúde por cobertura assistencial do plano (Brasil - dezembro/2000 - setembro/2024)
A7: Data | B7: Assistência médica com ou sem odontologia | C7: Exclusivamente odontológico
A8: dez/00 | B8: 30966522 | C8: 2603001
A9: dez/01 | B9: 31420006 | C9: 3062681
A10: dez/02 | B10: 31513309 | C10: 3677782
A11: dez/03 | B11: 32074667 | C11: 4325568
A12: dez/04 | B12: 33840716 | C12: 5312915
A13: dez/05 | B13: 35441349 | C13: 6204404
A14: dez/06 | B14: 37248388 | C14: 7349643
A15: dez/07 | B15: 39316313 | C15: 9164386
A16: dez/08 | B16: 41468019 | C16: 11061362
A17: dez/09 | B17: 42561398 | C17: 13253744
A18: dez/10 | B18: 44937350 | C18: 14514074
A19: dez/11 | B19: 46025814 | C19: 16669935
A20: dez/12 | B20: 47846092 | C20: 18538837
A21: dez/13 | B21: 49491826 | C21: 19561930
A22: dez/14 | B22: 50531748 | C22: 20081836
A23: dez/15 | B23: 49279085 | C23: 20780720
A24: dez/16 | B24: 47685266 | C24: 21181491
A25: dez/17 | B25: 47144909 | C25: 22271134
A26: dez/18 | B26: 47122155 | C26: 24033193
A27: dez/19 | B27: 47077981 | C27: 25337342
A28: dez/20 | B28: 47471426 | C28: 25904915
A29: dez/21 | B29: 48463550 | C29: 27599599
A30: dez/22 | B30: 50070624 | C30: 30033927
A31: dez/23 | B31: 50803576 | C31: 32400620
A32: set/24 | B32: 51427892 | C32: 34018400
A33: Fonte: SIB/ANS/MS - 11/2024
A34: Caderno de Informação da Saúde Suplementar - dezembro/2024
A35: Notas: 1. O termo "beneficiário" refere-se a vínculos aos planos de saúde, podendo incluir vários vínculos para um mesmo indivíduo.
A36: 2. Dados preliminares, sujeitos a revisão.
A40: Gráfico 1 - Beneficiários de planos privados de saúde por cobertura assistencial do plano (Brasil - dezembro/2000-setembro/2024)
A62: =A33 -> Fonte: SIB/ANS/MS - 11/2024
A63: =A34 -> Caderno de Informação da Saúde Suplementar - dezembro/2024
A64: Notas: 1. O termo "beneficiário" refere-se a vínculos aos planos de saúde, podendo incluir vários vínculos para um mesmo indivíduo.
A65: 2. Dados preliminares, sujeitos a revisão.

Sheet tab 2
A4: Tabela 2 - Beneficiários de planos privados de saúde por tipo de contratação do plano, segundo cobertura assistencial do plano (Brasil - junho/2023 - setembro/2024)
A7: Cobertura assistencial do plano | B7: Total | C7: Coletivo | G7: Individual | H7: Não informado
C8: Total | D8: Empresarial | E8: Por adesão | F8: Não identificado
A9: Assistência médica com ou sem odontologia
A10: 2023-09-01 | B10: 50653165 | C10: 41808951 | D10: 35604841 | E10: 6203882 | F10: 228 | G10: 8805059 | H10: 39155
A11: 2023-12-01 | B11: 50803576 | C11: 41988185 | D11: 35789683 | E11: 6198275 | F11: 227 | G11: 8776639 | H11: 38752
A12: 2024-03-01 | B12: 50845197 | C12: 42062080 | D12: 35930041 | E12: 6131812 | F12: 227 | G12: 8744844 | H12: 38273
A13: 2024-06-01 | B13: 51058389 | C13: 42242417 | D13: 36277019 | E13: 5965171 | F13: 227 | G13: 8776653 | H13: 39319
A14: 2024-09-01 | B14: 51427892 | C14: 42640286 | D14: 36728545 | E14: 5911515 | F14: 226 | G14: 8749518 | H14: 38088
A16: Exclusivamente odontológico
A17: 2023-09-01 | B17: 31627531 | C17: 25983772 | D17: 22983405 | E17: 2999053 | F17: 1314 | G17: 5640533 | H17: 3226
A18: 2023-12-01 | B18: 32400620 | C18: 26434254 | D18: 23416207 | E18: 3016762 | F18: 1285 | G18: 5963168 | H18: 3198
A19: 2024-03-01 | B19: 32566382 | C19: 26335931 | D19: 23299414 | E19: 3035238 | F19: 1279 | G19: 6227262 | H19: 3189
A20: 2024-06-01 | B20: 33392577 | C20: 26561649 | D20: 23625560 | E20: 2934810 | F20: 1279 | G20: 6827782 | H20: 3146
A21: 2024-09-01 | B21: 34018400 | C21: 27155858 | D21: 24186643 | E21: 2967937 | F21: 1278 | G21: 6859407 | H21: 3135
A22: Fonte:SIB/ANS/MS - 11/2024
A23: Caderno de Informação da Saúde Suplementar - dezembro/2024
A24: Notas: 1. O termo "beneficiário" refere-se a vínculos aos planos de saúde, podendo incluir vários vínculos para um mesmo indivíduo.
A25: 2. Dados preliminares, sujeitos a revisão.

Sheet tab 3
A4: Tabela 3 - Taxa de variação do número de beneficiários de planos privados de saúde por tipo de contratação do plano, segundo cobertura assistencial do plano (Brasil - setembro/2023-setembro/2024)
A7: Cobertura assistencial do plano | B7: Total | C7: Coletivo | G7: Individual | H7: Não informado
C8: Total | D8: Empresarial | E8: Por adesão | F8: Não identificado
A9: Assistência médica com ou sem odontologia
A10: Em um ano (set/23- set/24) | B10: =+'tab 2'!B14/'tab 2'!B10*100-100 -> 1.529474022 | C10: =+'tab 2'!C14/'tab 2'!C10*100-100 -> 1.988413916 | D10: =+'tab 2'!D14/'tab 2'!D10*100-100 -> 3.156042741 | E10: =+'tab 2'!E14/'tab 2'!E10*100-100 -> -4.71264605 | F10: =+'tab 2'!F14/'tab 2'!F10*100-100 -> -0.8771929825 | G10: =+'tab 2'!G14/'tab 2'!G10*100-100 -> -0.6307850975 | H10: =+'tab 2'!H14/'tab 2'!H10*100-100 -> -2.725067041
A11: No ano (mar/24 - set/24) | B11: =+'tab 2'!B14/'tab 2'!B12*100-100 -> 1.146017784 | C11: ='tab 2'!C14/'tab 2'!C12*100-100 -> 1.37464909 | D11: ='tab 2'!D14/'tab 2'!D12*100-100 -> 2.222385441 | E11: =('tab 2'!E14/'tab 2'!E12)*100-100 -> -3.592690056 | F11: =('tab 2'!F14/'tab 2'!F12)*100-100 -> -0.4405286344 | G11: =('tab 2'!G14/'tab 2'!G12)*100-100 -> 0.05344863785 | H11: =('tab 2'!H14/'tab 2'!H12)*100-100 -> -0.4833694772
A12: No trimestre (jun/24 -set/14) | B12: =+'tab 2'!B14/'tab 2'!B13*100-100 -> 0.7236871496 | C12: =+'tab 2'!C14/'tab 2'!C13*100-100 -> 0.9418708215 | D12: =+'tab 2'!D14/'tab 2'!D13*100-100 -> 1.244661255 | E12: =+'tab 2'!E14/'tab 2'!E13*100-100 -> -0.8994880449 | F12: =+'tab 2'!F14/'tab 2'!F13*100-100 -> -0.4405286344 | G12: =+'tab 2'!G14/'tab 2'!G13*100-100 -> -0.3091725285 | H12: =+'tab 2'!H14/'tab 2'!H13*100-100 -> -3.130801902
A14: Exclusivamente odontológico
A15: Em um ano (set/23- set/24) | B15: =+'tab 2'!B21/'tab 2'!B17*100-100 -> 7.559455084 | C15: =+'tab 2'!C21/'tab 2'!C17*100-100 -> 4.510838534 | D15: =+'tab 2'!D21/'tab 2'!D17*100-100 -> 5.23524691 | E15: =+'tab 2'!E21/'tab 2'!E17*100-100 -> -1.037527513 | F15: =+'tab 2'!F21/'tab 2'!F17*100-100 -> -2.739726027 | G15: =+'tab 2'!G21/'tab 2'!G17*100-100 -> 21.60919899 | H15: =+'tab 2'!H21/'tab 2'!H17*100-100 -> -2.82083075
A16: No ano (mar/24 - set/24) | B16: ='tab 2'!B21/'tab 2'!B19*100-100 -> 4.458640816 | C16: ='tab 2'!C21/'tab 2'!C19*100-100 -> 3.113339718 | D16: ='tab 2'!D21/'tab 2'!D19*100-100 -> 3.807945556 | E16: ='tab 2'!E21/'tab 2'!E19*100-100 -> -2.217322002 | F16: ='tab 2'!F21/'tab 2'!F19*100-100 -> -0.07818608288 | G16: ='tab 2'!G21/'tab 2'!G19*100-100 -> 10.15125106 | H16: ='tab 2'!H21/'tab 2'!H19*100-100 -> -1.69332079
A17: No trimestre (jun/24 -set/14) | B17: =+'tab 2'!B21/'tab 2'!B20*100-100 -> 1.874138076 | C17: =+'tab 2'!C21/'tab 2'!C20*100-100 -> 2.237093789 | D17: =+'tab 2'!D21/'tab 2'!D20*100-100 -> 2.374898203 | E17: =+'tab 2'!E21/'tab 2'!E20*100-100 -> 1.128761317 | F17: =+'tab 2'!F21/'tab 2'!F20*100-100 -> -0.07818608288 | G17: =+'tab 2'!G21/'tab 2'!G20*100-100 -> 0.4631811619 | H17: =+'tab 2'!H21/'tab 2'!H20*100-100 -> -0.3496503497
A18: Fonte:SIB/ANS/MS - 11/2023
A19: Caderno de Informação da Saúde Suplementar - dezembro/2024
A20: Notas: 1. O termo "beneficiário" refere-se a vínculos aos planos de saúde, podendo incluir vários vínculos para um mesmo indivíduo.
A21: 2. Dados preliminares, sujeitos a revisão.

Sheet graf 2
A4: Gráfico 2 - Taxa de crescimento anual do número de beneficiários de planos de saúde, por cobertura assistencial (Brasil - setembro/2019-setembro/2024)
A25: Fonte:SIB/ANS/MS - 11/2024
A26: Caderno de Informação da Saúde Suplementar - dezembro/2024
A27: Notas: 1. O termo "beneficiário" refere-se a vínculos aos planos de saúde, podendo incluir vários vínculos para um mesmo indivíduo.
A28: 2. Dados preliminares, sujeitos a revisão.
A32: Beneficiários de planos de saúde e taxa de crescimento anual do número de beneficiários de planos de saúde, por cobertura assistencial (setembro/2017-setembro/2024)
A35: Competência | B35: Beneficiários | D35: Taxa de variação
B36: Assistência médica com ou sem odontologia | C36: Exclusivamente odontológico | D36: Assistência médica com ou sem odontologia | E36: Exclusivamente odontológico
A37: 2017-09-01 | B37: 47185284 | C37: 21979881
A38: 2017-12-01 | B38: 47144909 | C38: 22271134
A39: 2018-03-01 | B39: 47009249 | C39: 22419447
A40: 2018-06-01 | B40: 47115883 | C40: 23263131
A41: 2018-09-01 | B41: 47138823 | C41: 23838481 | D41: =(+B41/B37-1) -> -0.0009846502142 | E41: 0.08455914752
A42: 2018-12-01 | B42: 47122155 | C42: 24033193 | D42: -0.0004826395995 | E42: 0.07911851278
A43: 2019-03-01 | B43: 46904497 | C43: 24168613 | D43: -0.002228327451 | E43: 0.07802003323
A44: 2019-06-01 | B44: 47012339 | C44: 24373798 | D44: -0.002197645325 | E44: 0.04774365927
A45: 2019-09-01 | B45: 47028419 | C45: 24792605 | D45: =(+B45/B41-1) -> -0.00234210345 | E45: 0.04002453009
A46: 2019-12-01 | B46: 47077981 | C46: 25337342 | D46: -0.0009374359046 | E46: 0.05426449161
A47: 2020-03-01 | B47: 47072801 | C47: 25432692 | D47: 0.003588227372 | E47: 0.05230250491
A48: 2020-06-01 | B48: 46656402 | C48: 24656709 | D48: -0.007571139994 | E48: 0.01160717751
A49: 2020-09-01 | B49: 46978425 | C49: 25343564 | D49: -0.001063059339 | E49: 0.0222227152
A50: 2020-12-01 | B50: 47471426 | C50: 25904915 | D50: 0.008357304023 | E50: 0.02240065276
A51: 2021-03-01 | B51: 47770035 | C51: 26301407 | D51: 0.01481182307 | E51: 0.0341574144
A52: 2021-06-01 | B52: 48087952 | C52: 26721483 | D52: 0.03068282033 | E52: 0.08374085933
A53: 2021-09-01 | B53: 48463550 | C53: 27599599 | D53: 0.03161291593 | E53: 0.08901806392
A54: 2021-12-01 | B54: 48826294 | C54: 28112959 | D54: 0.02854070573 | E54: 0.08523648891
A55: 2022-03-01 | B55: 48989927 | C55: 28293370 | D55: 0.0255367617 | E55: 0.07573598629
A56: 2022-06-01 | B56: 49511885 | C56: 28860727 | D56: 0.02961101359 | E56: 0.08005708366
A57: 2022-09-01 | B57: 49876261 | C57: 29479646 | D57: =(+B57/B53-1) -> 0.02914996941 | E57: 0.06811863462
A58: 2022-12-01 | B58: 50070624 | C58: 30033927 | D58: 0.02548483405 | E58: 0.06833033833
A59: 2023-03-01 | B59: 50110172 | C59: 30359402 | D59: 0.02286684363 | E59: 0.07302177153
A60: 2023-06-01 | B60: 50290629 | C60: 30972512 | D60: 0.01572842561 | E60: 0.07317158019
A61: 2023-09-01 | B61: 50653165 | C61: 31627531 | D61: =(+B61/B57-1) -> 0.01557662873 | E61: 0.0728599319
A62: 2023-12-01 | B62: 50803576 | C62: 32400620 | D62: =(+B62/B58-1) -> 0.0146383636 | E62: 0.07880065101
A63: 2024-03-01 | B63: 50845197 | C63: 32566382 | D63: =(+B63/B59-1) -> 0.01466817955 | E63: 0.07269510776
A64: 2024-06-01 | B64: 51058389 | C64: 33392577 | D64: =(+B64/B60-1) -> 0.01526646247 | E64: =(+C64/C60-1) -> 0.07813589676
A65: 2024-09-01 | B65: 51427892 | C65: 34018400 | D65: =(+B65/B61-1) -> 0.01529474022 | E65: =(+C65/C61-1) -> 0.07559455084
A66: =+A25 -> Fonte:SIB/ANS/MS - 11/2024
A67: =+A26 -> Caderno de Informação da Saúde Suplementar - dezembro/2024
A68: =+A27 -> Notas: 1. O termo "beneficiário" refere-se a vínculos aos planos de saúde, podendo incluir vários vínculos para um mesmo indivíduo.
A69: 2. Dados preliminares, sujeitos a revisão.

Sheet graf 3
A4: Gráfico 3 - Beneficiários de planos de assistência médica por modalidade da operadora (Brasil - setembro/2019-setembro/2024)
A28: Fonte: SIB/ANS/MS - 11/2024
A29: Caderno de Informação da Saúde Suplementar - dezembro/2024
A30: Notas: 1. O termo "beneficiário" refere-se a vínculos aos planos de saúde, podendo incluir vários vínculos para um mesmo indivíduo.
A31: 2. Dados preliminares, sujeitos a revisão.
A34: Beneficiários de planos de assistência médica por modalidade da operadora (Brasil - setembro/2017-setembro/2024)
A37: Competência | B37: Total | C37: Autogestão | D37: Cooperativa Médica | E37: Filantropia | F37: Medicina de Grupo | G37: Seguradora Especializada em Saúde
A38: 2017-09-01 | B38: 47185284 | C38: 4947528 | D38: 17485840 | E38: 936454 | F38: 17768610 | G38: 6046852
A39: 2017-12-01 | B39: 47144909 | C39: 4868157 | D39: 17385217 | E39: 943601 | F39: 17952206 | G39: 5995728
A40: 2018-03-01 | B40: 47009249 | C40: 4831545 | D40: 17247269 | E40: 943224 | F40: 17976629 | G40: 6010582
A41: 2018-06-01 | B41: 47115883 | C41: 4787013 | D41: 17263374 | E41: 949875 | F41: 18131150 | G41: 5984471
A42: 2018-09-01 | B42: 47138823 | C42: 4756486 | D42: 17311790 | E42: 916948 | F42: 18179571 | G42: 5974028
A43: 2018-12-01 | B43: 47122155 | C43: 4668841 | D43: 17238080 | E43: 915738 | F43: 18354979 | G43: 5944517
A44: 2019-03-01 | B44: 46904497 | C44: 4626691 | D44: 17162735 | E44: 889636 | F44: 18295087 | G44: 5930348
A45: 2019-06-01 | B45: 47012339 | C45: 4591166 | D45: 17164033 | E45: 894709 | F45: 18470355 | G45: 5892076
A46: 2019-09-01 | B46: 47028419 | C46: 4560523 | D46: 17157423 | E46: 879816 | F46: 18434101 | G46: 5996556
A47: 2019-12-01 | B47: 47077981 | C47: 4461943 | D47: 17191039 | E47: 880465 | F47: 18454021 | G47: 6090513
A48: 2020-03-01 | B48: 47072801 | C48: 4387608 | D48: 17244505 | E48: 883718 | F48: 18452454 | G48: 6104516
A49: 2020-06-01 | B49: 46656402 | C49: 4330534 | D49: 17153784 | E49: 880707 | F49: 18269818 | G49: 6021559
A50: 2020-09-01 | B50: 46978425 | C50: 4296603 | D50: 17232128 | E50: 893436 | F50: 18593478 | G50: 5962780
A51: 2020-12-01 | B51: 47471426 | C51: 4258203 | D51: 17299099 | E51: 910770 | F51: 18975422 | G51: 6027932
A52: 2021-03-01 | B52: 47770035 | C52: 4227063 | D52: 17359023 | E52: 916780 | F52: 19232469 | G52: 6034700
A53: 2021-06-01 | B53: 48087952 | C53: 4182763 | D53: 17547497 | E53: 920741 | F53: 19383082 | G53: 6053869
A54: 2021-09-01 | B54: 48463550 | C54: 4141305 | D54: 17729994 | E54: 925379 | F54: 19448784 | G54: 6218088
A55: 2021-12-01 | B55: 48826294 | C55: 4102702 | D55: 17862226 | E55: 903591 | F55: 19613570 | G55: 6344205
A56: 2022-03-01 | B56: 48989927 | C56: 4050709 | D56: 18023865 | E56: 910112 | F56: 19605038 | G56: 6400203
A57: 2022-06-01 | B57: 49511885 | C57: 3986392 | D57: 18223336 | E57: 921705 | F57: 19824880 | G57: 6555572
A58: 2022-09-01 | B58: 49876261 | C58: 3978245 | D58: 18394164 | E58: 930436 | F58: 19851433 | G58: 6721983
A59: 2022-12-01 | B59: 50070624 | C59: 3938922 | D59: 18557627 | E59: 932810 | F59: 19900481 | G59: 6740784
A60: 2023-03-01 | B60: 50110172 | C60: 3930642 | D60: 18594910 | E60: 943818 | F60: 19868105 | G60: 6772697
A61: 2023-06-01 | B61: 50290629 | C61: 3919745 | D61: 18739953 | E61: 959208 | F61: 19919057 | G61: 6752666
A62: 2023-09-01 | B62: 50653165 | C62: 3932726 | D62: 18907058 | E62: 975664 | F62: 20164627 | G62: 6673090
A63: 2023-12-01 | B63: 50803576 | C63: 3933429 | D63: 18873251 | E63: 992382 | F63: 20351880 | G63: 6652634
A64: 2024-03-01 | B64: 50845197 | C64: 3930999 | D64: 18836385 | E64: 1015543 | F64: 20404539 | G64: 6657731
A65: 2024-06-01 | B65: 51058389 | C65: 3937411 | D65: 18897920 | E65: 1046002 | F65: 20423211 | G65: 6753845
A66: 2024-07-01 | B66: 51427892 | C66: 3958918 | D66: 18996346 | E66: 1060907 | F66: 20575858 | G66: 6835863
A67: =+A28 -> Fonte: SIB/ANS/MS - 11/2024
A68: =+A29 -> Caderno de Informação da Saúde Suplementar - dezembro/2024
A69: =+A30 -> Notas: 1. O termo "beneficiário" refere-se a vínculos aos planos de saúde, podendo incluir vários vínculos para um mesmo indivíduo.
A70: 2. Dados preliminares, sujeitos a revisão.

Sheet graf 4
A4: Gráfico 4 - Número-índice de beneficiários em planos individuais de assistência médica, segundo a modalidade da operadora (Brasil - setembro/2019-setembro/2024)
A29: Fonte: SIB/ANS/MS - 11/2024
A30: Caderno de Informação da Saúde Suplementar - dezembro/2024
A31: Notas: 1. O termo "beneficiário" refere-se a vínculos aos planos de saúde, podendo incluir vários vínculos para um mesmo indivíduo.
A32: 2. Base: setembro/2017 = 100.
A33: 3. Dados preliminares, sujeitos a revisão.
A37: Beneficiários e número-índice de beneficiários em planos individuais de assistência médica, por modalidade da operadora (Brasil - setembro/2017- setembro/2024)
A40: Competência | B40: Beneficiários | F40: Número-índice
B41: Cooperativa Médica | C41: Filantropia | D41: Medicina de Grupo | E41: Seguradora Especializada em Saúde | F41: Cooperativa Médica | G41: Filantropia | H41: Medicina de Grupo | I41: Seguradora Especializada em Saúde
A42: 2017-09-01 | B42: 4490554 | C42: 357740 | D42: 4097599 | E42: 339247 | F42: 100 | G42: 100 | H42: 100 | I42: 100
A43: 2017-12-01 | B43: 4440299 | C43: 354253 | D43: 4099312 | E43: 332869 | F43: =+F42*(B43/B42) -> 98.88087305 | G43: =+G42*(C43/C42) -> 99.02526975 | H43: =+H42*(D43/D42) -> 100.041805 | I43: =+I42*(E43/E42) -> 98.1199539
A44: 2018-03-01 | B44: 4401687 | C44: 351318 | D44: 4105167 | E44: 327675 | F44: =+F43*(B44/B43) -> 98.02102369 | G44: 98.20484151 | H44: 100.1846935 | I44: 96.58891604
A45: 2018-06-01 | B45: 4380569 | C45: 350660 | D45: 4113994 | E45: 321741 | F45: 97.55074764 | G45: 98.02090904 | H45: 100.4001124 | I45: 94.83974803
A46: 2018-09-01 | B46: 4348313 | C46: 346409 | D46: 4110135 | E46: 316485 | F46: 96.83243983 | G46: 96.83261587 | H46: 100.3059353 | I46: 93.2904344
A47: 2018-12-01 | B47: 4317723 | C47: 346518 | D47: 4155889 | E47: 310244 | F47: 96.15123212 | G47: 96.86308492 | H47: 101.4225404 | I47: 91.45077186
A48: 2019-03-01 | B48: 4270657 | C48: 338213 | D48: 4138175 | E48: 304527 | F48: 95.10312091 | G48: 94.5415665 | H48: 100.9902384 | I48: 89.76556904
A49: 2019-06-01 | B49: 4255108 | C49: 340472 | D49: 4158487 | E49: 298579 | F49: 94.75686073 | G49: 95.17303069 | H49: 101.4859434 | I49: 88.01227424
A50: 2019-09-01 | B50: 4237672 | C50: 328873 | D50: 4182911 | E50: 293489 | F50: 94.36857902 | G50: 91.93073182 | H50: 102.0819997 | I50: 86.51189251
A51: 2019-12-01 | B51: 4224790 | C51: 325787 | D51: 4205077 | E51: 287909 | F51: 94.08171019 | G51: 91.06809415 | H51: 102.6229507 | I51: 84.86707325
A52: 2020-03-01 | B52: 4208085 | C52: 328156 | D52: 4188014 | E52: 282861 | F52: 93.70970709 | G52: 91.73030693 | H52: 102.2065361 | I52: 83.37907189
A53: 2020-06-01 | B53: 4172891 | C53: 332436 | D53: 4158179 | E53: 278690 | F53: 92.92597305 | G53: 92.92670655 | H53: 101.4784268 | I53: 82.14958423
A54: 2020-09-01 | B54: 4177395 | C54: 340769 | D54: 4210902 | E54: 274099 | F54: 93.02627248 | G54: 95.25605188 | H54: 102.7651071 | I54: 80.79629297
A55: 2020-12-01 | B55: 4171703 | C55: 346573 | D55: 4250243 | E55: 270107 | F55: 92.89951752 | G55: 96.87845922 | H55: 103.7252059 | I55: 79.61956922
A56: 2021-03-01 | B56: 4145075 | C56: 346758 | D56: 4238248 | E56: 264243 | F56: 92.30653946 | G56: 96.93017275 | H56: 103.4324735 | I56: 77.89103515
A57: 2021-06-01 | B57: 4117449 | C57: 343703 | D57: 4212571 | E57: 258521 | F57: 91.69133697 | G57: 96.07620059 | H57: 102.8058382 | I57: 76.20435848
A58: 2021-09-01 | B58: 4092220 | C58: 343290 | D58: 4182610 | E58: 253314 | F58: 91.1295132 | G58: 95.96075362 | H58: 102.074654 | I58: 74.6694886
A59: 2021-12-01 | B59: 4088982 | C59: 343493 | D59: 4185521 | E59: 249550 | F59: 91.05740628 | G59: 96.01749874 | H59: 102.1456956 | I59: 73.55997253
A60: 2022-03-01 | B60: 4083422 | C60: 348473 | D60: 4182239 | E60: 246414 | F60: =+F59*(B60/B59) -> 90.93359082 | G60: 97.4095712 | H60: 102.0655999 | I60: 72.63557231
A61: 2022-06-01 | B61: 4101374 | C61: 353706 | D61: 4249153 | E61: 243533 | F61: 91.33336332 | G61: 98.87236541 | H61: 103.698605 | I61: 71.78633857
A62: 2022-09-01 | B62: 4096996 | C62: 350180 | D62: 4255647 | E62: 240738 | F62: 91.23586978 | G62: 97.88673338 | H62: 103.857088 | I62: 70.96245508
A63: 2022-12-01 | B63: 4085171 | C63: 347373 | D63: 4241497 | E63: 237184 | F63: 90.97253925 | G63: 97.10208531 | H63: 103.5117638 | I63: 69.91484081
A64: 2023-03-01 | B64: 4070276 | C64: 345491 | D64: 4210530 | E64: 232737 | F64: 90.64084298 | G64: 96.57600492 | H64: 102.7560286 | I64: 68.6039965
A65: 2023-06-01 | B65: 4067364 | C65: 346582 | D65: 4203083 | E65: 229143 | F65: 90.57599575 | G65: 96.88097501 | H65: 102.574288 | I65: 67.5445914
A66: 2023-09-01 | B66: 4048712 | C66: 347389 | D66: 4182871 | E66: 225969 | F66: 90.16063497 | G66: =+G65*(C66/C65) -> 97.10655784 | H66: =+H65*(D66/D65) -> 102.0810235 | I66: 66.60898991
A67: 2023-12-01 | B67: 4021443 | C67: 348754 | D67: 4184254 | E67: 222071 | F67: =+F66*(B67/B66) -> 89.5533825 | G67: 97.48811986 | H67: 102.114775 | I67: =+I66*(E67/E66) -> 65.45997459
A68: 2024-03-01 | B68: 3988330 | C68: 349889 | D68: 4189419 | E68: 217089 | F68: 88.81599019 | G68: =+G67*(C68/C67) -> 97.80538939 | H68: 102.2408244 | I68: =+I67*(E68/E67) -> 63.99142807
A69: 2024-06-01 | B69: 3984230 | C69: 352807 | D69: 4226230 | E69: 213272 | F69: 88.72468742 | G69: 98.62106558 | H69: 103.1391798 | I69: =+I68*(E69/E68) -> 62.86628916
A70: 2024-09-01 | B70: 3963172 | C70: 348225 | D70: 4227360 | E70: 210650 | F70: 88.25574751 | G70: 97.34024711 | H70: 103.1667569 | I70: =+I69*(E70/E69) -> 62.09340097
A71: =+A29 -> Fonte: SIB/ANS/MS - 11/2024
A72: =+A30 -> Caderno de Informação da Saúde Suplementar - dezembro/2024
A73: =+A31 -> Notas: 1. O termo "beneficiário" refere-se a vínculos aos planos de saúde, podendo incluir vários vínculos para um mesmo indivíduo.
A74: =+A32 -> 2. Base: setembro/2017 = 100.
A75: =+A33 -> 3. Dados preliminares, sujeitos a revisão.

Sheet graf 5
A4: Gráfico 5 - Taxa de cobertura dos planos de assistência médica, por localização (Brasil - dezembro/2004-setembro/2024)
A27: Fontes: SIB/ANS/MS - 09/2024 e População - DATAUS/IBGE/2021
A28: Caderno de Informação da Saúde Suplementar - dezembro/2024
A29: Notas: 1. O termo "beneficiário" refere-se a vínculos aos planos de saúde, podendo incluir vários vínculos para um mesmo indivíduo.
A30: 2. Dados preliminares, sujeitos a revisão.
A36: Taxa de cobertura dos planos de assistência médica, por localização (Brasil - dezembro/2004-setembro/2024)
A39: Ano | B39: Capital | C39: Interior | D39: Total
A40: dez/04 | B40: 35.2 | C40: 13 | D40: 18.3
A41: dez/05 | B41: 36.5 | C41: 13.5 | D41: 19
A42: dez/06 | B42: 37.4 | C42: 14.1 | D42: 19.6
A43: dez/07 | B43: 38.1 | C43: 15 | D43: 20.5
A44: dez/08 | B44: 38.7 | C44: 16.2 | D44: 21.6
A45: dez/09 | B45: 38.7 | C45: 16.5 | D45: 21.8
A46: dez/10 | B46: 40.2 | C46: 17.5 | D46: 22.9
A47: dez/11 | B47: 40.5 | C47: 17.9 | D47: 23.3
A48: dez/12 | B48: 41.5 | C48: 18.4 | D48: 23.9
A49: dez/13 | B49: 42.4 | C49: 18.9 | D49: 24.5
A50: dez/14 | B50: 42.9 | C50: 19.3 | D50: 24.9
A51: dez/15 | B51: 42.2 | C51: 18.9 | D51: 24.4
A52: dez/16 | B52: 40.1 | C52: 18.1 | D52: 23.4
A53: dez/17 | B53: 38.8 | C53: 17.8 | D53: 22.8
A54: dez/18 | B54: 38.1 | C54: 17.7 | D54: 22.6
A55: dez/19 | B55: 37.6 | C55: 17.6 | D55: 22.4
A56: dez/20 | B56: 37.2 | C56: 17.5 | D56: 22.2
A57: dez/21 | B57: 37.7 | C57: 18 | D57: 22.7
A58: dez/22 | B58: 38.6 | C58: 18.6 | D58: 23.4
A59: dez/23 | B59: 38.9 | C59: 19 | D59: 23.7
A60: set/24 | B60: 39.1 | C60: 19.4 | D60: 24.1
A61: =+A27 -> Fontes: SIB/ANS/MS - 09/2024 e População - DATAUS/IBGE/2021
A62: =+A28 -> Caderno de Informação da Saúde Suplementar - dezembro/2024
A63: =+A29 -> Notas: 1. O termo "beneficiário" refere-se a vínculos aos planos de saúde, podendo incluir vários vínculos para um mesmo indivíduo.
A64: =+A30 -> 2. Dados preliminares, sujeitos a revisão.

Sheet tab 4
A4: Tabela 4 - Taxa de cobertura por cobertura assistencial do plano e localização, segundo Grandes Regiões e Unidades da Federação (Brasil - setembro/2024)
A7: Grandes Regiões e Unidades da Federação | B7: Assistência médica com ou sem odontologia | F7: Exclusivamente odontológico
B8: Unidade da Federação | C8: Capital | D8: Região Metropolitana da Capital | E8: Interior | F8: Unidade da Federação | G8: Capital | H8: Região Metropolitana da Capital | I8: Interior
A9: Brasil | B9: 24.1 | C9: 39.1 | D9: 24.1 | E9: 19.4 | F9: 16 | G9: 28.8 | H9: 16 | I9: 12
A10: Norte | B10: 10.3 | C10: 21.4 | D10: 10.3 | E10: 5.2 | F10: 7.9 | G10: 16.9 | H10: 7.9 | I10: 3.7
A11: Rondônia | B11: 9 | C11: 15.9 | D11: 9 | E11: 5.9 | F11: 7.2 | G11: 12.6 | H11: 7.2 | I11: 4.9
A12: Acre | B12: 4.9 | C12: 9.5 | D12: 4.9 | E12: 1 | F12: 2.4 | G12: 4.2 | H12: 2.4 | I12: 0.9
A13: Amazonas | B13: 14.5 | C13: 27 | D13: 14.5 | E13: 0.6 | F13: 13.6 | G13: 24.9 | H13: 13.6 | I13: 1
A14: Roraima | B14: 4.7 | C14: 6.8 | D14: 4.7 | E14: 0.5 | F14: 1.9 | G14: 2.5 | H14: 1.9 | I14: 0.7
A15: Pará | B15: 10.3 | C15: 27.2 | D15: 10.3 | E15: 6.8 | F15: 6.4 | G15: 17.7 | H15: 6.4 | I15: 4.1
A16: Amapá | B16: 7.3 | C16: 10.1 | D16: 7.3 | E16: 3.1 | F16: 5.4 | G16: 6.8 | H16: 5.4 | I16: 3.5
A17: Tocantins | B17: 7.8 | C17: 18.8 | D17: 7.8 | E17: 5.2 | F17: 8.2 | G17: 16.7 | H17: 8.2 | I17: 6.2
A18: Nordeste | B18: 12.7 | C18: 33.6 | D18: 12.7 | E18: 6.9 | F18: 12.3 | G18: 31.3 | H18: 12.3 | I18: 7
A19: Maranhão | B19: 7.4 | C19: 26.9 | D19: 7.4 | E19: 3.8 | F19: 5.2 | G19: 19.8 | H19: 5.2 | I19: 2.5
A20: Piauí | B20: 12.6 | C20: 36.2 | D20: 12.6 | E20: 4.1 | F20: 7.2 | G20: 21.6 | H20: 7.2 | I20: 2
A21: Ceará | B21: 15.6 | C21: 38 | D21: 15.6 | E21: 6.3 | F21: 15 | G21: 36.2 | H21: 15 | I21: 6.2
A22: Rio Grande do Norte | B22: 17.5 | C22: 38.2 | D22: 17.5 | E22: 10.5 | F22: 16.2 | G22: 34.5 | H22: 16.2 | I22: 10.1
A23: Paraíba | B23: 11.5 | C23: 33.3 | D23: 11.5 | E23: 6 | F23: 13.7 | G23: 42 | H23: 13.7 | I23: 6.5
A24: Pernambuco | B24: 14.8 | C24: 38.7 | D24: 14.8 | E24: 9.8 | F24: 14 | G24: 33.6 | H24: 14 | I24: 9.9
A25: Alagoas | B25: 11.4 | C25: 27.9 | D25: 11.4 | E25: 4.2 | F25: 13.2 | G25: 26.9 | H25: 13.2 | I25: 7.1
A26: Sergipe | B26: 14.5 | C26: 36 | D26: 14.5 | E26: 5.8 | F26: 11.2 | G26: 26.9 | H26: 11.2 | I26: 4.9
A27: Bahia | B27: 11.4 | C27: 28.5 | D27: 11.4 | E27: 7.3 | F27: 12.9 | G27: 31.4 | H27: 12.9 | I27: 8.4
A28: Sudeste | B28: 34.5 | C28: 47.5 | D28: 34.5 | E28: 30.3 | F28: 21.5 | G28: 32.7 | H28: 21.5 | I28: 17.8
A29: Minas Gerais | B29: 26.9 | C29: 50.4 | D29: 26.9 | E29: 23.8 | F29: 14 | G29: 28.1 | H29: 14 | I29: 12.1
A30: Espírito Santo | B30: 32.3 | C30: 60.8 | D30: 32.3 | E30: 29.5 | F30: 20.3 | G30: 38.7 | H30: 20.3 | I30: 18.5
A31: Rio de Janeiro | B31: 32.3 | C31: 46.8 | D31: 32.3 | E31: 23 | F31: 22 | G31: 34 | H31: 22 | I31: 14.4
A32: São Paulo | B32: 39 | C32: 46.9 | D32: 39 | E32: 36.2 | F32: 24.8 | G32: 32.7 | H32: 24.8 | I32: 21.9
A33: Sul | B33: 24.5 | C33: 45.5 | D33: 24.5 | E33: 21.4 | F33: 12.9 | G33: 29.8 | H33: 12.9 | I33: 10.3
A34: Paraná | B34: 27 | C34: 50.7 | D34: 27 | E34: 22.2 | F34: 16.4 | G34: 39.7 | H34: 16.4 | I34: 11.6
A35: Santa Catarina | B35: 23.1 | C35: 40.3 | D35: 23.1 | E35: 21.8 | F35: 12.7 | G35: 22.7 | H35: 12.7 | I35: 12
A36: Rio Grande do Sul | B36: 22.9 | C36: 40.4 | D36: 22.9 | E36: 20.3 | F36: 9.5 | G36: 19.3 | H36: 9.5 | I36: 8
A37: Centro-Oeste | B37: 22.2 | C37: 33.6 | D37: 22.2 | E37: 15.5 | F37: 13.8 | G37: 20.2 | H37: 13.8 | I37: 10
A38: Mato Grosso do Sul | B38: 23.9 | C38: 30.5 | D38: 23.9 | E38: 20.7 | F38: 12.3 | G38: 9.8 | H38: 12.3 | I38: 13.5
A39: Mato Grosso | B39: 19.1 | C39: 38.4 | D39: 19.1 | E39: 15 | F39: 8.5 | G39: 14.3 | H39: 8.5 | I39: 7.3
A40: Goiás | B40: 19.2 | C40: 37.8 | D40: 19.2 | E40: 14 | F40: 13.3 | G40: 24.3 | H40: 13.3 | I40: 10.3
A41: Distrito Federal | B41: 31.5 | C41: 31.5 | D41: 31.5 | E41: 0 | F41: 22.5 | G41: 22.5 | H41: 22.5 | I41: 0
A42: Fontes: SIB/ANS/MS - 09/2024 e População - DATAUS/IBGE/2021
A43: Caderno de Informação da Saúde Suplementar - dezembro/2024
A48: Taxa de cobertura dos planos privados de assistência médica por Unidades da Federação (Brasil - setembro/2024)
A78: =A42 -> Fontes: SIB/ANS/MS - 09/2024 e População - DATAUS/IBGE/2021
A79: =A43 -> Caderno de Informação da Saúde Suplementar - dezembro/2024

Sheet graf 6
A4: Gráfico 6 - Distribuição percentual dos beneficiários de planos privados de saúde, por tipo de contratação, segundo cobertura assistencial do plano (Brasil - setembro/2024)
A29: Fonte: SIB/ANS/MS - 11/2024
A30: Caderno de Informação da Saúde Suplementar – dezembro/2024
A35: Beneficiários de planos privados de saúde, por cobertura assistencial, segundo tipo de contratação do plano (Brasil - setembro/2024)
A39: Tipo de contratação | B39: Assistência médica com ou sem odontologia | C39: Exclusivamente odontológico
A40: Total | B40: 51427892 | C40: 34018400
A41: Individual ou Familiar | B41: 8749518 | C41: 6859407
A42: Coletivo Empresarial | B42: 36728545 | C42: 24186643
A43: Coletivo por adesão | B43: 5911515 | C43: 2967937
A44: Coletivo não identificado | B44: 226 | C44: 1278
A45: Não Informado | B45: 38088 | C45: 3135
A46: =+A29 -> Fonte: SIB/ANS/MS - 11/2024
A47: =+A30 -> Caderno de Informação da Saúde Suplementar – dezembro/2024

Sheet graf 7
A4: Gráfico 7 - Taxa de variação trimestral do número de beneficiários em planos de assistência médica por tipo de contratação do plano (Brasil - setembro/2018-setembro/2024)
A28: Fonte: SIB/ANS/MS - 11/2024
A29: Caderno de Informação da Saúde Suplementar – dezembro/2024
A33: Beneficiários e taxa de variação trimestral do número de beneficiários em planos de assistência médica por tipo de contratação do plano (Brasil - setembro/2016-setembro/2024)
A36: Competência | B36: Beneficiários | H36: Taxa de variação
B37: Total | C37: Individual ou Familiar | D37: Coletivo Empresarial | E37: Coletivo por adesão | F37: Coletivo não identificado | G37: Não Informado | H37: Individual ou Familiar | I37: Coletivo empresarial | J37: Coletivo por adesão
A38: 2016-09-01 | B38: 47927181 | C38: 9521694 | D38: 31809660 | E38: 6412571 | F38: 672 | G38: 182584
A39: 2016-12-01 | B39: 47685266 | C39: 9455509 | D39: 31699506 | E39: 6351096 | F39: 642 | G39: 178513 | H39: =+C39/C38-1 -> -0.006950969019 | I39: -0.003462910323 | J39: -0.009586638495
A40: 2017-03-01 | B40: 47366416 | C40: 9391547 | D40: 31506707 | E40: 6303833 | F40: 625 | G40: 163704 | H40: -0.006764522143 | I40: -0.006082082162 | J40: -0.007441707699
A41: 2017-06-01 | B41: 47320926 | C41: 9336986 | D41: 31532784 | E41: 6295622 | F41: 602 | G41: 154932 | H41: -0.005809586003 | I41: 0.0008276650429 | J41: -0.001302540851
A42: 2017-09-01 | B42: 47185284 | C42: 9285375 | D42: 31495765 | E42: 6259571 | F42: 591 | G42: 143982 | H42: -0.005527586739 | I42: -0.001173984511 | J42: -0.005726360318
A43: 2017-12-01 | B43: 47144909 | C43: 9226965 | D43: 31548649 | E43: 6230459 | F43: 570 | G43: 138266 | H43: -0.006290537539 | I43: 0.001679082886 | J43: -0.004650797954
A44: 2018-03-01 | B44: 47009249 | C44: 9186078 | D44: 31486497 | E44: 6201558 | F44: 557 | G44: 134559 | H44: -0.004431251229 | I44: -0.001970036815 | J44: -0.004638663058
A45: 2018-06-01 | B45: 47115883 | C45: 9167193 | D45: 31605884 | E45: 6213942 | F45: 472 | G45: 128392 | H45: -0.002055828396 | I45: 0.003791688863 | J45: 0.001996917549
A46: 2018-09-01 | B46: 47138823 | C46: 9121565 | D46: 31705338 | E46: 6185924 | F46: 456 | G46: 125540 | H46: -0.004977314212 | I46: 0.003146692559 | J46: -0.004508893067
A47: 2018-12-01 | B47: 47122155 | C47: 9130590 | D47: 31729310 | E47: 6170989 | F47: 426 | G47: 90840 | H47: 0.0009894135491 | I47: 0.0007560871926 | J47: -0.002414352326
A48: 2019-03-01 | B48: 46904497 | C48: 9051784 | D48: 31605756 | E48: 6160620 | F48: 302 | G48: 86035 | H48: -0.008630986607 | I48: -0.003894002107 | J48: -0.001680281718
A49: 2019-06-01 | B49: 47012339 | C49: 9052855 | D49: 31700831 | E49: 6176768 | F49: 303 | G49: 81582 | H49: 0.0001183192175 | I49: 0.003008154591 | J49: 0.002621164753
A50: 2019-09-01 | B50: 47028419 | C50: 9043152 | D50: 31748264 | E50: 6157959 | F50: 282 | G50: 78762 | H50: -0.001071816571 | I50: 0.001496269924 | J50: -0.003045120037
A51: 2019-12-01 | B51: 47077981 | C51: 9043761 | D51: 31751558 | E51: 6206084 | F51: 279 | G51: 76299 | H51: 6.734377571e-05 | I51: 0.0001037537045 | J51: 0.007815089383
A52: 2020-03-01 | B52: 47072801 | C52: 9007311 | D52: 31784930 | E52: 6208195 | F52: 270 | G52: 72095 | H52: -0.004030402838 | I52: 0.001051035039 | J52: 0.000340150085
A53: 2020-06-01 | B53: 46656402 | C53: 8942355 | D53: 31424075 | E53: 6224533 | F53: 266 | G53: 65173 | H53: -0.007211475212 | I53: -0.0113530217 | J53: 0.0026316828
A54: 2020-09-01 | B54: 46978425 | C54: 9003322 | D54: 31661857 | E54: 6252456 | F54: 255 | G54: 60535 | H54: 0.006817778986 | I54: 0.007566873488 | J54: 0.004485959027
A55: 2020-12-01 | B55: 47471426 | C55: 9038782 | D55: 32073249 | E55: 6305219 | F55: 252 | G55: 53924 | H55: 0.003938546239 | I55: 0.01299329979 | J55: 0.008438763903
A56: 2021-03-01 | B56: 47770035 | C56: 8994478 | D56: 32456636 | E56: 6267766 | F56: 250 | G56: 50905 | H56: =+C56/C55-1 -> -0.004901545363 | I56: 0.01195348186 | J56: -0.005939999864
A57: 2021-06-01 | B57: 48087952 | C57: 8932394 | D57: 32796793 | E57: 6310405 | F57: 248 | G57: 48112 | H57: -0.006902457263 | I57: 0.01048035292 | J57: 0.006802902342
A58: 2021-09-01 | B58: 48463550 | C58: 8871576 | D58: 33226801 | E58: 6317715 | F58: 248 | G58: 47210 | H58: -0.006808701004 | I58: 0.01311128195 | J58: 0.001158404255
A59: 2021-12-01 | B59: 48826294 | C59: 8867685 | D59: 33578960 | E59: 6333233 | F59: 244 | G59: 46172 | H59: -0.0004385917451 | I59: 0.01059864294 | J59: 0.002456267812
A60: 2022-03-01 | B60: 48989927 | C60: 8860682 | D60: 33777036 | E60: 6308558 | F60: 238 | G60: 43413 | H60: -0.0007897213309 | I60: 0.005898812828 | J60: -0.003896114354
A61: 2022-06-01 | B61: 49511885 | C61: 8947897 | D61: 34208864 | E61: 6312114 | F61: 242 | G61: 42768 | H61: 0.009842921798 | I61: 0.01278466234 | J61: 0.0005636787361
A62: 2022-09-01 | B62: 49876261 | C62: 8943688 | D62: 34574954 | E62: 6315339 | F62: 240 | G62: 42040 | H62: -0.0004703898581 | I62: 0.01070161231 | J62: 0.0005109223313
A63: 2022-12-01 | B63: 50070624 | C63: 8911350 | D63: 34845631 | E63: 6271724 | F63: 238 | G63: 41681 | H63: -0.003615734359 | I63: 0.007828701667 | J63: -0.006906200918
A64: 2023-03-01 | B64: 50110172 | C64: 8859159 | D64: 35015818 | E64: 6194483 | F64: 235 | G64: 40477 | H64: -0.005856688381 | I64: 0.004884026924 | J64: -0.01231575242
A65: 2023-06-01 | B65: 50290629 | C65: 8846293 | D65: 35267665 | E65: 6136847 | F65: 233 | G65: 39591 | H65: -0.001452282322 | I65: 0.007192378028 | J65: -0.009304408455
A66: 2023-09-01 | B66: 50653165 | C66: 8805059 | D66: 35604841 | E66: 6203882 | F66: 228 | G66: 39155 | H66: -0.004661161461 | I66: 0.009560485504 | J66: 0.01092336178
A67: 2023-12-01 | B67: 50803576 | C67: 8776639 | D67: 35789683 | E67: 6198275 | F67: 227 | G67: 38752 | H67: -0.0032276899 | I67: 0.005191485057 | J67: -0.0009037889502
A68: 2024-03-01 | B68: 50845197 | C68: 8744844 | D68: 35930041 | E68: 6131812 | F68: 227 | G68: 38273 | H68: -0.003622685176 | I68: 0.003921744711 | J68: -0.01072282208
A69: 2024-06-01 | B69: 51058389 | C69: 8776653 | D69: 36277019 | E69: 5965171 | F69: 227 | G69: 39319 | H69: =+C69/C68-1 -> 0.003637457684 | I69: 0.009657044366 | J69: -0.02717646921
A70: 2024-09-01 | B70: 51427892 | C70: 8749518 | D70: 36728545 | E70: 5911515 | F70: 226 | G70: 38088 | H70: =+C70/C69-1 -> -0.003091725285 | I70: 0.01244661255 | J70: -0.008994880449
A71: =+A28 -> Fonte: SIB/ANS/MS - 11/2024
A72: =+A29 -> Caderno de Informação da Saúde Suplementar – dezembro/2024

Sheet graf 8
A4: Gráfico 8 - Taxa de variação trimestral do número de beneficiários em planos exclusivamente odontológicos por tipo de contratação do plano (Brasil - setembro/2018-setembro/2024)
A28: Fonte: SIB/ANS/MS - 11/2024
A29: Caderno de Informação da Saúde Suplementar – dezembro/2024
A34: Beneficiários e taxa de variação trimestral do número de beneficiários em planos exclusivamente odontológicos por tipo de contratação do plano (Brasil - setembro/2016-setembro/2024)
A37: Competência | B37: Beneficiários | H37: Taxa de variação
B38: Total | C38: Individual ou Familiar | D38: Coletivo Empresarial | E38: Coletivo por adesão | F38: Coletivo não identificado | G38: Não Informado | H38: Individual ou Familiar | I38: Coletivo empresarial | J38: Coletivo por adesão
A39: 2016-09-01 | B39: 20858519 | C39: 3719083 | D39: 15417291 | E39: 1694352 | F39: 2388 | G39: 25405
A40: 2016-12-01 | B40: 21181491 | C40: 3855960 | D40: 15611556 | E40: 1687627 | F40: 2210 | G40: 24138 | H40: =+C40/C39-1 -> 0.03680396485 | I40: 0.01260046269 | J40: -0.003969069001
A41: 2017-03-01 | B41: 21499200 | C41: 3916869 | D41: 15846045 | E41: 1712810 | F41: 2171 | G41: 21305 | H41: 0.01579606635 | I41: 0.01502021964 | J41: 0.01492213623
A42: 2017-06-01 | B42: 21617290 | C42: 3909179 | D42: 15980748 | E42: 1704844 | F42: 2140 | G42: 20379 | H42: -0.001963302832 | I42: 0.008500733148 | J42: -0.004650836929
A43: 2017-09-01 | B43: 21979881 | C43: 3960838 | D43: 16303519 | E43: 1693883 | F43: 2108 | G43: 19533 | H43: 0.01321479523 | I43: 0.02019749013 | J43: -0.006429327258
A44: 2017-12-01 | B44: 22271134 | C44: 3956910 | D44: 16587088 | E44: 1706087 | F44: 2065 | G44: 18984 | H44: -0.0009917093302 | I44: 0.01739311617 | J44: 0.007204747908
A45: 2018-03-01 | B45: 22419447 | C45: 3967964 | D45: 16727116 | E45: 1703710 | F45: 2031 | G45: 18626 | H45: 0.002793593991 | I45: 0.00844198813 | J45: -0.001393246652
A46: 2018-06-01 | B46: 23263131 | C46: 4063055 | D46: 17184416 | E46: 1995517 | F46: 1990 | G46: 18153 | H46: 0.02396468315 | I46: 0.02733884311 | J46: 0.1712773888
A47: 2018-09-01 | B47: 23838481 | C47: 4176433 | D47: 17422122 | E47: 2222235 | F47: 1959 | G47: 15732 | H47: 0.02790461857 | I47: 0.0138326493 | J47: 0.113613665
A48: 2018-12-01 | B48: 24033193 | C48: 4295796 | D48: 17578660 | E48: 2143186 | F48: 1899 | G48: 13652 | H48: 0.02858013046 | I48: 0.008985013421 | J48: -0.03557184546
A49: 2019-03-01 | B49: 24168613 | C49: 4307873 | D49: 17580018 | E49: 2268656 | F49: 1829 | G49: 10237 | H49: 0.002811353239 | I49: 7.725275988e-05 | J49: 0.05854368216
A50: 2019-06-01 | B50: 24373798 | C50: 4258908 | D50: 17913678 | E50: 2189513 | F50: 1801 | G50: 9898 | H50: -0.01136639822 | I50: 0.01897950275 | J50: -0.03488541233
A51: 2019-09-01 | B51: 24792605 | C51: 4264305 | D51: 18150592 | E51: 2366151 | F51: 1760 | G51: 9797 | H51: 0.001267226247 | I51: 0.01322531308 | J51: 0.08067456096
A52: 2019-12-01 | B52: 25337342 | C52: 4310206 | D52: 18536467 | E52: 2479567 | F52: 1740 | G52: 9362 | H52: 0.01076400492 | I52: 0.02125963715 | J52: 0.04793269745
A53: 2020-03-01 | B53: 25432692 | C53: 4245376 | D53: 18679656 | E53: 2498575 | F53: 1708 | G53: 7377 | H53: -0.01504104444 | I53: 0.007724719063 | J53: 0.007665854563
A54: 2020-06-01 | B54: 24656709 | C54: 3979554 | D54: 18180340 | E54: 2488033 | F54: 1680 | G54: 7102 | H54: -0.06261447749 | I54: -0.02673047084 | J54: -0.004219204947
A55: 2020-09-01 | B55: 25343564 | C55: 4305420 | D55: 18272223 | E55: 2757263 | F55: 1659 | G55: 6999 | H55: 0.08188505546 | I55: 0.005053975888 | J55: 0.1082099795
A56: 2020-12-01 | B56: 25904915 | C56: 4516450 | D56: 18688733 | E56: 2691633 | F56: 1655 | G56: 6444 | H56: 0.04901496254 | I56: 0.02279470867 | J56: -0.02380258974
A57: 2021-03-01 | B57: 26301407 | C57: 4640174 | D57: 18960427 | E57: 2692816 | F57: 1645 | G57: 6345 | H57: =+C57/C56-1 -> 0.02739408163 | I57: 0.01453785016 | J57: 0.0004395101412
A58: 2021-06-01 | B58: 26721483 | C58: 4743781 | D58: 19298778 | E58: 2671114 | F58: 1636 | G58: 6174 | H58: 0.02232825752 | I58: 0.01784511499 | J58: -0.008059221276
A59: 2021-09-01 | B59: 27599599 | C59: 4974259 | D59: 19941285 | E59: 2676443 | F59: 1615 | G59: 5997 | H59: 0.04858529515 | I59: 0.03329262609 | J59: 0.001995047759
A60: 2021-12-01 | B60: 28112959 | C60: 5045472 | D60: 20358884 | E60: 2702451 | F60: 1584 | G60: 4568 | H60: 0.01431630319 | I60: 0.0209414288 | J60: 0.009717374889
A61: 2022-03-01 | B61: 28293370 | C61: 5079575 | D61: 20512601 | E61: 2695854 | F61: 1573 | G61: 3767 | H61: 0.00675912977 | I61: 0.007550364745 | J61: -0.002441117341
A62: 2022-06-01 | B62: 28860727 | C62: 5157704 | D62: 20951281 | E62: 2746503 | F62: 1565 | G62: 3674 | H62: 0.01538101121 | I62: 0.02138587886 | J62: 0.01878773851
A63: 2022-09-01 | B63: 29479646 | C63: 5289653 | D63: 21352050 | E63: 2832893 | F63: 1554 | G63: 3496 | H63: 0.02558289502 | I63: 0.01912861557 | J63: 0.0314545442
A64: 2022-12-01 | B64: 30033927 | C64: 5300365 | D64: 21870240 | E64: 2858395 | F64: 1478 | G64: 3449 | H64: 0.002025085577 | I64: 0.02426886411 | J64: 0.009002104915
A65: 2023-03-01 | B65: 30359402 | C65: 5304632 | D65: 22191465 | E65: 2858426 | F65: 1469 | G65: 3410 | H65: 0.0008050388983 | I65: 0.01468776749 | J65: 1.084524707e-05
A66: 2023-06-01 | B66: 30972512 | C66: 5392308 | D66: 22655618 | E66: 2919751 | F66: 1460 | G66: 3375 | H66: 0.01652819649 | I66: 0.02091583408 | J66: 0.02145411496
A67: 2023-09-01 | B67: 31627531 | C67: 5640533 | D67: 22983405 | E67: 2999053 | F67: 1314 | G67: 3226 | H67: 0.04603316428 | I67: 0.01446824359 | J67: 0.02716053526
A68: 2023-12-01 | B68: 32400620 | C68: 5963168 | D68: 23416207 | E68: 3016762 | F68: 1285 | G68: 3198 | H68: 0.05719938169 | I68: 0.01883106528 | J68: 0.005904863969
A69: 2024-03-01 | B69: 32566382 | C69: 6227262 | D69: 23299414 | E69: 3035238 | F69: 1279 | G69: 3189 | H69: 0.04428753307 | I69: -0.004987699331 | J69: 0.006124447338
A70: 2024-06-01 | B70: 33392577 | C70: 6827782 | D70: 23625560 | E70: 2934810 | F70: 1279 | G70: 3146 | H70: =+C70/C69-1 -> 0.09643403473 | I70: 0.01399803446 | J70: -0.03308735592
A71: 2024-09-01 | B71: 34018400 | C71: 6859407 | D71: 24186643 | E71: 2967937 | F71: 1278 | G71: 3135 | H71: 0.004631811619 | I71: 0.02374898203 | J71: 0.01128761317
A72: =+A28 -> Fonte: SIB/ANS/MS - 11/2024
A73: =+A29 -> Caderno de Informação da Saúde Suplementar – dezembro/2024

Sheet tab 5
A3: Tabela 5 - Beneficiários de planos privados de assistência médica, por época de contratação do plano e sexo, segundo tipo de contratação do plano e faixas etárias (Brasil - setembro/2024)
A6: Tipo de contratação do plano e faixas etárias | B6: Total | E6: Novos | H6: Antigos
B7: Total | C7: Feminino | D7: Masculino | E7: Total | F7: Feminino | G7: Masculino | H7: Total | I7: Feminino | J7: Masculino
A8: Total | B8: =E8+H8 -> 51427892 | C8: =F8+I8 -> 27129090 | D8: =G8+J8 -> 24298802 | E8: =F8+G8 -> 48564734 | F8: =F19+F30+F41 -> 25500836 | G8: =G19+G30+G41 -> 23063898 | H8: =I8+J8 -> 2863158 | I8: =I19+I30+I41 -> 1628254 | J8: 1234904
A9: 0 a 9 anos | B9: =E9+H9 -> 6713309 | C9: =F9+I9 -> 3244586 | D9: =G9+J9 -> 3468723 | E9: =E20+E31+E42 -> 6546225 | F9: =F20+F31+F42 -> 3162615 | G9: =G20+G31+G42 -> 3383610 | H9: =H20+H31+H42 -> 167084 | I9: 81971 | J9: 85113
A10: 10 a 19 anos | B10: 5803202 | C10: 2859900 | D10: 2943302 | E10: =E21+E32+E43 -> 5601538 | F10: 2760157 | G10: 2841381 | H10: 201664 | I10: 99743 | J10: 101921
A11: 20 a 29 anos | B11: 7194373 | C11: 3755340 | D11: 3439033 | E11: 6999747 | F11: 3653954 | G11: 3345793 | H11: 194626 | I11: 101386 | J11: 93240
A12: 30 a 39 anos | B12: 9434850 | C12: 5053489 | D12: 4381361 | E12: 9146122 | F12: 4897676 | G12: 4248446 | H12: 288728 | I12: 155813 | J12: 132915
A13: 40 a 49 anos | B13: 9003184 | C13: 4707969 | D13: 4295215 | E13: 8637229 | F13: 4510749 | G13: 4126480 | H13: 365955 | I13: 197220 | J13: 168735
A14: 50 a 59 anos | B14: 5605075 | C14: 2960637 | D14: 2644438 | E14: 5236568 | F14: 2745081 | G14: 2491487 | H14: 368507 | I14: 215556 | J14: 152951
A15: 60 a 69 anos | B15: 3881634 | C15: 2177231 | D15: 1704403 | E15: 3362771 | F15: 1873511 | G15: 1489260 | H15: 518863 | I15: 303720 | J15: 215143
A16: 70 a 79 anos | B16: 2423982 | C16: 1459212 | D16: 964770 | E16: 1968430 | F16: 1182852 | G16: 785578 | H16: 455552 | I16: 276360 | J16: 179192
A17: 80 anos e mais | B17: 1368175 | C17: 910676 | D17: 457499 | E17: 1066032 | F17: 714207 | G17: 351825 | H17: 302143 | I17: 196469 | J17: 105674
A18: Idade inconsistente | B18: 108 | C18: 50 | D18: 58 | E18: 72 | F18: 34 | G18: 38 | H18: 36 | I18: 16 | J18: 20
A19: Coletivo | B19: =E19+H19 -> 42640286 | C19: =F19+I19 -> 21877972 | D19: =G19+J19 -> 20762314 | E19: =F19+G19 -> 40612469 | F19: =SUM(F20:F29) -> 20770102 | G19: =SUM(G20:G29) -> 19842367 | H19: =I19+J19 -> 2027817 | I19: =SUM(I20:I29) -> 1107870 | J19: =SUM(J20:J29) -> 919947
A20: 0 a 9 anos | B20: =SUM(C20:D20) -> 5242495 | C20: =SUM(F20,I20) -> 2551108 | D20: =SUM(G20,J20) -> 2691387 | E20: =F20+G20 -> 5082832 | F20: 2472791 | G20: 2610041 | H20: =I20+J20 -> 159663 | I20: 78317 | J20: 81346
A21: 10 a 19 anos | B21: 4809158 | C21: 2373166 | D21: 2435992 | E21: 4622801 | F21: 2280964 | G21: 2341837 | H21: =I21+J21 -> 186357 | I21: 92202 | J21: 94155
A22: 20 a 29 anos | B22: 6335651 | C22: 3248845 | D22: 3086806 | E22: 6184918 | F22: 3169759 | G22: 3015159 | H22: 150733 | I22: 79086 | J22: 71647
A23: 30 a 39 anos | B23: 8505953 | C23: 4473744 | D23: 4032209 | E23: 8275890 | F23: 4347163 | G23: 3928727 | H23: 230063 | I23: 126581 | J23: 103482
A24: 40 a 49 anos | B24: 8076771 | C24: 4128763 | D24: 3948008 | E24: 7770334 | F24: 3963383 | G24: 3806951 | H24: 306437 | I24: 165380 | J24: 141057
A25: 50 a 59 anos | B25: 4759798 | C25: 2412557 | D25: 2347241 | E25: 4492554 | F25: 2262707 | G25: 2229847 | H25: 267244 | I25: 149850 | J25: 117394
A26: 60 a 69 anos | B26: 2817734 | C26: 1479524 | D26: 1338210 | E26: 2473173 | F26: 1286474 | G26: 1186699 | H26: 344561 | I26: 193050 | J26: 151511
A27: 70 a 79 anos | B27: 1419348 | C27: 792721 | D27: 626627 | E27: 1175818 | F27: 655347 | G27: 520471 | H27: 243530 | I27: 137374 | J27: 106156
A28: 80 anos e mais | B28: 673335 | C28: 417522 | D28: 255813 | E28: 534109 | F28: 331494 | G28: 202615 | H28: 139226 | I28: 86028 | J28: 53198
A29: Idade inconsistente | B29: 43 | C29: 22 | D29: 21 | E29: 40 | F29: 20 | G29: 20 | H29: 3 | I29: 2 | J29: 1
A30: Individual | B30: =E30+H30 -> 8749518 | C30: =F30+I30 -> 5229757 | D30: =G30+J30 -> 3519761 | E30: 7951883 | F30: =SUM(F31:F40) -> 4730538 | G30: =SUM(G31:G40) -> 3221345 | H30: =I30+J30 -> 797635 | I30: =SUM(I31:I40) -> 499219 | J30: =SUM(J31:J40) -> 298416
A31: 0 a 9 anos | B31: 1470203 | C31: 693193 | D31: 777010 | E31: 1463393 | F31: 689824 | G31: 773569 | H31: =I31+J31 -> 6810 | I31: 3369 | J31: 3441
A32: 10 a 19 anos | B32: 992414 | C32: 485981 | D32: 506433 | E32: 978731 | F32: 479190 | G32: 499541 | H32: 13683 | I32: 6791 | J32: 6892
A33: 20 a 29 anos | B33: 856265 | C33: 505253 | D33: 351012 | E33: 814820 | F33: 484189 | G33: 330631 | H33: 41445 | I33: 21064 | J33: 20381
A34: 30 a 39 anos | B34: 926283 | C34: 578348 | D34: 347935 | E34: 870221 | F34: 550511 | G34: 319710 | H34: 56062 | I34: 27837 | J34: 28225
A35: 40 a 49 anos | B35: 922684 | C35: 577110 | D35: 345574 | E35: 866854 | F35: 547346 | G35: 319508 | H35: 55830 | I35: 29764 | J35: 26066
A36: 50 a 59 anos | B36: 840321 | C36: 545191 | D36: 295130 | E36: 743933 | F36: 482333 | G36: 261600 | H36: 96388 | I36: 62858 | J36: 33530
A37: 60 a 69 anos | B37: 1055194 | C37: 693110 | D37: 362084 | E37: 889496 | F37: 586987 | G37: 302509 | H37: 165698 | I37: 106123 | J37: 59575
A38: 70 a 79 anos | B38: 996727 | C38: 661780 | D38: 334947 | E38: 792530 | F38: 527458 | G38: 265072 | H38: 204197 | I38: 134322 | J38: 69875
A39: 80 anos e mais | B39: 689371 | C39: 489766 | D39: 199605 | E39: 531873 | F39: 382686 | G39: 149187 | H39: 157498 | I39: 107080 | J39: 50418
A40: Idade inconsistente | B40: 56 | C40: 25 | D40: 31 | E40: 32 | F40: 14 | G40: 18 | H40: 24 | I40: 11 | J40: 13
A41: Não informado | B41: =E41+H41 -> 38088 | C41: =F41+I41 -> 21361 | D41: =G41+J41 -> 16727 | E41: 382 | F41: =SUM(F42:F51) -> 196 | G41: =SUM(G42:G51) -> 186 | H41: 37706 | I41: =SUM(I42:I51) -> 21165 | J41: =SUM(J42:J51) -> 16541
A42: 0 a 9 anos | B42: 611 | C42: 285 | D42: 326 | E42: 0 | F42: 0 | G42: 0 | H42: 611 | I42: 285 | J42: 326
A43: 10 a 19 anos | B43: 1630 | C43: 753 | D43: 877 | E43: 6 | F43: 3 | G43: 3 | H43: 1624 | I43: 750 | J43: 874
A44: 20 a 29 anos | B44: 2457 | C44: 1242 | D44: 1215 | E44: 9 | F44: 6 | G44: 3 | H44: 2448 | I44: 1236 | J44: 1212
A45: 30 a 39 anos | B45: 2614 | C45: 1397 | D45: 1217 | E45: 11 | F45: 2 | G45: 9 | H45: 2603 | I45: 1395 | J45: 1208
A46: 40 a 49 anos | B46: 3729 | C46: 2096 | D46: 1633 | E46: 41 | F46: 20 | G46: 21 | H46: 3688 | I46: 2076 | J46: 1612
A47: 50 a 59 anos | B47: 4956 | C47: 2889 | D47: 2067 | E47: 81 | F47: 41 | G47: 40 | H47: 4875 | I47: 2848 | J47: 2027
A48: 60 a 69 anos | B48: 8706 | C48: 4597 | D48: 4109 | E48: 102 | F48: 50 | G48: 52 | H48: 8604 | I48: 4547 | J48: 4057
A49: 70 a 79 anos | B49: 7907 | C49: 4711 | D49: 3196 | E49: 82 | F49: 47 | G49: 35 | H49: 7825 | I49: 4664 | J49: 3161
A50: 80 anos e mais | B50: 5469 | C50: 3388 | D50: 2081 | E50: 50 | F50: 27 | G50: 23 | H50: 5419 | I50: 3361 | J50: 2058
A51: Idade inconsistente | B51: 9 | C51: =SUM(F51,I51) -> 3 | D51: =SUM(G51,J51) -> 6 | E51: =F51+G51 -> 0 | F51: 0 | G51: 0 | H51: =I51+J51 -> 9 | I51: 3 | J51: 6
A52: Fonte: SIB/ANS/MS - 11/2024
A53: Caderno de Informação da Saúde Suplementar – dezembro/2024
A54: Notas: 1. O termo "beneficiário" refere-se a vínculos aos planos de saúde, podendo incluir vários vínculos para um mesmo indivíduo.
A55: 2. Inclui beneficiários com idades inconsistentes.
A56: 3. Inclui beneficiários em planos com tipo de contratação não informada.

Sheet tab 6
A4: Tabela 6 - Beneficiários de planos privados exclusivamente odontológicos por época de contratação do plano e sexo, segundo tipo de contratação do plano e faixas etárias (Brasil - setembro/2024)
L6: 1145926
A7: Tipo de contratação do plano e faixas etárias | B7: Total | E7: Novos | H7: Antigos
B8: Total | C8: Feminino | D8: Masculino | E8: Total | F8: Feminino | G8: Masculino | H8: Total | I8: Feminino | J8: Masculino
A9: Total | B9: =E9+H9 -> 34018400 | C9: =F9+I9 -> 17371879 | D9: 16646521 | E9: =F9+G9 -> 33791497 | F9: =F20+F31+F42 -> 17250594 | G9: =G20+G31+G42 -> 16540903 | H9: =I9+J9 -> 226903 | I9: =I20+I31+I42 -> 121285 | J9: =J20+J31+J42 -> 105618
A10: 0 a 9 anos | B10: =E10+H10 -> 3056352 | C10: 1469029 | D10: 1587323 | E10: =E21+E32+E43 -> 3018962 | F10: =F21+F32+F43 -> 1450693 | G10: =G21+G32+G43 -> 1568269 | H10: =I10+J10 -> 37390 | I10: =I21+I32+I43 -> 18336 | J10: =J21+J32+J43 -> 19054
A11: 10 a 19 anos | B11: 3739639 | C11: 1780769 | D11: 1911526 | E11: =E22+E33+E44 -> 3716868 | F11: 1769536 | G11: =G22+G33+G44 -> 1899988 | H11: 22771 | I11: =I22+I33+I44 -> 11233 | J11: 11538
A12: 20 a 29 anos | B12: 5594288 | C12: 2777865 | D12: 2764074 | E12: 5560869 | F12: 2759790 | G12: 2748730 | H12: 33419 | I12: 18075 | J12: 15344
A13: 30 a 39 anos | B13: 7092649 | C13: 3587139 | D13: 3459467 | E13: 7038813 | F13: 3557363 | G13: 3435407 | H13: 53836 | I13: 29776 | J13: 24060
A14: 40 a 49 anos | B14: 6608945 | C14: 3290811 | D14: 3255420 | E14: 6573899 | F14: 3271905 | G14: 3239280 | H14: 35046 | I14: 18906 | J14: 16140
A15: 50 a 59 anos | B15: 3957256 | C15: 2001062 | D15: 1922889 | E15: 3937008 | F15: 1990754 | G15: 1912949 | H15: 20248 | I15: 10308 | J15: 9940
A16: 60 a 69 anos | B16: 2417898 | C16: 1348782 | D16: 1082561 | E16: =E27+E38+E49 -> 2407636 | F16: 1343325 | G16: 1077756 | H16: 10262 | I16: 5457 | J16: 4805
A17: 70 a 79 anos | B17: 1198539 | C17: 679726 | D17: 511608 | E17: 1191268 | F17: 675055 | G17: 509008 | H17: 7271 | I17: 4671 | J17: 2600
A18: 80 anos e mais | B18: 352576 | C18: 194365 | D18: 151537 | E18: 345919 | F18: 189845 | G18: 149400 | H18: 6657 | I18: 4520 | J18: 2137
A19: Idade inconsistente | B19: 258 | C19: 144 | D19: 116 | E19: 255 | F19: 141 | G19: 116 | H19: 3 | I19: 3 | J19: 0
A20: Coletivo | B20: =E20+H20 -> 27155858 | C20: 13407230 | D20: 13748628 | E20: =F20+G20 -> 26933374 | F20: =SUM(F21:F30) -> 13288215 | G20: =SUM(G21:G30) -> 13645159 | H20: =I20+J20 -> 222484 | I20: =SUM(I21:I30) -> 119015 | J20: =SUM(J21:J30) -> 103469
A21: 0 a 9 anos | B21: =C21+D21 -> 2445339 | C21: =F21+I21 -> 1178670 | D21: =G21+J21 -> 1266669 | E21: =F21+G21 -> 2407949 | F21: 1160334 | G21: 1247615 | H21: =I21+J21 -> 37390 | I21: 18336 | J21: 19054
A22: 10 a 19 anos | B22: =C22+D22 -> 3176181 | C22: =F22+I22 -> 1547179 | D22: =G22+J22 -> 1629002 | E22: 3153437 | F22: 1535952 | G22: 1617485 | H22: 22744 | I22: 11227 | J22: 11517
A23: 20 a 29 anos | B23: 4823605 | C23: 2390435 | D23: 2433170 | E23: 4790547 | F23: 2372541 | G23: 2418006 | H23: 33058 | I23: 17894 | J23: 15164
A24: 30 a 39 anos | B24: 6118165 | C24: 3077052 | D24: 3041113 | E24: 6065059 | F24: 3047672 | G24: 3017387 | H24: 53106 | I24: 29380 | J24: 23726
A25: 40 a 49 anos | B25: 5561969 | C25: 2736844 | D25: 2825125 | E25: 5527907 | F25: 2718457 | G25: 2809450 | H25: 34062 | I25: 18387 | J25: 15675
A26: 50 a 59 anos | B26: 3032145 | C26: 1464764 | D26: 1567381 | E26: 3012885 | F26: 1454943 | G26: 1557942 | H26: 19260 | I26: 9821 | J26: 9439
A27: 60 a 69 anos | B27: 1346999 | C27: 667449 | D27: 679550 | E27: 1337526 | F27: 662392 | G27: 675134 | H27: 9473 | I27: 5057 | J27: 4416
A28: 70 a 79 anos | B28: 480651 | C28: 254154 | D28: 226497 | E28: 473765 | F28: 249683 | G28: 224082 | H28: 6886 | I28: 4471 | J28: 2415
A29: 80 anos e mais | B29: 170656 | C29: 90608 | D29: 80048 | E29: 164153 | F29: 86168 | G29: 77985 | H29: 6503 | I29: 4440 | J29: 2063
A30: Idade inconsistente | B30: 148 | C30: 75 | D30: 73 | E30: 146 | F30: 73 | G30: 73 | H30: 2 | I30: 2 | J30: 0
A31: Individual | B31: =E31+H31 -> 6859407 | C31: 3963040 | D31: 2896367 | E31: 6858035 | F31: =SUM(F32:F41) -> 3962341 | G31: =SUM(G32:G41) -> 2895694 | H31: 1372 | I31: =SUM(I32:I41) -> 699 | J31: =SUM(J32:J41) -> 673
A32: 0 a 9 anos | B32: =C32+D32 -> 611013 | C32: =F32+I32 -> 290359 | D32: =G32+J32 -> 320654 | E32: 611013 | F32: 290359 | G32: 320654 | H32: 0 | I32: 0 | J32: 0
A33: 10 a 19 anos | B33: =C33+D33 -> 563445 | C33: =F33+I33 -> 280930 | D33: =G33+J33 -> 282515 | E33: 563431 | F33: 280928 | G33: 282503 | H33: 14 | I33: 2 | J33: 12
A34: 20 a 29 anos | B34: 770486 | C34: 439683 | D34: 330803 | E34: 770320 | F34: 439596 | G34: 330724 | H34: 166 | I34: 87 | J34: 79
A35: 30 a 39 anos | B35: 974111 | C35: 555921 | D35: 418190 | E35: 973742 | F35: 555730 | G35: 418012 | H35: 369 | I35: 191 | J35: 178
A36: 40 a 49 anos | B36: 1046205 | C36: 616274 | D36: 429931 | E36: 1045973 | F36: 616153 | G36: 429820 | H36: 232 | I36: 121 | J36: 111
A37: 50 a 59 anos | B37: 924309 | C37: 569202 | D37: 355107 | E37: 924109 | F37: 569112 | G37: 354997 | H37: 200 | I37: 90 | J37: 110
A38: 60 a 69 anos | B38: 1070299 | C38: 667587 | D38: 402712 | E38: 1070087 | F38: 667477 | G38: 402610 | H38: 212 | I38: 110 | J38: 102
A39: 70 a 79 anos | B39: 717611 | C39: 432638 | D39: 284973 | E39: 717486 | F39: 432569 | G39: 284917 | H39: 125 | I39: 69 | J39: 56
A40: 80 anos e mais | B40: 181818 | C40: 110379 | D40: 71439 | E40: 181765 | F40: 110351 | G40: 71414 | H40: 53 | I40: 28 | J40: 25
A41: Idade inconsistente | B41: 110 | C41: 67 | D41: 43 | E41: 109 | F41: 66 | G41: 43 | H41: 1 | I41: 1 | J41: 0
A42: Não informado | B42: =E42+H42 -> 3135 | C42: 1609 | D42: 1526 | E42: 88 | F42: =SUM(F43:F52) -> 38 | G42: =SUM(G43:G52) -> 50 | H42: 3047 | I42: =SUM(I43:I52) -> 1571 | J42: =SUM(J43:J52) -> 1476
A43: 0 a 9 anos | B43: =C43+D43 -> 0 | C43: =F43+I43 -> 0 | D43: =G43+J43 -> 0 | E43: 0 | F43: 0 | G43: 0 | H43: 0 | I43: 0 | J43: 0
A44: 10 a 19 anos | B44: =C44+D44 -> 13 | C44: =F44+I44 -> 4 | D44: =G44+J44 -> 9 | E44: 0 | F44: 0 | G44: 0 | H44: 13 | I44: 4 | J44: 9
A45: 20 a 29 anos | B45: 197 | C45: 96 | D45: 101 | E45: 2 | F45: 2 | G45: 0 | H45: 195 | I45: 94 | J45: 101
A46: 30 a 39 anos | B46: 373 | C46: 209 | D46: 164 | E46: 12 | F46: 4 | G46: 8 | H46: 361 | I46: 205 | J46: 156
A47: 40 a 49 anos | B47: 771 | C47: 407 | D47: 364 | E47: 19 | F47: 9 | G47: 10 | H47: 752 | I47: 398 | J47: 354
A48: 50 a 59 anos | B48: 802 | C48: 401 | D48: 401 | E48: 14 | F48: 4 | G48: 10 | H48: 788 | I48: 397 | J48: 391
A49: 60 a 69 anos | B49: 600 | C49: 301 | D49: 299 | E49: 23 | F49: 11 | G49: 12 | H49: 577 | I49: 290 | J49: 287
A50: 70 a 79 anos | B50: 277 | C50: 139 | D50: 138 | E50: 17 | F50: 8 | G50: 9 | H50: 260 | I50: 131 | J50: 129
A51: 80 anos e mais | B51: 102 | C51: 52 | D51: 50 | E51: 1 | F51: 0 | G51: 1 | H51: 101 | I51: 52 | J51: 49
A52: Idade inconsistente | B52: =C52+D52 -> 0 | C52: =F52+I52 -> 0 | D52: =G52+J52 -> 0 | E52: =F52+G52 -> 0 | F52: 0 | G52: 0 | H52: =I52+J52 -> 0 | I52: 0 | J52: 0
A53: Fonte: SIB/ANS/MS - 11/2024
A54: Caderno de Informação da Saúde Suplementar – dezembro/2024
A55: Notas: 1. O termo "beneficiário" refere-se a vínculos aos planos de saúde, podendo incluir vários vínculos para um mesmo indivíduo.
A56: 2. Inclui beneficiários com idades inconsistentes.
A57: 3. Inclui beneficiários em planos com tipo de contratação não informada.

Sheet graf 9
A4: Gráfico 9 - Taxa de rotatividade dos beneficiários de planos de assistência médica, por tipo de contratação do plano, segundo modalidade da operadora (Brasil - setembro/2024)
A28: Fonte: SIB/ANS/MS - 09/2024
A29: Caderno de Informação da Saúde Suplementar - dezembro/2024
A30: Nota: A taxa de rotatividade mede o percentual dos vínculos substituídos no período em relação ao total existente no primeiro dia do período. O cálculo da taxa de rotatividade é realizado utilizando o menor valor entre o total de adesões e de cancelamentos em um período especificado.
A36: Taxa de rotatividade dos beneficiários de planos de assistência médica, por tipo de contratação do plano, segundo modalidade da operadora (Brasil - setembro/2024)
A39: Modalidade da operadora | B39: Total | C39: Coletivo | D39: Individual
A40: Total | B40: =+MIN(B58:C58)/D58 -> 0.2535065087 | C40: =+MIN(E58:F58)/G58 -> 0.2684902711 | D40: =+MIN(H58:I58)/J58 -> 0.1704562053
A41: Autogestão | B41: 0.06711197743 | C41: =+MIN(E59:F59)/G59 -> 0.06711391701 | D41: -
A42: Cooperativa médica | B42: 0.2295349813 | C42: 0.2541668642 | D42: =+MIN(H60:I60)/J60 -> 0.1360545831
A43: Filantropia | B43: 0.1778066405 | C43: 0.1826781018 | D43: =+MIN(H61:I61)/J61 -> 0.1576026192
A44: Medicina de grupo | B44: 0.2935041583 | C44: 0.3174549491 | D44: =+MIN(H62:I62)/J62 -> 0.2013867551
A45: Seguradora especializada em saúde | B45: 0.2749230678 | C45: 0.2800516497 | D45: =+MIN(H63:I63)/J63 -> 0.006143555197
A46: =+A28 -> Fonte: SIB/ANS/MS - 09/2024
A47: =+A29 -> Caderno de Informação da Saúde Suplementar - dezembro/2024
A48: =+A30 -> Nota: A taxa de rotatividade mede o percentual dos vínculos substituídos no período em relação ao total existente no primeiro dia do período. O cálculo da taxa de rotatividade é realizado utilizando o menor valor entre o total de adesões e de cancelamentos em um período especificado.
A53: Adesões, cancelamentos e beneficiários em planos de assistência médica, por tipo de contratação do plano, segundo modalidade da operadora (Brasil - setembro/2024)
A56: Modalidade da operadora | B56: Total | E56: Coletivo | H56: Individual
B57: Adesão | C57: Cancelamento | D57: Beneficiários | E57: Adesão | F57: Cancelamento | G57: Beneficiários | H57: Adesão | I57: Cancelamento | J57: Beneficiários
A58: Total | B58: =SUM(E58,H58) -> 13121722 | C58: =SUM(F58,I58) -> 13027755 | D58: =G58+J58 -> 51390219 | E58: =SUM(E59:E63) -> 11627972 | F58: 11444927 | G58: 42626971 | H58: 1493750 | I58: 1582828 | J58: 8763248
A59: Autogestão | B59: 264734 | C59: =SUM(F59,I59) -> 405556 | D59: 3944661 | E59: 264734 | F59: 405541 | G59: 3944547 | H59: 0 | I59: 15 | J59: 114
A60: Cooperativa médica | B60: 4361828 | C60: 4523771 | D60: 19002890 | E60: 3822646 | F60: 3877496 | G60: 15039907 | H60: 539182 | I60: 646275 | J60: 3962983
A61: Filantropia | B61: 188598 | C61: 188509 | D61: 1060191 | E61: 133624 | F61: 129953 | G61: 711377 | H61: 54974 | I61: 58556 | J61: 348814
A62: Medicina de Grupo | B62: 6372197 | C62: 6031558 | D62: 20550162 | E62: 5473898 | F62: 5177568 | G62: 16309615 | H62: 898299 | I62: 853990 | J62: 4240547
A63: Seguradora Especializada em Saúde | B63: 1934365 | C63: 1878361 | D63: 6832315 | E63: 1933070 | F63: 1854369 | G63: 6621525 | H63: 1295 | I63: 23992 | J63: 210790
A64: =+A46 -> Fonte: SIB/ANS/MS - 09/2024
A65: =+A47 -> Caderno de Informação da Saúde Suplementar - dezembro/2024

Sheet graf 10
A4: Gráfico 10 - Operadoras de planos privados de saúde em atividade (Brasil - dezembro/1999-setembro/2024)
A29: Fontes: SIB/ANS/MS - 09/2024 e CADOP/ANS/MS - 09/2024
A30: Caderno de Informação da Saúde Suplementar - dezembro/2024
A31: Nota: Operadoras com beneficiários, por modalidade da operadora.
A33: Operadoras de planos privados de saúde em atividade (Brasil - dezembro/1999-setembro/2024)
A36: Ano | B36: Médico-hospitalares em atividade | C36: Exclusivamente odontológicas em atividade | D36: Médico-hospitalares com beneficiários | E36: Exclusivamente odontológicas com beneficiários
A37: Até dez/99 | B37: 1970 | C37: 671 | D37: 1380 | E37: 441
A38: 2000-12-01 | B38: 2037 | C38: 726 | D38: 1289 | E38: 399
A39: 2001-12-01 | B39: 2000 | C39: 723 | D39: 1336 | E39: 426
A40: 2002-12-01 | B40: 1749 | C40: 659 | D40: 1291 | E40: 460
A41: 2003-12-01 | B41: 1654 | C41: 626 | D41: 1302 | E41: 478
A42: 2004-12-01 | B42: 1581 | C42: 606 | D42: 1273 | E42: 458
A43: 2005-12-01 | B43: 1527 | C43: 567 | D43: 1284 | E43: 445
A44: 2006-12-01 | B44: 1497 | C44: 585 | D44: 1251 | E44: 438
A45: 2007-12-01 | B45: 1408 | C45: 571 | D45: 1197 | E45: 430
A46: 2008-12-01 | B46: 1272 | C46: 499 | D46: 1135 | E46: 411
A47: 2009-12-01 | B47: 1218 | C47: 476 | D47: 1095 | E47: 403
A48: 2010-12-01 | B48: 1184 | C48: 433 | D48: 1045 | E48: 374
A49: 2011-12-01 | B49: 1180 | C49: 429 | D49: 1015 | E49: 369
A50: dez/12 | B50: 1123 | C50: 417 | D50: 962 | E50: 359
A51: 2013-12-01 | B51: 1086 | C51: 391 | D51: 920 | E51: 344
A52: 2014-12-01 | B52: 1049 | C52: 381 | D52: 874 | E52: 343
A53: 2015-12-01 | B53: 975 | C53: 364 | D53: 828 | E53: 327
A54: 2016-12-01 | B54: 958 | C54: 343 | D54: 790 | E54: 305
A55: 2017-12-01 | B55: 932 | C55: 334 | D55: 766 | E55: 291
A56: 2018-12-01 | B56: 920 | C56: 306 | D56: 749 | E56: 289
A57: 2019-12-01 | B57: 915 | C57: 295 | D57: 727 | E57: 280
A58: 2020-12-01 | B58: 909 | C58: 274 | D58: 711 | E58: 260
A59: 2021-12-01 | B59: 900 | C59: 271 | D59: 703 | E59: 254
A60: 2022-12-01 | B60: 897 | C60: 254 | D60: 692 | E60: 241
A61: 2023-12-01 | B61: 877 | C61: 252 | D61: 680 | E61: 238
A62: 2024-09-01 | B62: 874 | C62: 246 | D62: 670 | E62: 239
A63: =+A29 -> Fontes: SIB/ANS/MS - 09/2024 e CADOP/ANS/MS - 09/2024
A64: =+A30 -> Caderno de Informação da Saúde Suplementar - dezembro/2024
A65: Nota: Operadoras com beneficiários, por modalidade da operadora.

Sheet tab 7
A4: Tabela 7 - Resumo do registro de operadoras (Brasil - setembro/2024)
A7: Registro | B7: Total | C7: Operadoras médico-hospitalares | D7: Operadoras exclusivamente odontológicas
A8: Registros novos (1) | B8: 25 | C8: 21 | D8: 4
A9: Registros cancelados (1) | B9: 37 | C9: 25 | D9: 12
A10: Operadoras em atividade | B10: 1120 | C10: 874 | D10: 246
A11: Operadoras com beneficiários (2) | B11: 909 | C11: 670 | D11: 239
A12: Fontes: CADOP/ANS/MS - 09/2024 e SIB/ANS/MS - 09/2024
A13: Caderno de Informação da Saúde Suplementar - dezembro/2024
A14: Nota: (1) Registros novos e cancelados no ano.
A15: (2) Operadoras com beneficiários, por modalidade da operadora.

Sheet graf 11
A4: Gráfico 11 - Distribuição dos beneficiários de planos privados de assistência médica entre as operadoras, segundo cobertura assistencial do plano (Brasil - setembro/2024)
A30: Fontes: SIB/ANS/MS - 09/2024 e CADOP/ANS/MS - 09/2024
A31: Caderno de Informação da Saúde Suplementar - dezembro/2024
A32: Nota: O termo "beneficiário" refere-se a vínculos aos planos de saúde, podendo incluir vários vínculos para um mesmo indivíduo.
A33: Curva A: 115 operadoras (16,7% do total) detêm 80,1% dos beneficiários.
A34: Curva B: 213 operadoras (31,0% do total) detêm 90,0% dos beneficiários.
A35: Curva C: 687 operadoras (100,0% do total) detêm 100,0% dos beneficiários.
A39: Gráfico 12 - Distribuição dos beneficiários de planos privados exclusivamente odontológicos entre as operadoras, segundo cobertura assistencial do plano (Brasil - setembro/2024)
A64: =A30 -> Fontes: SIB/ANS/MS - 09/2024 e CADOP/ANS/MS - 09/2024
A65: =A31 -> Caderno de Informação da Saúde Suplementar - dezembro/2024
A66: Nota: O termo "beneficiário" refere-se a vínculos aos planos de saúde, podendo incluir vários vínculos para um mesmo indivíduo.
A67: Curva A: 19 operadoras (5,5% do total) detêm 80,2% dos beneficiários.
A68: Curva B: 46 operadoras (13,3% do total) detêm 90,1% dos beneficiários.
A69: Curva C: 345 operadoras (100,0% do total) detêm 100,0% dos beneficiários.
A73: Distribuição dos beneficiários de planos privados de saúde entre as operadoras, segundo cobertura assistencial do plano (Brasil - setembro/2024)
A76: Cobertura assistencial do plano | B76: Percentual acumulado de beneficiários | C76: Operadoras | D76: Percentual acumulado de operadoras
A77: Assistência médica com ou sem odontologia
A78: 7546169 | B78: 0.1466634549 | C78: 2 | D78: 0.002971768202
A79: 10665998 | B79: 0.2072988448 | C79: 3 | D79: 0.004457652303
A80: 15515262 | B80: 0.3015466429 | C80: 5 | D80: 0.007429420505
A81: 21186902 | B81: 0.4117777174 | C81: 10 | D81: 0.01337295691
A82: 25740659 | B82: 0.5002821935 | C82: 18 | D82: 0.02674591382
A83: 30871630 | B83: 0.6000051038 | C83: 34 | D83: 0.05200594354
A84: 36049786 | B84: 0.7006450774 | C84: 64 | D84: 0.09658246657
A85: 41213335 | B85: 0.8010011568 | C85: 115 | D85: 0.1738484398
A86: 46293110 | B86: 0.899729048 | C86: 213 | D86: 0.3224368499
A87: 51452279 | B87: 1 | C87: 687 | D87: 1
A89: Exclusivamente odontológico
A90: 8048320 | B90: 0.236169943 | C90: 1 | D90: 0.003048780488
A91: 11645470 | B91: 0.3417247309 | C91: 2 | D91: 0.006097560976
A92: 14516295 | B92: 0.4259662343 | C92: 3 | D92: 0.009146341463
A93: 18623238 | B93: 0.5464803905 | C93: 5 | D93: 0.01219512195
A94: 21138634 | B94: 0.6202921835 | C94: 7 | D94: 0.02134146341
A95: 24087075 | B95: 0.7068112512 | C95: 10 | D95: 0.03048780488
A96: 27339030 | B96: 0.8022366353 | C96: 19 | D96: 0.05792682927
A97: 30706455 | B97: 0.9010503716 | C97: 46 | D97: 0.1402439024
A98: 34078511 | B98: 1 | C98: 345 | D98: 1
A99: =A30 -> Fontes: SIB/ANS/MS - 09/2024 e CADOP/ANS/MS - 09/2024
A100: =A31 -> Caderno de Informação da Saúde Suplementar - dezembro/2024
A101: Nota: O termo "beneficiário" refere-se a vínculos aos planos de saúde, podendo incluir vários vínculos para um mesmo indivíduo.
I845: =SUM(I3:I844) -> 0

Sheet tab 8
A4: Tabela 8 - Planos privados de assistência médica, por tipo de contratação, segundo época de contratação e abrangência geográfica (Brasil - setembro/2024)
A7: Época de contratação e abrangência geográfica do plano | B7: Total (1) | C7: Coletivo | G7: Individual
C8: Total | D8: Empresarial | E8: Por adesão | F8: Não identificado
A9: Total | B9: =SUM(D9:G9) -> 92390 | C9: =SUM(D9:F9) -> 57589 | D9: =SUM(D16,D23) -> 38530 | E9: 18749 | F9: 310 | G9: 34801
A10: Nacional | B10: 27540 | C10: 16485 | D10: 11135 | E10: 5328 | F10: 22 | G10: 11055
A11: Grupo de estados | B11: 3340 | C11: 2142 | D11: 1512 | E11: 618 | F11: 12 | G11: 1198
A12: Estadual | B12: 5681 | C12: 3494 | D12: 2176 | E12: 1295 | F12: 23 | G12: 2187
A13: Grupo de municípios | B13: 44028 | C13: 27967 | D13: 18515 | E13: 9244 | F13: 208 | G13: 16061
A14: Municipal | B14: 11801 | C14: 7501 | D14: 5192 | E14: 2264 | F14: 45 | G14: 4300
A16: Novos | B16: =SUM(D16:G16) -> 43791 | C16: =SUM(D16:F16) -> 31783 | D16: =SUM(D17:D21) -> 21640 | E16: =SUM(E17:E21) -> 9835 | F16: =SUM(F17:F21) -> 308 | G16: =SUM(G17:G21) -> 12008
A17: Nacional | B17: 9935 | C17: 8152 | D17: 5823 | E17: 2307 | F17: 22 | G17: 1783
A18: Grupo de estados | B18: 1437 | C18: 1161 | D18: 880 | E18: 269 | F18: 12 | G18: 276
A19: Estadual | B19: 3863 | C19: 2734 | D19: 1719 | E19: 992 | F19: 23 | G19: 1129
A20: Grupo de municípios | B20: 24063 | C20: 16769 | D20: 11293 | E20: 5268 | F20: 208 | G20: 7294
A21: Municipal | B21: 4493 | C21: 2967 | D21: 1925 | E21: 999 | F21: 43 | G21: 1526
A23: Antigos | B23: =SUM(D23:G23) -> 48599 | C23: =SUM(D23:F23) -> 25806 | D23: =SUM(D24:D28) -> 16890 | E23: =SUM(E24:E28) -> 8914 | F23: =SUM(F24:F28) -> 2 | G23: =SUM(G24:G28) -> 22793
A24: Nacional | B24: 17605 | C24: 8333 | D24: 5312 | E24: 3021 | F24: 0 | G24: 9272
A25: Grupo de estados | B25: 1903 | C25: 981 | D25: 632 | E25: 349 | F25: 0 | G25: 922
A26: Estadual | B26: 1818 | C26: 760 | D26: 457 | E26: 303 | F26: 0 | G26: 1058
A27: Grupo de municípios | B27: 19965 | C27: 11198 | D27: 7222 | E27: 3976 | F27: 0 | G27: 8767
A28: Municipal | B28: 7308 | C28: 4534 | D28: 3267 | E28: 1265 | F28: 2 | G28: 2774
A29: Fontes: SIB/ANS/MS - 09/2024 e RPS/ANS/MS - 09/2024
A30: Caderno de Informação da Saúde Suplementar - dezembro/2024
A31: Nota: (1) Exclui tipo de contratação não identificado.

Sheet tab 9
A4: Tabela 9 - Planos privados de assistência médica, com beneficiários, por época de contratação, segundo número de beneficiários (Brasil - setembro/2024)
A7: Número de beneficiários do plano | B7: Total | C7: Planos de saúde novos registrados com beneficiários | E7: Planos de saúde antigos cadastrados com beneficiários
C8: Absoluto | D8: Relativo | E8: Absoluto | F8: Relativo
A9: Total | B9: =SUM(C9,E9) -> 47244 | C9: =SUM(C10:C15) -> 30349 | D9: 1 | E9: =SUM(E10:E15) -> 16895 | F9: 1
A10: 1 a 100 beneficiários | B10: =SUM(C10,E10) -> 28365 | C10: 13863 | D10: =C10/$C$9 -> 0.4567860556 | E10: 14502 | F10: =E10/$E$9 -> 0.8583604617
A11: 101 a 1.000 beneficiários | B11: 11868 | C11: 9914 | D11: 0.326666447 | E11: 1954 | F11: 0.1156555194
A12: 1.001 a 10.000 beneficiários | B12: 5990 | C12: 5589 | D12: 0.1841576329 | E12: 401 | F12: 0.02373483279
A13: 10.001 a 50.000 beneficiários | B13: 885 | C13: 856 | D13: 0.02820521269 | E13: 29 | F13: 0.001716484167
A14: 50.001 a 100.000 beneficiários | B14: 75 | C14: 75 | D14: 0.002471251112 | E14: 0 | F14: 0
A15: Acima de 100.000 beneficiários | B15: 61 | C15: 52 | D15: 0.001713400771 | E15: 9 | F15: 0.0005327019828
A16: Fontes: SIB/ANS/MS - 09/2024 e RPS/ANS/MS - 09/2024
A17: Caderno de Informação - dezembro/2024

Sheet tab 10
A4: Tabela 10 - Receitas e despesas, por modalidade das operadoras, por tipo, segundo a modalidade da operadora
A5: (Brasil - 3º trimestre/2024)
A7: Modalidade da operadora | B7: Receita de contraprestações | C7: Outras receitas operacionais | D7: Despesa assistencial | E7: Despesa administrativa | F7: Despesa de comercialização | G7: Outras despesas operacionais | H7: Receitas Administrativas
A8: Total | B8: 233834093461 | C8: 13946055673 | D8: 193833869424 | E8: 22498438907 | F8: 8091679980 | G8: 19451343046 | H8: 37399421
A10: Operadoras médico-hospitalares | B10: =SUM(B11:B15) -> 228816273449 | C10: 13829192503 | D10: 192589700902 | E10: 20859597094 | F10: 7392669120 | G10: 18827101449 | H10: 37349942
A11: Autogestão | B11: 22166826144 | C11: 1756441037 | D11: 21365200441 | E11: 2296621713 | F11: 5790258 | G11: 1920037459 | H11: 4916894
A12: Cooperativa Médica | B12: 74412452485 | C12: 5489153654 | D12: 61971337697 | E12: 7439795260 | F12: 1058371090 | G12: 8129932944 | H12: 25311075
A13: Filantropia | B13: 3001043983 | C13: 3665148340 | D13: 2411558733 | E13: 316452472 | F13: 65677055 | G13: 3654719128 | H13: 0
A14: Medicina de Grupo | B14: 70378653350 | C14: 2802864453 | D14: 55007924602 | E14: 8222630544 | F14: 3305532075 | G14: 3793665500 | H14: 6415877
A15: Seguradora Especializada em Saúde | B15: 58857297487 | C15: 115585019 | D15: 51833679429 | E15: 2584097105 | F15: 2957298642 | G15: 1328746418 | H15: 706096
A17: Operadoras exclusivamente odontológicas | B17: =SUM(B18:B19) -> 3248959458 | C17: 85742251 | D17: 1244168522 | E17: 825457298 | F17: 414962920 | G17: 238564739 | H17: 49477
A18: Cooperativa odontológica | B18: 672729148 | C18: 76054000 | D18: 389358451 | E18: 216547143 | F18: 45193824 | G18: 86304161 | H18: 15000
A19: Odontologia de grupo | B19: 2576230310 | C19: 9688251 | D19: 854810071 | E19: 608910155 | F19: 369769096 | G19: 152260578 | H19: 34477
A21: Administradora de Benefícios | B21: 1768860555 | C21: 31120919 | D21: 0 | E21: 813384516 | F21: 284047940 | G21: 385676859 | H21: 0
A22: Fontes: DIOPS/ANS/MS - 25/11/2024
A23: Caderno de Informação da Saúde Suplementar - dezembro/2024
A24: Notas: Dados preliminares, sujeitos a revisão.
A30: Receitas e despesas, por modalidade das operadoras, por tipo, segundo a modalidade da operadra (Brasil-2023)
A33: Modalidade da operadora | B33: Receita de contraprestações | C33: Outras receitas operacionais | D33: Despesa assistencial | E33: Despesa administrativa | F33: Despesa de comercialização | G33: Outras despesas operacionais | H33: Receitas Administrativas
A34: Total | B34: =B36+B43+B47 -> 282295323509 | C34: =C36+C43+C47 -> 15750144641 | D34: 240833081946 | E34: 28618908009 | F34: 9606554568 | G34: 23871724084 | H34: 348728404
A36: Operadoras médico-hospitalares | B36: =SUM(B37:B41) -> 275267465459 | C36: 15509173705 | D36: 239035006464 | E36: 26266791373 | F36: 8674945402 | G36: 23074874965 | H36: 334249116
A37: Autogestão | B37: 27890697721 | C37: 1975223951 | D37: 25882905833 | E37: 2986221079 | F37: 7512469 | G37: 2490528184 | H37: 1452046
A38: Cooperativa Médica | B38: 92769992834 | C38: 6676652659 | D38: 79380621837 | E38: 10060621946 | F38: 1499639456 | G38: 10309863844 | H38: 330680699
A39: Filantropia | B39: 3593067225 | C39: 4195243844 | D39: 2882938318 | E39: 334191313 | F39: 60261367 | G39: 4456016007 | H39: 0
A40: Medicina de Grupo | B40: 81474992451 | C40: 2287600542 | D40: 67624851656 | E40: 9676721596 | F40: 3637192180 | G40: 4256251551 | H40: 2017171
A41: Seguradora Especializada em Saúde | B41: 69538715228 | C41: 374452709 | D41: 63263688820 | E41: 3209035439 | F41: 3470339930 | G41: 1562215379 | H41: 99200
A43: Operadoras exclusivamente odontológicas | B43: =B44+B45 -> 4341509084 | C43: =C44+C45 -> 181788834 | D43: 1798075482 | E43: 1139672818 | F43: 507489613 | G43: 317488414 | H43: 14479288
A44: Cooperativa odontológica | B44: 1024396882 | C44: 101837052 | D44: 585035691 | E44: 329145100 | F44: 57312899 | G44: 132579248 | H44: 5000
A45: Odontologia de grupo | B45: 3317112202 | C45: 79951782 | D45: 1213039791 | E45: 810527718 | F45: 450176714 | G45: 184909166 | H45: 14474288
A47: Administradora de Benefícios | B47: 2686348966 | C47: 59182102 | D47: 0 | E47: 1212443818 | F47: 424119553 | G47: 479360705 | H47: 0
A48: =A22 -> Fontes: DIOPS/ANS/MS - 25/11/2024
A49: =A23 -> Caderno de Informação da Saúde Suplementar - dezembro/2024
A50: Notas: Dados preliminares, sujeitos a revisão.

Sheet graf 13
A4: Gráfico 13 - Taxa de sinistralidade das operadoras médico-hospitalares, por modalidade da operadora (Brasil - 2022-2024)
A29: Fontes: DIOPS/ANS/MS - 25/11/2024
A30: Caderno de Informação da Saúde Suplementar - dezembro/2024
A31: Notas: Dados preliminares, sujeitos a revisão.
A34: Gráfico 14 - Taxa de sinistralidade das operadoras exclusivamente odontológicas, por modalidade da operadora (Brasil - 2022-2024)
A59: Fontes: DIOPS/ANS/MS - 25/11/2024
A60: Caderno de Informação da Saúde Suplementar - dezembro/2024
A61: Notas: Dados preliminares, sujeitos a revisão.
A67: Taxa de sinistralidade das operadoras de planos privados de saúde, segundo modalidade da operadora (Brasil - 2022-2024)
A70: Modalidade | B70: 3º Tri 2022 | C70: 4º Tri 2022 | D70: 1º Tri 2023 | E70: 2º Tri 2023 | F70: 3º Tri 2023 | G70: 4º Tri 2023 | H70: 1º Tri 2024 | I70: 2º Tri 2024 | J70: 3º Tri 2024
A71: Operadoras médico-hospitalares | B71: 0.902 | C71: 0.891 | D71: 0.871 | E71: 0.878 | F71: 0.881 | G71: 0.868 | H71: 0.824 | I71: 0.837 | J71: ='tab 10'!D10/'tab 10'!B10 -> 0.8416783387
A72: Autogestão | B72: 0.948 | C72: 0.94 | D72: 0.918 | E72: 0.935 | F72: 0.945 | G72: 0.928 | H72: 0.926 | I72: 0.95 | J72: ='tab 10'!D11/'tab 10'!B11 -> 0.9638366946
A73: Cooperativa médica | B73: 0.889 | C73: 0.86 | D73: 0.851 | E73: 0.862 | F73: 0.864 | G73: 0.856 | H73: 0.807 | I73: 0.829 | J73: ='tab 10'!D12/'tab 10'!B12 -> 0.8328086984
A74: Filantropia | B74: 0.862 | C74: 0.851 | D74: 0.783 | E74: 0.807 | F74: 0.815 | G74: 0.802 | H74: 0.78 | I74: 0.798 | J74: ='tab 10'!D13/'tab 10'!B13 -> 0.8035732721
A75: Medicina de grupo | B75: 0.885 | C75: 0.879 | D75: 0.821 | E75: 0.839 | F75: 0.845 | G75: 0.83 | H75: 0.768 | I75: 0.774 | J75: ='tab 10'!D14/'tab 10'!B14 -> 0.7815995616
A76: Seguradora especializada em saúde | B76: 0.922 | C76: 0.926 | D76: 0.942 | E76: 0.928 | F76: 0.923 | G76: 0.91 | H76: 0.873 | I76: 0.881 | J76: ='tab 10'!D15/'tab 10'!B15 -> 0.880666997
A78: Operadoras exclusivamente odontológicas | B78: 0.41 | C78: 0.417 | D78: 0.361 | E78: 0.392 | F78: 0.412 | G78: 0.414 | H78: 0.364 | I78: 0.384 | J78: ='tab 10'!D17/'tab 10'!B17 -> 0.3829436895
A79: Cooperativa odontológica | B79: 0.546 | C79: 0.555 | D79: 0.527 | E79: 0.558 | F79: 0.575 | G79: 0.571 | H79: 0.536 | I79: 0.566 | J79: ='tab 10'!D18/'tab 10'!B18 -> 0.5787744624
A80: Odontologia de grupo | B80: 0.374 | C80: 0.375 | D80: 0.316 | E80: 0.346 | F80: 0.367 | G80: 0.366 | H80: 0.317 | I80: 0.336 | J80: ='tab 10'!D19/'tab 10'!B19 -> 0.3318065422
A81: Fontes: DIOPS/ANS/MS - 25/11/2024
A82: Caderno de Informação da Saúde Suplementar - dezembro/2024
A83: Notas: Dados preliminares, sujeitos a revisão.

Sheet graf 15
A4: Gráfico 15 - Índice combinado saúde das operadoras médico-hospitalares, por modalidade da operadora (Brasil - 2022-2024)
A29: Fontes: DIOPS/ANS/MS - 25/11/2024
A30: Caderno de Informação da Saúde Suplementar - dezembro/2024
A31: Notas: Dados preliminares, sujeitos a revisão.
A34: Gráfico 16 - Índice combinado saúde das operadoras exclusivamente odontológicas, por modalidade da operadora (Brasil - 2022-2024)
A59: Fontes: DIOPS/ANS/MS - 25/11/2024
A60: Caderno de Informação da Saúde Suplementar - dezembro/2024
A61: Notas: Dados preliminares, sujeitos a revisão.
A66: Índice combinado saúde das operadoras de planos privados de saúde, segundo modalidade da operadora (Brasil - 2022-2024)
A69: Modalidade | B69: 3º Tri 2022 | C69: 4º Tri 2022 | D69: 1º Tri 2023 | E69: 2º Tri 2023 | F69: 3º Tri 2023 | G69: 4º Tri 2023 | H69: 1º Tri 2024 | I69: 2º Tri 2024 | J69: 3º Tri 2024
A70: Operadoras médico-hospitalares | B70: 1.059 | C70: 1.043 | D70: 1.025 | E70: 1.033 | F70: 1.031 | G70: 1.02 | H70: 0.976 | I70: 0.985 | J70: =SUM('tab 10'!D10:G10)/(SUM('tab 10'!B10:C10)+'tab 10'!H10) -> 0.987581538
A71: Autogestão | B71: 1.078 | C71: 1.07 | D71: 1.055 | E71: 1.073 | F71: 1.071 | G71: 1.05 | H71: 1.04 | I71: 1.069 | J71: =SUM('tab 10'!D11:G11)/(SUM('tab 10'!B11:C11)+'tab 10'!H11) -> 1.069351932
A72: Cooperativa médica | B72: 1.047 | C72: 1.015 | D72: 1.013 | E72: 1.025 | F72: 1.021 | G72: 1.015 | H72: 0.97 | I72: 0.983 | J72: =SUM('tab 10'!D12:G12)/(SUM('tab 10'!B12:C12)+'tab 10'!H12) -> 0.9833913246
A73: Filantropia | B73: 1.03 | C73: 1.032 | D73: 1.014 | E73: 1.009 | F73: 1.006 | G73: 0.993 | H73: 0.97 | I73: 0.966 | J73: =SUM('tab 10'!D13:G13)/(SUM('tab 10'!B13:C13)+'tab 10'!H13) -> 0.9673299352
A74: Medicina de grupo | B74: 1.084 | C74: 1.06 | D74: 1.003 | E74: 1.023 | F74: 1.03 | G74: 1.017 | H74: 0.952 | I74: 0.95 | J74: =SUM('tab 10'!D14:G14)/(SUM('tab 10'!B14:C14)+'tab 10'!H14) -> 0.9609473746
A75: Seguradora especializada em saúde | B75: 1.041 | C75: 1.051 | D75: 1.058 | E75: 1.044 | F75: 1.033 | G75: 1.023 | H75: 0.99 | I75: 0.998 | J75: =SUM('tab 10'!D15:G15)/(SUM('tab 10'!B15:C15)+'tab 10'!H15) -> 0.9954256301
A77: Operadoras exclusivamente odontológicas | B77: 0.808 | C77: 0.834 | D77: 0.763 | E77: 0.803 | F77: 0.828 | G77: 0.829 | H77: 0.787 | I77: 0.812 | J77: =SUM('tab 10'!D17:G17)/(SUM('tab 10'!B17:C17)+'tab 10'!H17) -> 0.8165986987
A78: Cooperativa odontológica | B78: 0.956 | C78: 0.973 | D78: 0.938 | E78: 0.96 | F78: 0.983 | G78: 0.98 | H78: 0.952 | I78: 0.977 | J78: =SUM('tab 10'!D18:G18)/(SUM('tab 10'!B18:C18)+'tab 10'!H18) -> 0.9847828563
A79: Odontologia de grupo | B79: 0.766 | C79: 0.787 | D79: 0.711 | E79: 0.756 | F79: 0.782 | G79: 0.779 | H79: 0.739 | I79: 0.765 | J79: =SUM('tab 10'!D19:G19)/(SUM('tab 10'!B19:C19)+'tab 10'!H19) -> 0.7678986706
A81: Administradora de Benefícios | B81: 0.678 | C81: 0.74 | D81: 0.685 | E81: 0.71 | F81: 0.707 | G81: 0.771 | H81: 0.801 | I81: 0.827 | J81: =SUM('tab 10'!D21:G21)/(SUM('tab 10'!B21:C21)+'tab 10'!H21) -> 0.8239580998
A82: Fontes: DIOPS/ANS/MS - 25/11/2024
A83: Caderno de Informação da Saúde Suplementar - dezembro/2024
A84: Notas: Dados preliminares, sujeitos a revisão.

Sheet tab 11
A4: Tabela 11 - Estabelecimentos de saúde por atendimento a planos privados de saúde, segundo tipo (Brasil - setembro/2024)
A7: Tipo de estabelecimento | B7: Total | D7: Atendem a planos privados
B8: Absoluto | C8: Relativo | D8: Absoluto | E8: Relativo
A9: Total | B9: =SUM(B10:B17) -> 333233 | C9: 1 | D9: =SUM(D10:D17) -> 194927 | E9: =+D9/B9*100 -> 58.49570721
A10: Clinica ou ambulatório especializado | B10: 78227 | C10: 1 | D10: 44294 | E10: =+D10/B10*100 -> 56.6223938
A11: Consultório isolado | B11: 205782 | C11: 1 | D11: 125390 | E11: 60.93341497
A12: Hospital especializado | B12: 1036 | C12: 1 | D12: 542 | E12: 52.31660232
A13: Hospital geral | B13: 5452 | C13: 1 | D13: 2073 | E13: =+D13/B13*100 -> 38.02274395
A14: Policlínica | B14: 11961 | C14: 1 | D14: 6373 | E14: 53.2814982
A15: Pronto socorro especializado | B15: 65 | C15: 1 | D15: 26 | E15: 40
A16: Pronto socorro geral | B16: 266 | C16: 1 | D16: 39 | E16: 14.66165414
A17: Unidade de serviço de apoio à diagnose e terapia | B17: 30444 | C17: 1 | D17: 16190 | E17: 53.17960846
A18: Fonte: CNES/MS - 09/2024
A19: Caderno de Informação da Saúde Suplementar - dezembro/2024

Sheet tab 12
A4: Tabela 12 - Estabelecimentos de saúde por tipo de convênio, segundo tipo de atendimento (Brasil - setembro/2024)
A7: Tipo de atendimento | B7: SUS | C7: Particular | D7: Plano de saúde público | E7: Plano de saúde privado
A8: Ambulatorial | B8: 95363 | C8: 299206 | D8: 18064 | E8: 188976
A9: Para internação | B9: 6265 | C9: 3975 | D9: 707 | E9: 2953
A10: Serviços de apoio à diagnose e terapia | B10: 26883 | C10: 40339 | D10: 4217 | E10: 25838
A11: Urgência | B11: 11520 | C11: 4204 | D11: 642 | E11: 2842
A12: Fonte: CNES/MS - 09/2024
A13: Caderno de Informação da Saúde Suplementar - dezembro/2024
A14: Nota: A soma das parcelas não corresponde ao total de estabelecimentos uma vez que um mesmo estabelecimento pode atender a mais de uma forma de financiamento e constar em duas ou mais colunas.

Sheet tab 13
A4: Tabela 13 - Leitos para internação, por vínculo ao SUS, segundo localização (Brasil - setembro/2024)
A7: Localização | B7: Total | C7: SUS | E7: Não-SUS
C8: Absoluto | D8: Relativo | E8: Absoluto | F8: Relativo | G8: 193976530
A9: Brasil | B9: =C9+E9 -> 454363 | C9: 313095 | D9: =C9/B9*100 -> 68.9085599 | E9: 141268 | F9: =E9/B9*100 -> 31.0914401
A10: Capitais | B10: =C10+E10 -> 150601 | C10: 89708 | D10: =C10/B10*100 -> 59.56666954 | E10: 60893 | F10: =E10/B10*100 -> 40.43333046
A11: Interior | B11: =B9-B10 -> 303762 | C11: =C9-C10 -> 223387 | D11: =C11/B11*100 -> 73.54013998 | E11: =E9-E10 -> 80375 | F11: =E11/B11*100 -> 26.45986002
A12: Leitos por 1.000 habitantes | B12: =B9/$G8*1000 -> 2.342360697 | C12: =C9/$G8*1000 -> 1.614087024 | D12: - | E12: =E9/$G8*1000 -> 0.7282736731 | F12: -
A13: Fonte: CNES/MS - 09/2024
A14: Caderno de Informação da Saúde Suplementar - dezembro/2024
A15: Nota: Os dados referentes a leitos Complementares foram retirados da consulta referente a leitos de Internação.

Sheet graf 17
A4: Gráfico 17 - Demandas dos consumidores, por classificação do atendimento (Brasil - janeiro-setembro/2010-janeiro-setembro/2024)
A27: Fonte: Tabnet/ANS/MS - 13/10/2024
A28: Caderno de Informação da Saúde Suplementar - dezembro/2024
A31: Demandas dos consumidores, por classificação do atendimento (Brasil - janeiro-setembro/2010-janeiro-setembro/2024)
A34: Ano | B34: Total | C34: Informação | D34: Reclamação
A35: 2010 | B35: =C35+D35 -> 151232 | C35: 130242 | D35: 20990
A36: 2011 | B36: 118059 | C36: 86517 | D36: 31542
A37: 2012 | B37: 201685 | C37: 155440 | D37: 46245
A38: 2013 | B38: 293577 | C38: 232653 | D38: 60924
A39: 2014 | B39: 237185 | C39: 174878 | D39: 62307
A40: 2015 | B40: 272517 | C40: 196929 | D40: 75588
A41: 2016 | B41: =C41+D41 -> 285621 | C41: 214135 | D41: 71486
A42: 2017 | B42: =SUM(C42:D42) -> 277925 | C42: 207163 | D42: 70762
A43: 2018 | B43: 275170 | C43: 197217 | D43: 77953
A44: 2019 | B44: 311972 | C44: 216640 | D44: 95332
A45: 2020 | B45: 326349 | C45: 214017 | D45: 112332
A46: 2021 | B46: 303858 | C46: 167001 | D46: 136857
A47: 2022 | B47: 369218 | C47: 190469 | D47: 178749
A48: 2023 | B48: 284639 | C48: 161112 | D48: 262085
A49: 2024 | B49: =C49+D49 -> 477990 | C49: 180411 | D49: 297579
A50: =+A27 -> Fonte: Tabnet/ANS/MS - 13/10/2024
A51: =+A28 -> Caderno de Informação da Saúde Suplementar - dezembro/2024

Sheet tab 14
A4: Tabela 14 - Reclamações por 100.000 beneficiários de planos privados de saúde, segundo Unidades da Federação (Brasil - janeiro-setembro/2024)
A7: Unidades da Federação | B7: Reclamações (jan-set/2024) | C7: Beneficiários (set/2024) | D7: Reclamações por 100.000 beneficiários
A8: Brasil | B8: =SUM(B9:B36) -> 297579 | C8: 85530790 | D8: =B8/C8*100000 -> 347.920322
A9: Acre | B9: 282 | C9: 66849 | D9: =B9/C9*100000 -> 421.8462505
A10: Alagoas | B10: 2389 | C10: 827557 | D10: =B10/C10*100000 -> 288.6810214
A11: Amapá | B11: 2258 | C11: 111429 | D11: 2026.402463
A12: Amazonas | B12: 705 | C12: 1201540 | D12: 58.6747008
A13: Bahia | B13: 19698 | C13: 3645960 | D13: =B13/C13*100000 -> 540.2692295
A14: Ceará | B14: 7003 | C14: 2827616 | D14: 247.6644636
A15: Distrito Federal | B15: 9478 | C15: 1669863 | D15: 567.5914731
A16: Espírito Santo | B16: 6025 | C16: 2161588 | D16: 278.7302668
A17: Goiás | B17: 6555 | C17: 2340653 | D17: 280.0500544
A18: Maranhão | B18: 3499 | C18: 899000 | D18: 389.2102336
A19: Mato Grosso | B19: 22366 | C19: 984698 | D19: 2271.356294
A20: Mato Grosso do Sul | B20: 1607 | C20: 1026896 | D20: 156.4910176
A21: Minas Gerais | B21: 2645 | C21: 8759860 | D21: 30.19454649
A22: Pará | B22: 4444 | C22: 1470643 | D22: =B22/C22*100000 -> 302.1807468
A23: Paraíba | B23: 3437 | C23: 1023740 | D23: 335.7297751
A24: Paraná | B24: 13039 | C24: 5031368 | D24: 259.1541704
A25: Pernambuco | B25: 1957 | C25: 2781667 | D25: 70.35349666
A26: Piauí | B26: 8895 | C26: 651838 | D26: 1364.602861
A27: Rio de Janeiro | B27: 57795 | C27: 9477209 | D27: 609.8314388
A28: Rio Grande do Norte | B28: 3501 | C28: 1199966 | D28: 291.7582665
A29: Rio Grande do Sul | B29: 1108 | C29: 3715124 | D29: 29.82403817
A30: Rondônia | B30: 525 | C30: 293208 | D30: 179.0537775
A31: Roraima | B31: 4730 | C31: 43141 | D31: 10964.04812
A32: Santa Catarina | B32: 5308 | C32: 2630312 | D32: 201.8011551
A33: São Paulo | B33: 3268 | C33: 29768145 | D33: 10.97817818
A34: Sergipe | B34: 103556 | C34: 601258 | D34: 17223.22198
A35: Tocantins | B35: 857 | C35: 258545 | D35: 331.4703437
A36: Não informada | B36: 649 | C36: 61117 | D36: =B36/C36*100000 -> 1061.897672
A37: Fonte: SIB/ANS/MS - 09/2024 e Tabnet/ANS/MS - 13/10/2024
A38: Caderno de Informação da Saúde Suplementar - setembro/2024
A42: Reclamações por 100.000 beneficiários de planos privados de saúde, por Unidade da Federação (Brasil - janeiro-setembro/2024)
A82: =+A37 -> Fonte: SIB/ANS/MS - 09/2024 e Tabnet/ANS/MS - 13/10/2024
A83: =+A38 -> Caderno de Informação da Saúde Suplementar - setembro/2024

Sheet graf 18
A4: Gráfico 18 - Distribuição percentual de reclamações por tema da demanda (Brasil - janeiro-setembro/2023 e janeiro-setembro/2024)
A29: Fonte: Tabnet/ANS/MS - 13/10/2024
A30: Caderno de Informação da Saúde Suplementar - dezembro/2024
A37: Reclamações segundo tema da demanda (Brasil - janeiro-setembro/2023 e janeiro-setembro/2024)
A40: Tema da demanda | B40: 2023 | C40: 2014 | D40: 2024 | E40: 2015
B41: Reclamações | C41: % | D41: Reclamações | E41: %
A42: Total | B42: =SUM(B43:B46) -> 262085 | C42: =SUM(C43:C46) -> 1 | D42: =SUM(D43:D46) -> 297579 | E42: =SUM(E43:E46) -> 1
A43: Cobertura | B43: 213511 | C43: =B43/B$42 -> 0.8146631818 | D43: 235398 | E43: =D43/D$42 -> 0.7910437228
A44: Contratos e Regulamentos | B44: 34063 | C44: =B44/B$42 -> 0.1299692848 | D44: 43563 | E44: =D44/D$42 -> 0.1463913784
A45: Mensalidades e Reajustes | B45: 11752 | C45: =B45/B$42 -> 0.04484041437 | D45: 15037 | E45: =D45/D$42 -> 0.05053111947
A46: Outros | B46: 2759 | C46: =B46/B$42 -> 0.01052711906 | D46: 3581 | E46: =D46/D$42 -> 0.01203377927
A47: =+A29 -> Fonte: Tabnet/ANS/MS - 13/10/2024
A48: =+A30 -> Caderno de Informação da Saúde Suplementar - dezembro/2024

Sheet graf 19
A4: Gráfico 19 - Distribuição percentual de demandas NIP, por natureza da demanda (Brasil - janeiro-setembro/2023 e janeiro-setembro/2024)
A30: Fonte: Tabnet/ANS/MS - 13/10/2024
A31: Caderno de Informação da Saúde Suplementar - dezembro/2024
A37: Demandas NIP, segundo natureza da demanda (Brasil - janeiro-setembro/2023 e janeiro-setembro/2024)
A40: Natureza da NIP | B40: 2023 | C40: 2024
A41: Total | B41: =B42+B45 -> 256922 | C41: =C42+C45 -> 290436
A42: Natureza informada | B42: =SUM(B44+B43) -> 256922 | C42: =SUM(C44+C43) -> 290436
A43: Assistencial | B43: 211530 | C43: 232581
A44: Não Assistencial | B44: 45392 | C44: 57855
A45: Natureza não informada | B45: 0 | C45: 0
A46: =+A30 -> Fonte: Tabnet/ANS/MS - 13/10/2024
A47: =+A31 -> Caderno de Informação da Saúde Suplementar - dezembro/2024

Sheet graf 20
A4: Gráfico 20 - Distribuição percentual de demandas NIP assistenciais, por subtema da demanda (Brasil - janeiro-setembro/2023 e janeiro-setembro/2024)
A33: Fonte: Tabnet/ANS/MS - 13/10/2024
A34: Caderno de Informação da Saúde Suplementar - dezembro/2024
A40: Demandas NIP assistenciais, segundo subtema da demanda (Brasil - janeiro-setembro/2023 e janeiro-setembro/2024)
A43: Subtema da demanda | B43: 2023 | D43: 2024
B44: Demandas NIP assistenciais | C44: % | D44: Demandas NIP assistenciais | E44: %
A45: Total | B45: =SUM(B46:B52) -> 211530 | C45: 1 | D45: =SUM(D46:D52) -> 232581 | E45: 1
A46: Carência | B46: 3765 | C46: =B46/B45 -> 0.01779889377 | D46: 3763 | E46: =D46/D$45 -> 0.01617930957
A47: Doença ou Lesão Preexistente, CPT e Agravo | B47: 2098 | C47: =B47/B45 -> 0.00991821491 | D47: 1908 | E47: =D47/D$45 -> 0.008203593587
A48: Prazos Máximos para Atendimento | B48: 38085 | C48: =B48/B45 -> 0.1800453836 | D48: 42635 | E48: 0.1833124804
A49: Rede de Atendimento (rede conveniada) | B49: 27402 | C49: =B49/B45 -> 0.1295419089 | D49: 26482 | E49: 0.1138614074
A50: Reembolso | B50: 45796 | C50: =B50/B45 -> 0.2164988418 | D50: 51018 | E50: 0.2193558373
A51: Regras para Acesso aos Atendimentos | B51: 71445 | C51: =B51/B45 -> 0.3377535101 | D51: 79733 | E51: 0.342818201
A52: Rol de Procedimentos e Cobertura Contratual | B52: 22939 | C52: =B52/B45 -> 0.1084432468 | D52: 27042 | E52: 0.1162691707
A53: =+A33 -> Fonte: Tabnet/ANS/MS - 13/10/2024
A54: =+A34 -> Caderno de Informação da Saúde Suplementar - dezembro/2024

Sheet graf 21
A4: Gráfico 21 - Demandas NIP assistenciais e Índice de Resolutividade (Brasil - 2009-2023)
I5: Alteração metodológica. Contém última informação divulgada.
A30: Fonte: Tabnet/ANS/MS - 16/04/2023
A31: Caderno de Informação da Saúde Suplementar - junho/2023
A37: Demandas NIP assistenciais e Índice de Resolutividade (Brasil - 2009-2023)
A40: Ano | B40: Demadas NIP Assistenciais | C40: Índice de Resolutividade (%)
A41: 2009 | B41: 5259 | C41: 0.49
A42: 2010 | B42: 13051 | C42: 0.65
A43: 2011 | B43: 29270 | C43: 0.688
A44: 2012 | B44: 53178 | C44: 0.801
A45: 2013 | B45: 71046 | C45: 0.823
A46: 2014 | B46: 55744 | C46: 0.812
A47: 2015 | B47: 71615 | C47: 0.8188337285
A48: 2016 | B48: 61380 | C48: 0.8554245164
A49: 2017 | B49: 61034 | C49: 0.880442457
A50: 2018 | B50: 67430 | C50: 0.9009649723
A51: 2019 | B51: 91475 | C51: 0.9023366151
A52: 2020 | B52: 101659 | C52: 0.9104927153
A53: 2021 | B53: 135704 | C53: 0.9220781157
A54: 2022 | B54: 187584 | C54: 0.9400473754
A55: 1ºTrim 2023 | B55: 55684 | C55: 0.9997819985
A56: =+A30 -> Fonte: Tabnet/ANS/MS - 16/04/2023
A57: =+A31 -> Caderno de Informação da Saúde Suplementar - junho/2023

Sheet graf 22
A4: Gráfico 22 - Variação do PIB acumulado no ano em relação ao mesmo período do ano anterior e do número de beneficiários de planos novos (Brasil - 3º trimestre/2020-3º trimestre/2024)
A32: Fontes: IBGE e SIB/ANS/MS - 11/2024
A33: Caderno de Informação da Saúde Suplementar - dezembro/2024
A34: Notas: 1. Valor do PIB a valores constantes de 1995.
A40: Variação do PIB acumulado no ano em relação ao mesmo período do ano anterior e do número de beneficiários de planos novos (Brasil - 1º trimestre/2009-3º trimestre/2024)
A43: Períodos | B43: Variação do PIB acumulado | C43: Variação de beneficiários de planos novos de assistência médica
A44: 1º Tri 2009 | B44: -0.02426020045 | C44: 0.09240051009
A45: 2º Tri 2009 | B45: -0.02312136492 | C45: 0.07872316079
A46: 3º Tri 2009 | B46: -0.01914561067 | C46: 0.06571567193
A47: 4º Tri 2009 | B47: -0.001258730597 | C47: 0.06615203066
A48: 1º Tri 2010 | B48: 0.09209069114 | C48: 0.07775325997
A49: 2º Tri 2010 | B49: 0.08855429323 | C49: 0.08661359077
A50: 3º Tri 2010 | B50: 0.08176360307 | C50: 0.09734382516
A51: 4º Tri 2010 | B51: 0.0752831897 | C51: 0.08727943115
A52: 1º Tri 2011 | B52: 0.05195239369 | C52: 0.09095049378
A53: 2º Tri 2011 | B53: 0.04942703576 | C53: 0.07945630249
A54: 3º Tri 2011 | B54: 0.04458632913 | C54: 0.05452766142
A55: 4º Tri 2011 | B55: 0.03974333153 | C55: 0.05671744636
A56: 1º Tri 2012 | B56: 0.01706957068 | C56: 0.04607951615
A57: 2º Tri 2012 | B57: 0.01340238538 | C57: 0.05596274392
A58: 3º Tri 2012 | B58: 0.01731262639 | C58: 0.06679247977
A59: 4º Tri 2012 | B59: 0.01921150318 | C59: 0.07030274269
A60: 1º Tri 2013 | B60: 0.02721263211 | C60: 0.06598953475
A61: 2° Tri 2013 | B61: 0.03381049901 | C61: 0.05685040796
A62: 3° Tri 2013 | B62: 0.0316699572 | C62: 0.05689951052
A63: 4° Tri 2013 | B63: 0.03004865355 | C63: 0.05291269963
A64: 1° Tri 2014 | B64: 0.03469476047 | C64: 0.05792960842
A65: 2° Tri 2014 | B65: 0.01476528949 | C65: 0.05145587896
A66: 3° Tri 2014 | B66: 0.007518862433 | C66: 0.04396183529
A67: 4° Tri 2014 | B67: 0.005039617899 | C67: 0.04039931491
A68: 1º Tri 2015 | B68: -0.01619568093 | C68: 0.02225749394
A69: 2° Tri 2015 | B69: -0.02180773251 | C69: 0.01249431162
A70: 3° Tri 2015 | B70: -0.02884243672 | C70: -0.00320820427
A71: 4° Tri 2015 | B71: -0.03545790698 | C71: -0.01906748262
A72: 1º Tri2016 | B72: -0.05138242804 | C72: -0.02711377791
A73: 2° Tri 2016 | B73: -0.04182359267 | C73: -0.03223821819
A74: 3° Tri 2016 | B74: -0.0360680309 | C74: -0.03120041491
A75: 4º Tri2016 | B75: -0.03275924233 | C75: -0.02955407715
A76: 1° Tri 2017 | B76: 0.002821160806 | C76: -0.02301470184
A77: 2º Tri 2017 | B77: 0.005362620689 | C77: -0.01638371941
A78: 3º Tri 2017 | B78: 0.009085057641 | C78: -0.0126036901
A79: 4º Tri 2017 | B79: 0.01322883192 | C79: -0.007048312119
A80: 1° Tri 2018 | B80: 0.01905034485 | C80: -0.003152846568
A81: 2° Tri 2018 | B81: 0.01759775424 | C81: 0.002390701736
A82: 3° Tri 2018 | B82: 0.01860666626 | C82: 0.006224189881
A83: 4º Tri 2018 | B83: 0.01783708262 | C83: 0.008110752324
A84: 1° Tri 2019 | B84: 0.009011446695 | C84: 0.006168228299
A85: 2° Tri 2019 | B85: 0.01037809817 | C85: 0.004127258519
A86: 3° Tri 2019 | B86: 0.0106220492 | C86: 0.00340796929
A87: 4º Tri 2019 | B87: 0.01220780247 | C87: 0.004263693506
A88: 1º Tri 2020 | B88: 0.00414130682 | C88: 0.008883752786
A89: 2º Tri 2020 | B89: -0.04905137601 | C89: -0.003145995194
A90: 3º Tri 2020 | B90: -0.04268902076 | C90: 0.004158899263
A91: 4º Tri 2020 | B91: -0.0327669137 | C91: 0.01387587013
A92: 1º Tri 2021 | B92: 0.01749754068 | C92: 0.02161164276
A93: 2º Tri 2021 | B93: 0.06821541038 | C93: 0.0394197898
A94: 3º Tri 2021 | B94: 0.05922330885 | C94: 0.04085031331
A95: 4º Tri 2021 | B95: 0.04762538475 | C95: 0.03705053206
A96: 1º Tri 2022 | B96: 0.01473143537 | C96: 0.0334979617
A97: 2º Tri 2022 | B97: 0.02511152207 | C97: 0.03700117722
A98: 3º Tri 2022 | B98: 0.03125229289 | C98: 0.03618502482
A99: 4º Tri 2022 | B99: 0.03016673701 | C99: 0.03265454832
A100: 1º Tri 2023 | B100: 0.04221358575 | C100: 0.02997804484
A101: 2º Tri 2023 | B101: 0.03839824643 | C101: 0.02279707246
A102: 3º Tri 2023 | B102: 0.03194798272 | C102: 0.01714365241
A103: 4º Tri 2023 | B103: 0.02908446659 | C103: 0.01390891421
A104: 1º Tri 2024 | B104: 0.02456049963 | C104: 0.0151810261
A105: 2º Tri 2024 | B105: 0.02899547928 | C105: 0.01052985762
A106: 3º Tri 2024 | B106: =(B185/B181)-1 -> 0.03425391964 | C106: =(D185/D181)-1 -> 0.01526063822
A107: Fontes: IBGE e SIB/ANS/MS - 11/2024
A108: Caderno de Informação da Saúde Suplementar - dezembro/2024
A109: Notas: 1. Valor do PIB a valores constantes de 1995.
A110: 2. Taxa é calculada pela razão entre PIB/Beneficiários acumulados no trimestre do ano corrente e PIB/Beneficiários acumulados no mesmo trimestre do ano anterior.
A115: PIB acumulado no ano e beneficiários em planos novos de assistência médica (Brasil - 1º trimestre/2008-2º trimestre/2024)
A118: Período | B118: Valor Acumulado do PIB a valores constantes de 1995 | C118: Variação do PIB no trimestre | D118: Número de Beneficiários de Assistencia MH pós Lei 9.656 (Individual + Coletivo)
A119: 1º Tri 2008 | B119: 252636 | C119: 252636 | D119: 29261635
A120: 2º Tri 2008 | B120: 516838 | C120: 264202 | D120: 30114708
A121: 3º Tri 2008 | B121: 790155 | C121: 273317 | D121: 31073288
A122: 4º Tri 2008 | B122: 1049470 | C122: 259315 | D122: 31693857
A123: 1º Tri 2009 | B123: 246507 | C123: 246507 | D123: 31965425
A124: 2º Tri 2009 | B124: 504888 | C124: 258381 | D124: 32485433
A125: 3º Tri 2009 | B125: 775027 | C125: 270139 | D125: 33115290
A126: 4º Tri 2009 | B126: 1048149 | C126: 273122 | D126: 33790470
A127: 1º Tri 2010 | B127: 269208 | C127: 269208 | D127: 34450841
A128: 2º Tri 2010 | B128: 549598 | C128: 280390 | D128: 35299113
A129: 3º Tri 2010 | B129: 838396 | C129: 288798 | D129: 36338859
A130: 4º Tri 2010 | B130: 1127057 | C130: 288661 | D130: 36739683
A131: 1º Tri 2011 | B131: 283194 | C131: 283194 | D131: 37584162
A132: 2º Tri 2011 | B132: 576763 | C132: 293569 | D132: 38103850
A133: 3º Tri 2011 | B133: 875777 | C133: 299014 | D133: 38320332
A134: 4º Tri 2011 | B134: 1171850 | C134: 296073 | D134: 38823464
A135: 1º Tri 2012 | B135: 288028 | C135: 288028 | D135: 39316022
A136: 2º Tri 2012 | B136: 584493 | C136: 296465 | D136: 40236246
A137: 3º Tri 2012 | B137: 890939 | C137: 306446 | D137: 40879842
A138: 4º Tri 2012 | B138: 1194363 | C138: 303424 | D138: 41552860
A139: 1º Tri 2013 | B139: 295866 | C139: 295866 | D139: 41910468
A140: 2° Tri 2013 | B140: 604255 | C140: 308389 | D140: 42523693
A141: 3° Tri 2013 | B141: 919155 | C141: 314900 | D141: 43205885
A142: 4° Tri 2013 | B142: 1230252 | C142: 311097 | D142: 43751534
A143: 1° Tri 2014 | B143: 306131 | C143: 306131 | D143: 44338325
A144: 2° Tri 2014 | B144: 613177 | C144: 307046 | D144: 44711787
A145: 3° Tri 2014 | B145: 926066 | C145: 312889 | D145: 45105295
A146: 4° Tri 2014 | B146: 1236452 | C146: 310386 | D146: 45519066
A147: 1° Tri 2015 | B147: 301173 | C147: 301173 | D147: 45325185
A148: 2° Tri 2015 | B148: 599805 | C148: 298632 | D148: 45270430
A149: 3° Tri 2015 | B149: 899356 | C149: 299551 | D149: 44960588
A150: 4° Tri 2015 | B150: 1192610 | C150: 293254 | D150: 44651132
A151: 1° Tri 2016 | B151: 285698 | C151: 285698 | D151: 44096248
A152: 2° Tri 2016 | B152: 574719 | C152: 289021 | D152: 43810992
A153: 3° Tri 2016 | B153: 866918 | C153: 292199 | D153: 43557799
A154: 4° Tri 2016 | B154: 1153541 | C154: 286623 | D154: 43331509
A155: 1° Tri 2017 | B155: 286504 | C155: 286504 | D155: 43081386
A156: 2º Tri 2017 | B156: 577801 | C156: 291297 | D156: 43093205
A157: 3º Tri 2017 | B157: 874794 | C157: 296993 | D157: 43008810
A158: 4º Tri 2017 | B158: 1168801 | C158: 294007 | D158: 43026095
A159: 1° Tri 2018 | B159: 291962 | C159: 291962 | D159: 42945557
A160: 2° Tri 2018 | B160: 587969 | C160: 296007 | D160: 43196228
A161: 3º Tri 2018 | B161: 891071 | C161: 303102 | D161: 43276505
A162: 4º Tri 2018 | B162: 1189649 | C162: 298578 | D162: 43375069
A163: 1º Tri 2019 | B163: 294593 | C163: 294593 | D163: 43210455
A164: 2º Tri 2019 | B164: 594071 | C164: 299478 | D164: 43374510
A165: 3º Tri 2019 | B165: 900536 | C165: 306465 | D165: 43423990
A166: 4º Tri 2019 | B166: 1204172 | C166: 303636 | D166: 43560007
A167: 1º Tri 2020 | B167: 295813 | C167: 295813 | D167: 43594326
A168: 2º Tri 2020 | B168: 564931 | C168: 269118 | D168: 43238054
A169: 3º Tri 2020 | B169: 862093 | C169: 297162 | D169: 43604586
A170: 4º Tri 2020 | B170: 1164715 | C170: 302622 | D170: 44164440
A171: 1º Tri 2021 | B171: 300989 | C171: 300989 | D171: 44536471
A172: 2º Tri 2021 | B172: 603468 | C172: 302479 | D172: 44942489
A173: 3º Tri 2021 | B173: 913149 | C173: 309681 | D173: 45385847
A174: 4º Tri 2021 | B174: 1220185 | C174: 307036 | D174: 45800756
A175: 1º Tri 2022 | B175: 305423 | C175: 305423 | D175: 46028352
A176: 2º Tri 2022 | B176: 618622 | C176: 313199 | D176: 46605414
A177: 3º Tri 2022 | B177: 941687 | C177: 323065 | D177: 47028135
A178: 4º Tri 2022 | B178: 1256994 | C178: 315307 | D178: 47296359
A179: 1º Tri 2023 | B179: 318316 | C179: 318997 | D179: 47408192
A180: 2º Tri 2023 | B180: 642376 | C180: 325257 | D180: 47667881
A181: 3º Tri 2023 | B181: 971772 | C181: 330673 | D181: 47834369
A182: 4º Tri 2023 | B182: 1293553 | C182: 322813 | D182: 47954200
A183: 1º Tri 2024 | B183: 326134 | C183: 327163 | D183: 48127897
A184: 2º Tri 2024 | B184: 661002 | C184: 336102 | D184: 48169817
A185: 3º Tri 2024 | B185: =B184+C185 -> 1005059 | C185: 344057 | D185: 48564352
A186: Fontes: IBGE e SIB/ANS/MS - 11/2024
A187: Caderno de Informação da Saúde Suplementar - dezembro/2024
A188: Notas: 1. Valor do PIB a valores constantes de 1995.
A189: 2. Taxa é calculada pela razão entre PIB/Beneficiários acumulados no trimestre do ano corrente e PIB/Beneficiários acumulados no mesmo trimestre do ano anterior.

Sheet graf 23
A4: Gráfico 23 - Variação anual de beneficiários em planos de assistência médica e de empregos formais (Brasil - 2006-2024)
A27: Fonte: Elaboração própria, a partir de dados SIB/ANS/MS - 11/2024 e NOVO CAGED/MTE - 09/2024.
A28: Caderno de Informação da Saúde Suplementar - dezembro/2024
A29: Notas: 1. Desde janeiro de 2020, o uso do Sistema do Cadastro Geral de Empregados e Desempregados (CAGED) foi substituído pelo Sistema de Escrituração Digital das Obrigações Fiscais, Previdenciárias e Trabalhistas (eSocial) para parte das empresas, conforme estabelecido pela Portaria SEPRT nº 1.127, de 14/10/2019. Permanece a obrigatoriedade de envio das informações por meio do Caged apenas para órgãos públicos e organizações internacionais que contratam celetistas. Embora a maior parte das empresas esteja obrigada a declarar o eSocial, muitas deixaram de prestar informações de desligamentos a este sistema. Para viabilizar a divulgação das estatísticas do emprego formal durante esse período de transição, foi feita a imputação de dados de outras fontes. Embora tenhamos mantido a série histórica neste gráfico, alterações metodológicas importam em mudança na configuração de análise do cenário em questão. Para mais detalhes, ver http://pdet.mte.gov.br/o-que-e-novo-caged.
A30: 2. MTE - Ministério do Trabalho e Emprego.
A35: Beneficiários em planos novos de assistência médica e empregados formais (Brasil - 2003-2024)
A38: Ano/Mês | B38: Beneficiários de planos novos coletivos de assistência médica | C38: Variação de beneficiários | D38: Empregados formais | E38: Variação anual do emprego formal
A39: dez/03 | B39: 12367952 | D39: 23561744
A40: dez/04 | B40: 15100775 | C40: 2732823 | D40: 25358279 | E40: 1796535
A41: dez/05 | B41: 17336880 | C41: 2236105 | D41: 26919812 | E41: 1561533
A42: dez/06 | B42: 19426413 | C42: 2089533 | D42: 28469414 | E42: 1549602
A43: dez/07 | B43: 21803753 | C43: 2377340 | D43: 30412464 | E43: 1943050
A44: dez/08 | B44: 24652953 | C44: 2849200 | D44: 32119753 | E44: 1707289
A45: dez/09 | B45: 26502181 | C45: 1849228 | D45: 33517597 | E45: 1397844
A46: dez/10 | B46: 29009607 | C46: 2507426 | D46: 36147424 | E46: 2629827
A47: dez/11 | B47: 30823069 | C47: 1813462 | D47: 38148503 | E47: 2001079
A48: dez/12 | B48: 33313891 | C48: 2490822 | D48: 39521097 | E48: 1372594
A49: dez/13 | B49: 35296341 | C49: 1982450 | D49: 40956979 | E49: 1271198
A50: dez/14 | B50: 36954681 | C50: 1658340 | D50: 41109693 | E50: 413190
A51: dez/15 | B51: 36200634 | C51: -754047 | D51: 39484142 | E51: -1512435
A52: dez/16 | B52: 35087474 | C52: -1407870 | D52: 38112779 | E52: -1371363
A53: dez/17 | B53: 34935231 | C53: -107387 | D53: 37989350 | E53: -453356
A54: dez/18 | B54: 35303068 | C54: 373117 | D54: 38410428 | E54: 421078
A55: dez/19 | B55: 35529492 | C55: 237705 | D55: 38970054 | E55: 680645
A56: dez/20 | B56: 36081173 | C56: 614723 | D56: 39260234 | E56: 120068
A57: 2021-12-01 | B57: 37757984 | C57: 1728362 | D57: 42041024 | E57: 2778548
A58: 2022-12-01 | B58: 39049999 | C58: 1388301 | D58: 44055174 | E58: 2013686
A59: dez/23 | B59: 39971473 | C59: =B59-B58 -> 921474 | D59: 45517275 | E59: =D59-D58 -> 1462101
A60: 2024-09-01 | B60: 40612469 | C60: =B60-B59 -> 640996 | D60: 47498832 | E60: =D60-D59 -> 1981557
A61: Fonte: Elaboração própria, a partir de dados SIB/ANS/MS - 11/2024 e NOVO CAGED/MTE - 09/2024.
A62: Caderno de Informação da Saúde Suplementar - dezembro/2024
A63: Notas: 1. Desde janeiro de 2020, o uso do Sistema do Cadastro Geral de Empregados e Desempregados (CAGED) foi substituído pelo Sistema de Escrituração Digital das Obrigações Fiscais, Previdenciárias e Trabalhistas (eSocial) para parte das empresas, conforme estabelecido pela Portaria SEPRT nº 1.127, de 14/10/2019. Permanece a obrigatoriedade de envio das informações por meio do Caged apenas para órgãos públicos e organizações internacionais que contratam celetistas. Embora a maior parte das empresas esteja obrigada a declarar o eSocial, muitas deixaram de prestar informações de desligamentos a este sistema. Para viabilizar a divulgação das estatísticas do emprego formal durante esse período de transição, foi feita a imputação de dados de outras fontes. Embora tenhamos mantido a série histórica neste gráfico, alterações metodológicas importam em mudança na configuração de análise do cenário em questão. Para mais detalhes, ver http://pdet.mte.gov.br/o-que-e-novo-caged.
A64: 2. MTE - Ministério do Trabalho e Emprego.

Sheet tab 15
A4: Tabela 15 - Índices de preços selecionados (Brasil - setembro/2023-setembro/2024)
A7: Índices (%) | B7: 2024-09-01 | C7: dez/23 a set/24 | D7: set/23 a set/24
A8: Índices gerais de preços
A9: IPCA | B9: =B210 -> 0.44 | C9: =B210/B201-1 -> -0.2142857143 | D9: =B210/B198-1 -> 0.6923076923
A10: ICV-DIEESE (1) | B10: =C210 -> 0.25 | C10: =C210/C201-1 -> -0.2857142857 | D10: =C210/C198-1 -> 1.648305085
A11: IPC-FIPE (1) | B11: =D210 -> 0.18 | C11: =D210/D201-1 -> -0.5263157895 | D11: =D210/D198-1 -> -0.3793103448
A12: IGP-M | B12: =E210 -> 0.62 | C12: =E210/E201-1 -> -0.1621621622 | D12: =E210/E198-1 -> 0.6756756757
A13: INPC | B13: =F210 -> 0.48 | C13: =F210/F201-1 -> -0.1272727273 | D13: =F210/F198-1 -> 3.363636364
A15: Grupo Saúde e Cuidados Pessoais
A16: IPCA | B16: =G210 -> 0.46 | C16: =G210/G201-1 -> 0.3142857143 | D16: =G210/G198-1 -> 10.5
A17: ICV-DIEESE (1) | B17: =H210 -> -0.05 | C17: =H210/H201-1 -> -1.004549591 | D17: =H210/H198-1 -> -1.866551127
A18: IPC-FIPE (1) | B18: =I210 -> 0.75 | C18: =I210/I201-1 -> -0.1379310345 | D18: =I210/I198-1 -> 0.5625
A19: INPC | B19: =J210 -> 0.49 | C19: =J210/J201-1 -> 0.8148148148 | D19: =J210/J198-1 -> -4.0625
A21: Plano de Saúde e Seguros e Convênios
A22: IPCA | B22: =T210 -> 0.58 | C22: =T210/T201-1 -> -0.2368421053 | D22: =T210/T198-1 -> -0.1830985915
A23: Fonte: Elaboração própria, a partir dos dados do Dieese, da FIPE, do IBGE e do Ipeadata.
A24: Caderno de Informação da Saúde Suplementar - dezembro/2024
A25: (1) Medido somente no município de São Paulo (SP)
A26: Nota: ICV-DIEESE - Levantamento interrompido em março/2020 devido à pandemia do COVID-19 e retomado em agosto 2023, com resultados de julho/2023. A pesquisa acabou não sendo retomada logo após a pandemia devido a uma necessária atualização, com nova ponderação dos produtos e serviços pesquisados, pois, até então, o levantamento tinha como base uma Pesquisa de Orçamento Familiar (POF) realizada pelo DIEESE em 1994/1995. A decisão de parar o campo durante o período da pandemia e o longo trabalho de compatibilização entre os produtos do ICV e os da POF do IBGE significaram a suspensão da pesquisa por anos, o que torna impossível voltar com o índice no tempo, para encadeamento da série. Assim, há um hiato na série histórica do ICV. (https://www.dieese.org.br/analiseicv/icvNovo.html)
A28: Índices de preços selecionados (Brasil - janeiro/2010-setembro/2024)
A31: Mês | B31: Variação mensal | K31: Acumulado
B32: Índices gerais de preços | G32: Grupo Saúde e Cuidados Pessoais | K32: Índices gerais de preços | P32: Grupo Saúde e Cuidados Pessoais | T32: IPCA-Planos de saúde
B33: IPCA | C33: ICV-DIEESE | D33: IPC-FIPE | E33: IGP-M | F33: INPC | G33: IPCA | H33: ICV-DIEESE | I33: IPC-FIPE | J33: INPC | K33: IPCA | L33: ICV-DIEESE | M33: IPC-FIPE | N33: IGP-M | O33: INPC | P33: IPCA | Q33: ICV-DIEESE | R33: IPC-FIPE | S33: INPC
A34: 2010-01-01 | B34: 0.75 | C34: 1.7179 | D34: 1.3355 | E34: 0.63 | F34: 0.88 | G34: 0.36 | H34: 1.6502 | I34: 0.2588 | J34: 0.24 | K34: 1 | L34: 1 | M34: 1 | N34: 1 | O34: 1 | P34: 1 | Q34: 1 | R34: 1 | S34: 1
A35: 2010-02-01 | B35: 0.78 | C35: 0.5931 | D35: 0.7414 | E35: 1.18 | F35: 0.7 | G35: 0.23 | H35: 0.1023 | I35: 0.5064 | J35: 0.09 | K35: 1.0078 | L35: 1.005931 | M35: 1.007414 | N35: 1.0118 | O35: 1.007 | P35: 1.0023 | Q35: 1.001023 | R35: 1.005064 | S35: 1.0009
A36: 2010-03-01 | B36: 0.52 | C36: 0.4734 | D36: 0.3353 | E36: 0.94 | F36: 0.71 | G36: 0.27 | H36: 1.2478 | I36: 0.1424 | J36: 0.21 | K36: 1.01304056 | L36: 1.010693077 | M36: 1.010791859 | N36: 1.02131092 | O36: 1.0141497 | P36: 1.00500621 | Q36: 1.013513765 | R36: 1.006495211 | S36: 1.00300189
A37: 2010-04-01 | B37: 0.57 | C37: 0.2233 | D37: 0.3912 | E37: 0.77 | F37: 0.73 | G37: 0.84 | H37: 0.9054 | I37: 0.9824 | J37: 0.83 | K37: 1.018814891 | L37: 1.012949955 | M37: 1.014746077 | N37: 1.029175014 | O37: 1.021552993 | P37: 1.013448262 | Q37: 1.022690119 | R37: 1.01638302 | S37: 1.011326806
A38: 2010-05-01 | B38: 0.43 | C38: 0.1545 | D38: 0.2193 | E38: 1.19 | F38: 0.43 | G38: 0.74 | H38: 0.4514 | I38: 1.1517 | J38: 0.84 | K38: 1.023195795 | L38: 1.014514963 | M38: 1.016971415 | N38: 1.041422197 | O38: 1.025945671 | P38: 1.020947779 | Q38: 1.027306542 | R38: 1.028088703 | S38: 1.019821951
A39: 2010-06-01 | B39: 0 | C39: 0.0213 | D39: 0.041 | E39: 0.85 | F39: -0.11 | G39: 0.57 | H39: -0.0268 | I39: 0.7128 | J39: 0.58 | K39: 1.023195795 | L39: 1.014731054 | M39: 1.017388373 | N39: 1.050274285 | O39: 1.02481713 | P39: 1.026767182 | Q39: 1.027031224 | R39: 1.03541692 | S39: 1.025736918
A40: 2010-07-01 | B40: 0.01 | C40: 0.1369 | D40: 0.1714 | E40: 0.15 | F40: -0.07 | G40: 0.31 | H40: 1.0346 | I40: 0.4726 | J40: 0.33 | K40: 1.023298115 | L40: 1.016120221 | M40: 1.019132177 | N40: 1.051849697 | O40: 1.024099758 | P40: 1.02995016 | Q40: 1.037656889 | R40: 1.0403103 | S40: 1.02912185
A41: 2010-08-01 | B41: 0.04 | C41: 0.252 | D41: 0.1691 | E41: 0.77 | F41: -0.07 | G41: 0.26 | H41: 0.1376 | I41: 0.4578 | J41: 0.15 | K41: 1.023707434 | L41: 1.018680844 | M41: 1.02085553 | N41: 1.05994894 | O41: 1.023382889 | P41: 1.03262803 | Q41: 1.039084705 | R41: 1.045072841 | S41: 1.030665533
A42: 2010-09-01 | B42: 0.45 | C42: 0.5291 | D42: 0.5312 | E42: 1.15 | F42: 0.54 | G42: 0.36 | H42: -0.0631 | I42: 0.1866 | J42: 0.35 | K42: 1.028314118 | L42: 1.024070684 | M42: 1.026278314 | N42: 1.072138352 | O42: 1.028909156 | P42: 1.036345491 | Q42: 1.038429042 | R42: 1.047022946 | S42: 1.034272862
A43: 2010-10-01 | B43: 0.75 | C43: 0.9316 | D43: 1.0373 | E43: 1.01 | F43: 0.92 | G43: 0.26 | H43: -0.5223 | I43: 0.3725 | J43: 0.23 | K43: 1.036026473 | L43: 1.033610927 | M43: 1.036923899 | N43: 1.08296695 | O43: 1.03837512 | P43: 1.03903999 | Q43: 1.033005327 | R43: 1.050923107 | S43: 1.03665169
A44: 2010-11-01 | B44: 0.83 | C44: 1.0367 | D44: 0.715 | E44: 1.45 | F44: 1.03 | G44: 0.36 | H44: 0.3541 | I44: 0.2358 | J44: 0.29 | K44: 1.044625493 | L44: 1.044326371 | M44: 1.044337905 | N44: 1.09866997 | O44: 1.049070384 | P44: 1.042780533 | Q44: 1.036663199 | R44: 1.053401184 | S44: 1.03965798
A45: 2010-12-01 | B45: 0.63 | C45: 0.6457 | D45: 0.5388 | E45: 0.69 | F45: 0.6 | G45: 0.39 | H45: 0.0656 | I45: 0.2251 | J45: 0.21 | K45: 1.051206634 | L45: 1.051069587 | M45: 1.049964798 | N45: 1.106250793 | O45: 1.055364807 | P45: 1.046847378 | Q45: 1.03734325 | R45: 1.05577239 | S45: 1.041841261
A46: 2011-01-01 | B46: 0.83 | C46: 1.2842 | D46: 1.1459 | E46: 0.79 | F46: 0.94 | G46: 0.47 | H46: 0.281 | I46: 0.3857 | J46: 0.38 | K46: 1.059931649 | L46: 1.064567422 | M46: 1.061996344 | N46: 1.114990175 | O46: 1.065285236 | P46: 1.05176756 | Q46: 1.040258185 | R46: 1.059844504 | S46: 1.045800258
A47: 2011-02-01 | B47: 0.8 | C47: 0.406 | D47: 0.5964 | E47: 1 | F47: 0.54 | G47: 0.31 | H47: 0.289 | I47: 0.7171 | J47: 0.24 | K47: 1.068411102 | L47: 1.068889566 | M47: 1.06833009 | N47: 1.126140076 | O47: 1.071037776 | P47: 1.05502804 | Q47: 1.043264531 | R47: 1.067444649 | S47: 1.048310179
A48: 2011-03-01 | B48: 0.79 | C48: 0.9114 | D48: 0.3488 | E48: 0.62 | F48: 0.66 | G48: 0.45 | H48: 0.2383 | I48: 0.6015 | J48: 0.42 | K48: 1.07685155 | L48: 1.078631426 | M48: 1.072056426 | N48: 1.133122145 | O48: 1.078106625 | P48: 1.059775666 | Q48: 1.04575063 | R48: 1.073865328 | S48: 1.052713082
A49: 2011-04-01 | B49: 0.77 | C49: 0.7963 | D49: 0.7013 | E49: 0.45 | F49: 0.72 | G49: 0.98 | H49: 1.0511 | I49: 1.5536 | J49: 1 | K49: 1.085143307 | L49: 1.087220568 | M49: 1.079574757 | N49: 1.138221194 | O49: 1.085868993 | P49: 1.070161467 | Q49: 1.056742515 | R49: 1.0905489 | S49: 1.063240212
A50: 2011-05-01 | B50: 0.47 | C50: 0.0404 | D50: 0.3131 | E50: 0.43 | F50: 0.57 | G50: 0.73 | H50: 0.6559 | I50: 0.6905 | J50: 0.7 | K50: 1.09024348 | L50: 1.087659805 | M50: 1.082954906 | N50: 1.143115546 | O50: 1.092058446 | P50: 1.077973646 | Q50: 1.063673689 | R50: 1.09807914 | S50: 1.070682894
A51: 2011-06-01 | B51: 0.15 | C51: -0.3383 | D51: 0.0122 | E51: -0.18 | F51: 0.22 | G51: 0.67 | H51: 0.257 | I51: 0.3075 | J51: 0.65 | K51: 1.091878845 | L51: 1.083980252 | M51: 1.083087026 | N51: 1.141057938 | O51: 1.094460975 | P51: 1.08519607 | Q51: 1.066407331 | R51: 1.101455734 | S51: 1.077642333
A52: 2011-07-01 | B52: 0.16 | C52: 0.4361 | D52: 0.3042 | E52: -0.12 | F52: 0 | G52: 0.47 | H52: 2.0166 | I52: 0.537 | J52: 0.37 | K52: 1.093625852 | L52: 1.08870749 | M52: 1.086381777 | N52: 1.139688668 | O52: 1.094460975 | P52: 1.090296491 | Q52: 1.087912501 | R52: 1.107370551 | S52: 1.081629609
A53: 2011-08-01 | B53: 0.37 | C53: 0.3863 | D53: 0.3936 | E53: 0.44 | F53: 0.42 | G53: 0.43 | H53: -0.2053 | I53: 0.6621 | J53: 0.27 | K53: 1.097672267 | L53: 1.092913167 | M53: 1.090657776 | N53: 1.144703298 | O53: 1.099057711 | P53: 1.094984766 | Q53: 1.085679017 | R53: 1.114702451 | S53: 1.084550009
A54: 2011-09-01 | B54: 0.53 | C54: 0.6854 | D54: 0.2498 | E54: 0.65 | F54: 0.45 | G54: 0.34 | H54: 1.7194 | I54: 0.6116 | J54: 0.33 | K54: 1.10348993 | L54: 1.100403994 | M54: 1.093382239 | N54: 1.15214387 | O54: 1.104003471 | P54: 1.098707714 | Q54: 1.104346182 | R54: 1.121519971 | S54: 1.088129024
A55: 2011-10-01 | B55: 0.43 | C55: 0.3061 | D55: 0.3851 | E55: 0.53 | F55: 0.32 | G55: 0.45 | H55: 0.3358 | I55: 0.3025 | J55: 0.33 | K55: 1.108234937 | L55: 1.10377233 | M55: 1.097592854 | N55: 1.158250232 | O55: 1.107536282 | P55: 1.103651899 | Q55: 1.108054576 | R55: 1.124912569 | S55: 1.09171985
A56: 2011-11-01 | B56: 0.52 | C56: 0.5208 | D56: 0.6019 | E56: 0.5 | F56: 0.57 | G56: 0.42 | H56: 0.0374 | I56: 0.4566 | J56: 0.46 | K56: 1.113997759 | L56: 1.109520776 | M56: 1.104199265 | N56: 1.164041483 | O56: 1.113849239 | P56: 1.108287237 | Q56: 1.108468988 | R56: 1.13004892 | S56: 1.096741761
A57: 2011-12-01 | B57: 0.5 | C57: 0.4976 | D57: 0.6099 | E57: -0.12 | F57: 0.51 | G57: 0.44 | H57: 0.0067 | I57: 0.2365 | J57: 0.36 | K57: 1.119567747 | L57: 1.115041752 | M57: 1.110933777 | N57: 1.162644633 | O57: 1.11952987 | P57: 1.113163701 | Q57: 1.108543256 | R57: 1.132721486 | S57: 1.100690032
A58: 2012-01-01 | B58: 0.56 | C58: 1.3172 | D58: 0.6596 | E58: 0.25 | F58: 0.51 | G58: 0.3 | H58: 0.9374 | I58: 0.4046 | J58: 0.14 | K58: 1.125837327 | L58: 1.129729082 | M58: 1.118261496 | N58: 1.165551245 | O58: 1.125239472 | P58: 1.116503192 | Q58: 1.11893474 | R58: 1.137304477 | S58: 1.102230998 | T58: 0.6
A59: 2012-02-01 | B59: 0.45 | C59: 0.1301 | D59: -0.0662 | E59: -0.06 | F59: 0.39 | G59: 0.7 | H59: 1.4045 | I59: 0.5029 | J59: 0.72 | K59: 1.130903595 | L59: 1.131198859 | M59: 1.117521207 | N59: 1.164851914 | O59: 1.129627906 | P59: 1.124318714 | Q59: 1.134650179 | R59: 1.143023981 | S59: 1.110167061 | T59: 0.61
A60: 2012-03-01 | B60: 0.21 | C60: 0.5908 | D60: 0.1467 | E60: 0.43 | F60: 0.18 | G60: 0.38 | H60: 0.5629 | I60: 0.3794 | J60: 0.34 | K60: 1.133278492 | L60: 1.137881982 | M60: 1.11916061 | N60: 1.169860778 | O60: 1.131661236 | P60: 1.128591125 | Q60: 1.141037125 | R60: 1.147360614 | S60: 1.113941629 | T60: 0.6
A61: 2012-04-01 | B61: 0.64 | C61: 0.6826 | D61: 0.4668 | E61: 0.85 | F61: 0.64 | G61: 0.96 | H61: 0.3847 | I61: 0.7279 | J61: 0.98 | K61: 1.140531475 | L61: 1.145649165 | M61: 1.124384852 | N61: 1.179804594 | O61: 1.138903868 | P61: 1.1394256 | Q61: 1.145426694 | R61: 1.155712252 | S61: 1.124858257 | T61: 0.6
A62: 2012-05-01 | B62: 0.36 | C62: 0.4281 | D62: 0.3471 | E62: 1.02 | F62: 0.55 | G62: 0.66 | H62: 0.8027 | I62: 0.7623 | J62: 0.57 | K62: 1.144637388 | L62: 1.150553689 | M62: 1.128287592 | N62: 1.191838601 | O62: 1.145167839 | P62: 1.146945809 | Q62: 1.154621034 | R62: 1.164522247 | S62: 1.131269949 | T62: 0.6
A63: 2012-06-01 | B63: 0.08 | C63: 0.2302 | D63: 0.228 | E63: 0.66 | F63: 0.26 | G63: 0.38 | H63: 0.0305 | I63: 0.5651 | J63: 0.43 | K63: 1.145553098 | L63: 1.153202263 | M63: 1.130860088 | N63: 1.199704736 | O63: 1.148145276 | P63: 1.151304203 | Q63: 1.154973194 | R63: 1.171102962 | S63: 1.13613441 | T63: 0.6
A64: 2012-07-01 | B64: 0.43 | C64: 0.4227 | D64: 0.1343 | E64: 1.34 | F64: 0.43 | G64: 0.36 | H64: 0.2752 | I64: 0.3928 | J64: 0.25 | K64: 1.150478976 | L64: 1.158076849 | M64: 1.132378833 | N64: 1.215780779 | O64: 1.1530823 | P64: 1.155448898 | Q64: 1.15815168 | R64: 1.175703054 | S64: 1.138974746 | T64: 0.63
A65: 2012-08-01 | B65: 0.41 | C65: 0.2025 | D65: 0.2677 | E65: 1.43 | F65: 0.45 | G65: 0.53 | H65: 0.1603 | I65: 0.5454 | J65: 0.52 | K65: 1.15519594 | L65: 1.160421955 | M65: 1.135410211 | N65: 1.233166444 | O65: 1.158271171 | P65: 1.161572777 | Q65: 1.160008197 | R65: 1.182115339 | S65: 1.144897414 | T65: 0.64
A66: 2012-09-01 | B66: 0.57 | C66: 0.4229 | D66: 0.547 | E66: 0.97 | F66: 0.63 | G66: 0.32 | H66: 0.0915 | I66: 0.5625 | J66: 0.21 | K66: 1.161780557 | L66: 1.165329379 | M66: 1.141620905 | N66: 1.245128159 | O66: 1.165568279 | P66: 1.16528981 | Q66: 1.161069605 | R66: 1.188764737 | S66: 1.147301699 | T66: 0.66
A67: 2012-10-01 | B67: 0.59 | C67: 0.8113 | D67: 0.802 | E67: 0.02 | F67: 0.71 | G67: 0.48 | H67: 0.4464 | I67: 0.2058 | J67: 0.44 | K67: 1.168635062 | L67: 1.174783697 | M67: 1.150776704 | N67: 1.245377185 | O67: 1.173843814 | P67: 1.170883201 | Q67: 1.166252619 | R67: 1.191211215 | S67: 1.152349826 | T67: 0.66
A68: 2012-11-01 | B68: 0.6 | C68: 0.5652 | D68: 0.6764 | E68: -0.03 | F68: 0.54 | G68: 0.32 | H68: 1.3939 | I68: 0.4828 | J68: 0.24 | K68: 1.175646872 | L68: 1.181423574 | M68: 1.158560558 | N68: 1.245003571 | O68: 1.180182571 | P68: 1.174630028 | Q68: 1.182509015 | R68: 1.196962383 | S68: 1.155115466 | T68: 0.65
A69: 2012-12-01 | B69: 0.79 | C69: 0.4304 | D69: 0.8202 | E69: 0.68 | F69: 0.74 | G69: 0.4 | H69: 0.1358 | I69: 0.2831 | J69: 0.43 | K69: 1.184934483 | L69: 1.186508421 | M69: 1.168063072 | N69: 1.253469596 | O69: 1.188915922 | P69: 1.179328548 | Q69: 1.184114862 | R69: 1.200350984 | S69: 1.160082463 | T69: 0.65
A70: 2013-01-01 | B70: 0.86 | C70: 1.7712 | D70: 1.1484 | E70: 0.34 | F70: 0.92 | G70: 0.73 | H70: 0.2759 | I70: 0.4089 | J70: 0.7 | K70: 1.195124919 | L70: 1.207523858 | M70: 1.181477108 | N70: 1.257731392 | O70: 1.199853948 | P70: 1.187937646 | Q70: 1.187381835 | R70: 1.205259219 | S70: 1.16820304 | T70: 0.65
A71: 2013-02-01 | B71: 0.6 | C71: 0.1158 | D71: 0.2213 | E71: 0.29 | F71: 0.52 | G71: 0.65 | H71: 0.77 | I71: 0.5771 | J71: 0.69 | K71: 1.202295669 | L71: 1.208922171 | M71: 1.184091717 | N71: 1.261378813 | O71: 1.206093189 | P71: 1.195659241 | Q71: 1.196524675 | R71: 1.21221477 | S71: 1.176263641 | T71: 0.65
A72: 2013-03-01 | B72: 0.47 | C72: 0.7843 | D72: -0.1747 | E72: 0.21 | F72: 0.6 | G72: 0.32 | H72: 1.8742 | I72: 0.2546 | J72: 0.32 | K72: 1.207946458 | L72: 1.218403747 | M72: 1.182023109 | N72: 1.264027709 | O72: 1.213329748 | P72: 1.19948535 | Q72: 1.21894994 | R72: 1.215301068 | S72: 1.180027684 | T72: 0.65
A73: 2013-04-01 | B73: 0.55 | C73: 0.3127 | D73: 0.2754 | E73: 0.15 | F73: 0.59 | G73: 1.28 | H73: 0.39 | I73: 1.3113 | J73: 1.19 | K73: 1.214590164 | L73: 1.222213696 | M73: 1.1852784 | N73: 1.26592375 | O73: 1.220488393 | P73: 1.214838763 | Q73: 1.223703845 | R73: 1.231237311 | S73: 1.194070014 | T73: 0.65
A74: 2013-05-01 | B74: 0.37 | C74: 0.6052 | D74: 0.0974 | E74: 0 | F74: 0.35 | G74: 0.94 | H74: 2.4726 | I74: 0.9444 | J74: 0.94 | K74: 1.219084148 | L74: 1.229610533 | M74: 1.186432861 | N74: 1.26592375 | O74: 1.224760103 | P74: 1.226258247 | Q74: 1.253961147 | R74: 1.242865117 | S74: 1.205294272 | T74: 0.65
A75: 2013-06-01 | B75: 0.26 | C75: 0.3449 | D75: 0.3168 | E75: 0.75 | F75: 0.28 | G75: 0.36 | H75: 0.4909 | I75: 0.1918 | J75: 0.39 | K75: 1.222253766 | L75: 1.23385146 | M75: 1.190191481 | N75: 1.275418179 | O75: 1.228189431 | P75: 1.230672777 | Q75: 1.260116842 | R75: 1.245248932 | S75: 1.20999492 | T75: 0.65
A76: 2013-07-01 | B76: 0.03 | C76: 0.0947 | D76: -0.1312 | E76: 0.26 | F76: -0.13 | G76: 0.34 | H76: 2.7332 | I76: 0.3268 | J76: 0.29 | K76: 1.222620443 | L76: 1.235019917 | M76: 1.18862995 | N76: 1.278734266 | O76: 1.226592785 | P76: 1.234857064 | Q76: 1.294558355 | R76: 1.249318405 | S76: 1.213503905 | T76: 0.64
A77: 2013-08-01 | B77: 0.24 | C77: 0.093 | D77: 0.2245 | E77: 0.15 | F77: 0.16 | G77: 0.45 | H77: 0.654 | I77: 0.8267 | J77: 0.41 | K77: 1.225554732 | L77: 1.236168486 | M77: 1.191298424 | N77: 1.280652367 | O77: 1.228555333 | P77: 1.240413921 | Q77: 1.303024767 | R77: 1.259646521 | S77: 1.218479271 | T77: 0.94
A78: 2013-09-01 | B78: 0.35 | C78: 0.2435 | D78: 0.2496 | E78: 1.5 | F78: 0.27 | G78: 0.46 | H78: 1.4218 | I78: 0.7198 | J78: 0.34 | K78: 1.229844173 | L78: 1.239178556 | M78: 1.194271905 | N78: 1.299862153 | O78: 1.231872432 | P78: 1.246119825 | Q78: 1.321551173 | R78: 1.268713456 | S78: 1.2226221 | T78: 0.74
A79: 2013-10-01 | B79: 0.57 | C79: 0.6423 | D79: 0.4821 | E79: 0.86 | F79: 0.61 | G79: 0.39 | H79: 0.1128 | I79: 0.4608 | J79: 0.35 | K79: 1.236854285 | L79: 1.2471378 | M79: 1.20002949 | N79: 1.311040967 | O79: 1.239386854 | P79: 1.250979693 | Q79: 1.323041883 | R79: 1.274559688 | S79: 1.226901278 | T79: 0.73
A80: 2013-11-01 | B80: 0.54 | C80: 0.4456 | D80: 0.461 | E80: 0.29 | F80: 0.54 | G80: 0.41 | H80: 0.7111 | I80: 0.4879 | J80: 0.32 | K80: 1.243533298 | L80: 1.252695046 | M80: 1.205561625 | N80: 1.314842986 | O80: 1.246079543 | P80: 1.256108709 | Q80: 1.332450034 | R80: 1.280778265 | S80: 1.230827362 | T80: 0.72
A81: 2013-12-01 | B81: 0.92 | C81: 0.4395 | D81: 0.6484 | E81: 0.6 | F81: 0.72 | G81: 0.41 | H81: 0.0481 | I81: 0.3511 | J81: 0.39 | K81: 1.254973804 | L81: 1.258200641 | M81: 1.213378487 | N81: 1.322732044 | O81: 1.255051316 | P81: 1.261258755 | Q81: 1.333090942 | R81: 1.285275077 | S81: 1.235627589 | T81: 0.73
A82: 2014-01-01 | B82: 0.55 | C82: 1.9498 | D82: 0.9389 | E82: 0.48 | F82: 0.63 | G82: 0.48 | H82: 0.8307 | I82: 0.3439 | J82: 0.31 | K82: 1.26187616 | L82: 1.282733037 | M82: 1.224770898 | N82: 1.329081158 | O82: 1.262958139 | P82: 1.267312797 | Q82: 1.344164929 | R82: 1.289695138 | S82: 1.239458034 | T82: 0.72
A83: 2014-02-01 | B83: 0.69 | C83: 0.6052 | D83: 0.5204 | E83: 0.38 | F83: 0.64 | G83: 0.74 | H83: 0.7824 | I83: 0.6848 | J83: 0.89 | K83: 1.270583106 | L83: 1.290496137 | M83: 1.231144605 | N83: 1.334131666 | O83: 1.271041071 | P83: 1.276690912 | Q83: 1.354681675 | R83: 1.29852697 | S83: 1.250489211 | T83: 0.72
A84: 2014-03-01 | B84: 0.92 | C84: 0.8125 | D84: 0.7395 | E84: 1.67 | F84: 0.82 | G84: 0.43 | H84: 0.0939 | I84: 0.4994 | J84: 0.41 | K84: 1.28227247 | L84: 1.300981418 | M84: 1.24024892 | N84: 1.356411665 | O84: 1.281463608 | P84: 1.282180683 | Q84: 1.355953721 | R84: 1.305011814 | S84: 1.255616216 | T84: 0.73
A85: 2014-04-01 | B85: 0.67 | C85: 0.5651 | D85: 0.5342 | E85: 0.78 | F85: 0.78 | G85: 1.01 | H85: 0.6984 | I85: 1.1478 | J85: 1.02 | K85: 1.290863696 | L85: 1.308333264 | M85: 1.246874329 | N85: 1.366991676 | O85: 1.291459024 | P85: 1.295130707 | Q85: 1.365423702 | R85: 1.31999074 | S85: 1.268423502 | T85: 0.73
A86: 2014-05-01 | B86: 0.46 | C86: 0.1403 | D86: 0.2507 | E86: -0.13 | F86: 0.6 | G86: 0.98 | H86: 0.3656 | I86: 0.7907 | J86: 1 | K86: 1.296801669 | L86: 1.310168856 | M86: 1.250000243 | N86: 1.365214587 | O86: 1.299207778 | P86: 1.307822988 | Q86: 1.370415691 | R86: 1.330427906 | S86: 1.281107737 | T86: 0.73
A87: 2014-06-01 | B87: 0.4 | C87: 0.0019 | D87: 0.0392 | E87: -0.74 | F87: 0.26 | G87: 0.6 | H87: 0.0166 | I87: 0.2677 | J87: 0.63 | K87: 1.301988876 | L87: 1.310193749 | M87: 1.250490244 | N87: 1.355111999 | O87: 1.302585719 | P87: 1.315669926 | Q87: 1.37064318 | R87: 1.333989462 | S87: 1.289178716 | T87: 0.73
A88: 2014-07-01 | B88: 0.01 | C88: 0.6828 | D88: 0.1625 | E88: -0.61 | F88: 0.13 | G88: 0.5 | H88: 1.1847 | I88: 0.5786 | J88: 0.47 | K88: 1.302119075 | L88: 1.319139752 | M88: 1.25252229 | N88: 1.346845816 | O88: 1.30427908 | P88: 1.322248276 | Q88: 1.38688119 | R88: 1.341707925 | S88: 1.295237856 | T88: 0.73
A89: 2014-08-01 | B89: 0.25 | C89: 0.017 | D89: 0.3375 | E89: -0.27 | F89: 0.18 | G89: 0.41 | H89: 0.0421 | I89: 0.3424 | J89: 0.3 | K89: 1.305374372 | L89: 1.319364006 | M89: 1.256749553 | N89: 1.343209332 | O89: 1.306626782 | P89: 1.327669494 | Q89: 1.387465067 | R89: 1.346301933 | S89: 1.299123569 | T89: 0.9
A90: 2014-09-01 | B90: 0.57 | C90: 0.2269 | D90: 0.2056 | E90: 0.2 | F90: 0.49 | G90: 0.33 | H90: 0.29 | I90: 0.4673 | J90: 0.23 | K90: 1.312815006 | L90: 1.322357643 | M90: 1.25933343 | N90: 1.345895751 | O90: 1.313029254 | P90: 1.332050803 | Q90: 1.391488715 | R90: 1.352593202 | S90: 1.302111553 | T90: 0.77
A91: 2014-10-01 | B91: 0.42 | C91: 0.4994 | D91: 0.3717 | E91: 0.28 | F91: 0.38 | G91: 0.39 | H91: 0.0341 | I91: 0.4387 | J91: 0.36 | K91: 1.318328829 | L91: 1.328961497 | M91: 1.264014372 | N91: 1.349664259 | O91: 1.318018765 | P91: 1.337245801 | Q91: 1.391963213 | R91: 1.358527028 | S91: 1.306799155 | T91: 0.77
A92: 2014-11-01 | B92: 0.51 | C92: 0.5248 | D92: 0.6916 | E92: 0.98 | F92: 0.53 | G92: 0.42 | H92: 0.1406 | I92: 0.7069 | J92: 0.35 | K92: 1.325052306 | L92: 1.335935887 | M92: 1.272756296 | N92: 1.362890968 | O92: 1.325004264 | P92: 1.342862234 | Q92: 1.393920313 | R92: 1.368130456 | S92: 1.311372952 | T92: 0.77
A93: 2014-12-01 | B93: 0.78 | C93: 0.5221 | D93: 0.2953 | E93: 0.62 | F93: 0.62 | G93: 0.47 | H93: 0.4918 | I93: 0.5386 | J93: 0.4 | K93: 1.335387714 | L93: 1.342910808 | M93: 1.276514745 | N93: 1.371340892 | O93: 1.333219291 | P93: 1.349173686 | Q93: 1.400775613 | R93: 1.375499206 | S93: 1.316618444 | T93: 0.77
A94: 2015-01-01 | B94: 1.24 | C94: 2.2534 | D94: 1.6215 | E94: 0.76 | F94: 1.48 | G94: 0.32 | H94: 0.3541 | I94: 0.4758 | J94: 0.07 | K94: 1.351946522 | L94: 1.37317196 | M94: 1.297213432 | N94: 1.381763083 | O94: 1.352950936 | P94: 1.353491042 | Q94: 1.40573576 | R94: 1.382043832 | S94: 1.317540077 | T94: 0.77
A95: 2015-02-01 | B95: 1.22 | C95: 1.4022 | D95: 1.2202 | E95: 0.27 | F95: 1.16 | G95: 0.6 | H95: 1.2571 | I95: 0.2218 | J95: 0.58 | K95: 1.368440269 | L95: 1.392426577 | M95: 1.31304203 | N95: 1.385493844 | O95: 1.368645167 | P95: 1.361611988 | Q95: 1.423407264 | R95: 1.385109205 | S95: 1.325181809 | T95: 0.77
A96: 2015-03-01 | B96: 1.32 | C96: 1.2592 | D96: 0.6964 | E96: 0.98 | F96: 1.51 | G96: 0.69 | H96: 0.2881 | I96: 0.5152 | J96: 0.73 | K96: 1.386503681 | L96: 1.409960013 | M96: 1.322186055 | N96: 1.399071683 | O96: 1.389311709 | P96: 1.371007111 | Q96: 1.4275081 | R96: 1.392245287 | S96: 1.334855636 | T96: 0.77
A97: 2015-04-01 | B97: 0.71 | C97: 0.5488 | D97: 1.1021 | E97: 1.17 | F97: 0.71 | G97: 1.32 | H97: 1.57 | I97: 1.4768 | J97: 1.2 | K97: 1.396347857 | L97: 1.417697873 | M97: 1.336757867 | N97: 1.415440822 | O97: 1.399175822 | P97: 1.389104405 | Q97: 1.449919978 | R97: 1.412805966 | S97: 1.350873904 | T97: 0.77
A98: 2015-05-01 | B98: 0.74 | C98: 0.5682 | D98: 0.6151 | E98: 0.41 | F98: 0.99 | G98: 1.1 | H98: 0.0949 | I98: 1.0805 | J98: 1.14 | K98: 1.406680831 | L98: 1.425753233 | M98: 1.344980265 | N98: 1.421244129 | O98: 1.413027663 | P98: 1.404384553 | Q98: 1.451295952 | R98: 1.428071334 | S98: 1.366273866 | T98: 0.77
A99: 2015-06-01 | B99: 0.79 | C99: 0.8148 | D99: 0.4656 | E99: 0.67 | F99: 0.77 | G99: 0.91 | H99: 0.5519 | I99: 0.4232 | J99: 1.03 | K99: 1.41779361 | L99: 1.43737027 | M99: 1.351242493 | N99: 1.430766465 | O99: 1.423907976 | P99: 1.417164453 | Q99: 1.459305654 | R99: 1.434114932 | S99: 1.380346487 | T99: 0.77
A100: 2015-07-01 | B100: 0.62 | C100: 0.9498 | D100: 0.846 | E100: 0.69 | F100: 0.58 | G100: 0.84 | H100: 0.0635 | I100: 1.6734 | J100: 0.75 | K100: 1.42658393 | L100: 1.451022413 | M100: 1.362674004 | N100: 1.440638754 | O100: 1.432166642 | P100: 1.429068634 | Q100: 1.460232313 | R100: 1.458113412 | S100: 1.390699086 | T100: 1.59
A101: 2015-08-01 | B101: 0.22 | C101: 0.0611 | D101: 0.5637 | E101: 0.28 | F101: 0.25 | G101: 0.62 | H101: 1.1844 | I101: 1.0987 | J101: 0.64 | K101: 1.429722415 | L101: 1.451908987 | M101: 1.370355398 | N101: 1.444672542 | O101: 1.435747059 | P101: 1.43792886 | Q101: 1.477527305 | R101: 1.474133704 | S101: 1.39959956 | T101: 1.08
A102: 2015-09-01 | B102: 0.54 | C102: 0.4848 | D102: 0.6648 | E102: 0.95 | F102: 0.51 | G102: 0.55 | H102: 0.3234 | I102: 0.778 | J102: 0.48 | K102: 1.437442916 | L102: 1.458947842 | M102: 1.37946552 | N102: 1.458396931 | O102: 1.443069369 | P102: 1.445837468 | Q102: 1.482305628 | R102: 1.485602464 | S102: 1.406317638 | T102: 1.06
A103: 2015-10-01 | B103: 0.82 | C103: 0.7846 | D103: 0.88 | E103: 1.89 | F103: 0.77 | G103: 0.55 | H103: 0.7451 | I103: 0.82 | J103: 0.5 | K103: 1.449229948 | L103: 1.470394747 | M103: 1.391604817 | N103: 1.485960633 | O103: 1.454181003 | P103: 1.453789574 | Q103: 1.493350287 | R103: 1.497784404 | S103: 1.413349226 | T103: 1.06
A104: 2015-11-01 | B104: 1.01 | C104: 1.0221 | D104: 1.06 | E104: 1.52 | F104: 1.11 | G104: 0.64 | H104: 0.8171 | I104: 0.63 | J104: 0.7 | K104: 1.46386717 | L104: 1.485423652 | M104: 1.406355828 | N104: 1.508547235 | O104: 1.470322412 | P104: 1.463093828 | Q104: 1.505552452 | R104: 1.507220446 | S104: 1.423242671 | T104: 1.06
A105: 2015-12-01 | B105: 0.96 | C105: 0.7674 | D105: 0.82 | E105: 0.49 | F105: 0.9 | G105: 0.7 | H105: 1.5394 | I105: 0.35 | J105: 0.62 | K105: 1.477920295 | L105: 1.496822793 | M105: 1.417887946 | N105: 1.515939116 | O105: 1.483555314 | P105: 1.473335485 | Q105: 1.528728927 | R105: 1.512495717 | S105: 1.432066775 | T105: 1.06
A106: 2016-01-01 | B106: 1.27 | C106: 1.7981 | D106: 1.37 | E106: 1.14 | F106: 1.51 | G106: 0.81 | H106: 0.2414 | I106: 0.58 | J106: 0.67 | K106: 1.496689883 | L106: 1.523737163 | M106: 1.437313011 | N106: 1.533220822 | O106: 1.505956999 | P106: 1.485269502 | Q106: 1.532419278 | R106: 1.521268192 | S106: 1.441661623 | T106: 1.06
A107: 2016-02-01 | B107: 0.9 | C107: 0.7057 | D107: 0.89 | E107: 1.29 | F107: 0.95 | G107: 0.94 | H107: 0.8443 | I107: 0.71 | J107: 1.13 | K107: 1.510160092 | L107: 1.534490177 | M107: 1.450105097 | N107: 1.552999371 | O107: 1.52026359 | P107: 1.499231035 | Q107: 1.545357494 | R107: 1.532069197 | S107: 1.457952399 | T107: 1.06
A108: 2016-03-01 | B108: 0.43 | C108: 0.4402 | D108: 0.97 | E108: 0.51 | F108: 0.44 | G108: 0.78 | H108: 0.0896 | I108: 0.71 | J108: 0.74 | K108: 1.51665378 | L108: 1.541245002 | M108: 1.464171116 | N108: 1.560919668 | O108: 1.52695275 | P108: 1.510925037 | Q108: 1.546742135 | R108: 1.542946888 | S108: 1.468741247 | T108: 1.06
A109: 2016-04-01 | B109: 0.61 | C109: 0.5719 | D109: 0.46 | E109: 0.33 | F109: 0.64 | G109: 2.33 | H109: 2.504 | I109: 2.32 | J109: 2.35 | K109: 1.525905368 | L109: 1.550059382 | M109: 1.470906303 | N109: 1.566070703 | O109: 1.536725248 | P109: 1.546129591 | Q109: 1.585472558 | R109: 1.578743256 | S109: 1.503256666 | T109: 1.06
A110: 2016-05-01 | B110: 0.78 | C110: 0.6665 | D110: 0.57 | E110: 0.82 | F110: 0.98 | G110: 1.62 | H110: 0.8606 | I110: 1.53 | J110: 1.7 | K110: 1.53780743 | L110: 1.560390528 | M110: 1.479290469 | N110: 1.578912482 | O110: 1.551785155 | P110: 1.57117689 | Q110: 1.599117135 | R110: 1.602898028 | S110: 1.528812029 | T110: 1.06
A111: 2016-06-01 | B111: 0.35 | C111: 0.4534 | D111: 0.65 | E111: 1.69 | F111: 0.47 | G111: 0.83 | H111: 0.0867 | I111: 0.42 | J111: 0.78 | K111: 1.543189756 | L111: 1.567465339 | M111: 1.488905857 | N111: 1.605596103 | O111: 1.559078546 | P111: 1.584217658 | Q111: 1.600503569 | R111: 1.609630199 | S111: 1.540736763 | T111: 1.06
A112: 2016-07-01 | B112: 0.52 | C112: 0.2119 | D112: 0.35 | E112: 0.18 | F112: 0.64 | G112: 0.61 | H112: 0.1499 | I112: 1.46 | J112: 0.6 | K112: 1.551214343 | L112: 1.570786798 | M112: 1.494117028 | N112: 1.608486176 | O112: 1.569056648 | P112: 1.593881386 | Q112: 1.602902724 | R112: 1.6331308 | S112: 1.549981184 | T112: 1.08
A113: 2016-08-01 | B113: 0.44 | C113: 0.3557 | D113: 0.11 | E113: 0.15 | F113: 0.31 | G113: 0.8 | H113: 0.0332 | I113: 1.41 | J113: 0.77 | K113: 1.558039686 | L113: 1.576374087 | M113: 1.495760556 | N113: 1.610898905 | O113: 1.573920724 | P113: 1.606632437 | Q113: 1.603434888 | R113: 1.656157944 | S113: 1.561916039 | T113: 1.07
A114: 2016-09-01 | B114: 0.08 | C114: 0.029 | D114: -0.14 | E114: 0.2 | F114: 8 | G114: 0.33 | H114: 0.0766 | I114: 0.56 | J114: 0.25 | K114: 1.559286118 | L114: 1.576831235 | M114: 1.493666492 | N114: 1.614120703 | O114: 1.699834382 | P114: 1.611934324 | Q114: 1.604663119 | R114: 1.665432429 | S114: 1.565820829 | T114: 1.07
A115: 2016-10-01 | B115: 0.26 | C115: 0.3676 | D115: 0.27 | E115: 0.16 | F115: 0.17 | G115: 0.43 | H115: 0.3027 | I115: 0.56 | J115: 0.3 | K115: 1.563340262 | L115: 1.582627667 | M115: 1.497699391 | N115: 1.616703296 | O115: 1.7027241 | P115: 1.618865642 | Q115: 1.609520434 | R115: 1.674758851 | S115: 1.570518292 | T115: 1.07
A116: 2016-11-01 | B116: 0.18 | C116: 0.2779 | D116: 0.15 | E116: -0.03 | F116: 0.07 | G116: 0.57 | H116: 0.8787 | I116: 0.48 | J116: 0.49 | K116: 1.566154274 | L116: 1.587025789 | M116: 1.49994594 | N116: 1.616218285 | O116: 1.703916007 | P116: 1.628093176 | Q116: 1.62366329 | R116: 1.682797693 | S116: 1.578213831 | T116: 1.07
A117: 2016-12-01 | B117: 0.3 | C117: 0.1203 | D117: 0.72 | E117: 0.54 | F117: 0.14 | G117: 0.49 | H117: 0.0472 | I117: 0.36 | J117: 0.39 | K117: 1.570852737 | L117: 1.588934981 | M117: 1.510745551 | N117: 1.624945864 | O117: 1.706301489 | P117: 1.636070832 | Q117: 1.624429659 | R117: 1.688855765 | S117: 1.584368865 | T117: 1.07
A118: 2017-01-01 | B118: 0.38 | C118: 1.0421 | D118: 0.32 | E118: 0.64 | F118: 0.42 | G118: 0.55 | H118: 0.2276 | I118: 0.7 | J118: 0.44 | K118: 1.576821977 | L118: 1.605493272 | M118: 1.515579937 | N118: 1.635345518 | O118: 1.713467956 | P118: 1.645069222 | Q118: 1.628126861 | R118: 1.700677755 | S118: 1.591340088 | T118: 1.07
A119: 2017-02-01 | B119: 0.33 | C119: -0.14 | D119: -0.08 | E119: 0.08 | F119: 0.24 | G119: 0.65 | H119: 0.2912 | I119: 0.69 | J119: 0.56 | K119: 1.58202549 | L119: 1.603245582 | M119: 1.514367473 | N119: 1.636653794 | O119: 1.717580279 | P119: 1.655762172 | Q119: 1.632867967 | R119: 1.712412432 | S119: 1.600251593 | T119: 1.07
A120: 2017-03-01 | B120: 0.25 | C120: 0.0067 | D120: 0.14 | E120: 0.01 | F120: 0.32 | G120: 0.69 | H120: 1.2132 | I120: 0.72 | J120: 0.62 | K120: 1.585980554 | L120: 1.603352999 | M120: 1.516487587 | N120: 1.636817459 | O120: 1.723076536 | P120: 1.667186931 | Q120: 1.652677921 | R120: 1.724741801 | S120: 1.610173152 | T120: 1.07
A121: 2017-04-01 | B121: 0.14 | C121: -0.1751 | D121: 0.61 | E121: -1.1 | F121: 0.08 | G121: 1 | H121: 1.2317 | I121: 1.66 | J121: 0.87 | K121: 1.588200926 | L121: 1.600545528 | M121: 1.525738161 | N121: 1.618812467 | O121: 1.724454997 | P121: 1.6838588 | Q121: 1.673033955 | R121: 1.753372515 | S121: 1.624181659 | T121: 1.07
A122: 2017-05-01 | B122: 0.31 | C122: 0.3653 | D122: -0.05 | E122: -0.93 | F122: 0.36 | G122: 0.62 | H122: 0.0649 | I122: 0.72 | J122: 0.48 | K122: 1.593124349 | L122: 1.606392321 | M122: 1.524975292 | N122: 1.603757511 | O122: 1.730663035 | P122: 1.694298725 | Q122: 1.674119754 | R122: 1.765996797 | S122: 1.631977731 | T122: 1.06
A123: 2017-06-01 | B123: -0.23 | C123: -0.3115 | D123: 0.05 | E123: -0.67 | F123: -0.3 | G123: 0.46 | H123: 0.5379 | I123: 0.04 | J123: 0.31 | K123: 1.589460163 | L123: 1.601388409 | M123: 1.52573778 | N123: 1.593012336 | O123: 1.725471046 | P123: 1.702092499 | Q123: 1.683124844 | R123: 1.766703196 | S123: 1.637036862 | T123: 1.05
A124: 2017-07-01 | B124: 0.24 | C124: 0.1349 | D124: -0.01 | E124: -0.72 | F124: 0.17 | G124: 0.37 | H124: -0.0042 | I124: 1.18 | J124: 0.24 | K124: 1.593274868 | L124: 1.603548682 | M124: 1.525585206 | N124: 1.581542647 | O124: 1.728404347 | P124: 1.708390241 | Q124: 1.683054153 | R124: 1.787550293 | S124: 1.64096575 | T124: 1.06
A125: 2017-08-01 | B125: 0.19 | C125: -0.0108 | D125: 0.1 | E125: 0.1 | F125: -0.03 | G125: 0.41 | H125: -0.0027 | I125: 0.9 | J125: 0.1 | K125: 1.59630209 | L125: 1.603375499 | M125: 1.527110791 | N125: 1.58312419 | O125: 1.727885825 | P125: 1.715394641 | Q125: 1.68300871 | R125: 1.803638246 | S125: 1.642606716 | T125: 1.07
A126: 2017-09-01 | B126: 0.16 | C126: 0.2045 | D126: 0.02 | E126: 0.47 | F126: -0.02 | G126: 0.32 | H126: 0.329 | I126: 0.3 | J126: 0.27 | K126: 1.598856173 | L126: 1.606654402 | M126: 1.527416214 | N126: 1.590564874 | O126: 1.727540248 | P126: 1.720883904 | Q126: 1.688545809 | R126: 1.809049161 | S126: 1.647041754 | T126: 1.06
A127: 2017-10-01 | B127: 0.42 | C127: 0.8814 | D127: 0.32 | E127: 0.2 | F127: 0.37 | G127: 0.52 | H127: 0.6201 | I127: 0.45 | J127: 0.38 | K127: 1.605571369 | L127: 1.620815453 | M127: 1.532303946 | N127: 1.593746003 | O127: 1.733932147 | P127: 1.7298325 | Q127: 1.699016481 | R127: 1.817189882 | S127: 1.653300513 | T127: 1.06
A128: 2017-11-01 | B128: 0.28 | C128: 0.1529 | D128: 0.29 | E128: 0.52 | F128: 0.18 | G128: 0.34 | H128: 1.3448 | I128: 0.42 | J128: 0.2 | K128: 1.610066969 | L128: 1.62329368 | M128: 1.536747627 | N128: 1.602033483 | O128: 1.737053225 | P128: 1.735713931 | Q128: 1.721864855 | R128: 1.82482208 | S128: 1.656607114 | T128: 1.06
A129: 2017-12-01 | B129: 0.443 | C129: 0.2752 | D129: 0.55 | E129: 0.89 | F129: 0.26 | G129: 0.4 | H129: 0.0242 | I129: 0.45 | J129: 0.19 | K129: 1.617199566 | L129: 1.627760985 | M129: 1.545199739 | N129: 1.616291581 | O129: 1.741569563 | P129: 1.742656787 | Q129: 1.722281546 | R129: 1.833033779 | S129: 1.659754667 | T129: 1.06
A130: 2018-01-01 | B130: 0.29 | C130: 0.9545 | D130: 0.46 | E130: 0.76 | F130: 0.23 | G130: 0.42 | H130: 0.509 | I130: 0.31 | J130: 0.15 | K130: 1.621889444 | L130: 1.643297963 | M130: 1.552307658 | N130: 1.628575397 | O130: 1.745575173 | P130: 1.749975945 | Q130: 1.731047959 | R130: 1.838716184 | S130: 1.662244299 | T130: 1.06
A131: 2018-02-01 | B131: 0.32 | C131: 0.0533 | D131: -0.42 | E131: 0.07 | F131: 0.18 | G131: 0.38 | H131: 0.7499 | I131: 0.29 | J131: 0.22 | K131: 1.627079491 | L131: 1.644173841 | M131: 1.545787966 | N131: 1.629715399 | O131: 1.748717209 | P131: 1.756625854 | Q131: 1.744029088 | R131: 1.844048461 | S131: 1.665901237 | T131: 1.06
A132: 2018-03-01 | B132: 0.09 | C132: 0.03 | D132: 0 | E132: 0.64 | F132: 0.07 | G132: 0.48 | H132: 0.34 | I132: 0.46 | J132: 0.44 | K132: 1.628543862 | L132: 1.644667093 | M132: 1.545787966 | N132: 1.640145578 | O132: 1.749941311 | P132: 1.765057658 | Q132: 1.749958787 | R132: 1.852531084 | S132: 1.673231202 | T132: 1.06
A133: 2018-04-01 | B133: 0.22 | C133: 0.04 | D133: -0.03 | E133: 0.57 | F133: 0.69 | G133: 0.91 | H133: -0.26 | I133: 0.91 | J133: 1.64 | K133: 1.632126659 | L133: 1.64532496 | M133: 1.545324229 | N133: 1.649494408 | O133: 1.762015906 | P133: 1.781119682 | Q133: 1.745408894 | R133: 1.869389116 | S133: 1.700672194 | T133: 1.06
A134: 2018-05-01 | B134: 0.4 | C134: 0.07 | D134: 0.19 | E134: 1.38 | F134: 1.12 | G134: 0.57 | H134: 0.04 | I134: 0.49 | J134: 2.11 | K134: 1.638655165 | L134: 1.646476687 | M134: 1.548260345 | N134: 1.672257431 | O134: 1.781750484 | P134: 1.791272065 | Q134: 1.746107058 | R134: 1.878549123 | S134: 1.736556377 | T134: 1.06
A135: 2018-06-01 | B135: 1.26 | C135: 1.38 | D135: 1.01 | E135: 1.87 | F135: 2.57 | G135: 0.37 | H135: 0.1 | I135: 0.03 | J135: 2.33 | K135: 1.65930222 | L135: 1.669198066 | M135: 1.563897775 | N135: 1.703528645 | O135: 1.827541471 | P135: 1.797899771 | Q135: 1.747853165 | R135: 1.879112688 | S135: 1.777018141 | T135: 1.06
A136: 2018-07-01 | B136: 0.33 | C136: 0.14 | D136: 0.23 | E136: 0.51 | F136: 0.25 | G136: 0.07 | H136: 0.24 | I136: 0.84 | J136: 0.05 | K136: 1.664777918 | L136: 1.671534943 | M136: 1.56749474 | N136: 1.712216641 | O136: 1.832110325 | P136: 1.799158301 | Q136: 1.752048012 | R136: 1.894897234 | S136: 1.77790665 | T136: 0.3
A137: 2018-08-01 | B137: -0.09 | C137: -0.09 | D137: 0.413 | E137: 0.7 | F137: 0 | G137: 0.53 | H137: 0.04 | I137: 0.97 | J137: 0.49 | K137: 1.663279618 | L137: 1.670030562 | M137: 1.573968493 | N137: 1.724202157 | O137: 1.832110325 | P137: 1.80869384 | Q137: 1.752748831 | R137: 1.913277738 | S137: 1.786618393 | T137: 0.81
A138: 2018-09-01 | B138: 0.48 | C138: 0.55 | D138: 0.39 | E138: 1.52 | F138: 0.3 | G138: 0.28 | H138: 0.31 | I138: 0.57 | J138: 0.08 | K138: 1.67126336 | L138: 1.67921573 | M138: 1.58010697 | N138: 1.75041003 | O138: 1.837606656 | P138: 1.813758183 | Q138: 1.758182353 | R138: 1.924183421 | S138: 1.788047687 | T138: 0.81
A139: 2018-10-01 | B139: 0.45 | C139: 0.58 | D139: 0.48 | E139: 0.89 | F139: 0.4 | G139: 0.27 | H139: 0 | I139: 0.36 | J139: 0.23 | K139: 1.678784045 | L139: 1.688955181 | M139: 1.587691483 | N139: 1.765988679 | O139: 1.844957083 | P139: 1.81865533 | Q139: 1.758182353 | R139: 1.931110481 | S139: 1.792160197 | T139: 0.75
A140: 2018-11-01 | B140: -0.21 | C140: 0.32 | D140: 0.15 | E140: -0.49 | F140: -0.25 | G140: -0.71 | H140: 0.16 | I140: 0.92 | J140: -1.41 | K140: 1.675258598 | L140: 1.694359837 | M140: 1.590073021 | N140: 1.757335335 | O140: 1.84034469 | P140: 1.805742877 | Q140: 1.760995445 | R140: 1.948876697 | S140: 1.766890738 | T140: 0.8
A141: 2018-12-01 | B141: 0.15 | C141: -0.21 | D141: 0.09 | E141: -1.08 | F141: 0.14 | G141: 0.32 | H141: -0.23 | I141: 0.27 | J141: 0.22 | K141: 1.677771486 | L141: 1.690801682 | M141: 1.591504086 | N141: 1.738356113 | O141: 1.842921172 | P141: 1.811521254 | Q141: 1.756945155 | R141: 1.954138664 | S141: 1.770777898 | T141: 0.8
A142: 2019-01-01 | B142: 0.32 | C142: 0.43 | D142: 0.58 | E142: 0.01 | F142: 0.36 | G142: 0.26 | H142: 0.06 | I142: 0.26 | J142: 0.01 | K142: 1.683140355 | L142: 1.698072129 | M142: 1.60073481 | N142: 1.738529949 | O142: 1.849555689 | P142: 1.81623121 | Q142: 1.757999322 | R142: 1.959219425 | S142: 1.770954976 | T142: 0.8
A143: 2019-02-01 | B143: 0.43 | C143: 0.35 | D143: 0.54 | E143: 0.88 | F143: 0.54 | G143: 0.49 | H143: 0.57 | I143: 0.29 | J143: 0.4 | K143: 1.690377858 | L143: 1.704015381 | M143: 1.609378778 | N143: 1.753829012 | O143: 1.859543289 | P143: 1.825130743 | Q143: 1.768019918 | R143: 1.964901161 | S143: 1.778038795 | T143: 0.79
A144: 2019-03-01 | B144: 0.75 | C144: 0.54 | D144: 0.513 | E144: 1.26 | F144: 0.77 | G144: 0.42 | H144: -0.13 | I144: 0.48 | J144: 0.37 | K144: 1.703055692 | L144: 1.713217065 | M144: 1.617634891 | N144: 1.775927258 | O144: 1.873861773 | P144: 1.832796292 | Q144: 1.765721492 | R144: 1.974332687 | S144: 1.784617539 | T144: 0.8
A145: 2019-04-01 | B145: 0.57 | C145: 0.32 | D145: 0.29 | E145: 0.92 | F145: 0.6 | G145: 1.51 | H145: 0.68 | I145: 1.27 | J145: 1.89 | K145: 1.71276311 | L145: 1.718699359 | M145: 1.622326032 | N145: 1.792265789 | O145: 1.885104943 | P145: 1.860471516 | Q145: 1.777728399 | R145: 1.999406712 | S145: 1.818346811 | T145: 0.8
A146: 2019-05-01 | B146: 0.13 | C146: 0.2 | D146: -0.02 | E146: 0.45 | F146: 0.15 | G146: 0.59 | H146: 0.01 | I146: 0.25 | J146: 0.44 | K146: 1.714989702 | L146: 1.722136758 | M146: 1.622001567 | N146: 1.800330985 | O146: 1.887932601 | P146: 1.871448298 | Q146: 1.777906171 | R146: 2.004405229 | S146: 1.826347536 | T146: 0.8
A147: 2019-06-01 | B147: 0.01 | C147: -0.21 | D147: 0.15 | E147: 0.8 | F147: 0.01 | G147: 0.64 | H147: 0.23 | I147: 0.18 | J147: 0.71 | K147: 1.715161201 | L147: 1.718520271 | M147: 1.62443457 | N147: 1.814733632 | O147: 1.888121394 | P147: 1.883425567 | Q147: 1.781995356 | R147: 2.008013158 | S147: 1.839314604 | T147: 0.8
A148: 2019-07-01 | B148: 0.19 | C148: 0.17 | D148: 0.14 | E148: 0.4 | F148: 0.1 | G148: -0.2 | H148: 0 | I148: 0.46 | J148: -0.63 | K148: 1.718420007 | L148: 1.721441755 | M148: 1.626708778 | N148: 1.821992567 | O148: 1.890009515 | P148: 1.879658716 | Q148: 1.781995356 | R148: 2.017250019 | S148: 1.827726922 | T148: 0.79
A149: 2019-08-01 | B149: 0.11 | C149: 0.07 | D149: 0.33 | E149: -0.67 | F149: 0.12 | G149: -0.03 | H149: 0.68 | I149: 0.4 | J149: -0.14 | K149: 1.720310269 | L149: 1.722646764 | M149: 1.632076917 | N149: 1.809785217 | O149: 1.892277527 | P149: 1.879094818 | Q149: 1.794112924 | R149: 2.025319019 | S149: 1.825168104 | T149: 0.03
A150: 2019-09-01 | B150: -0.04 | C150: -0.11 | D150: 0 | E150: -0.01 | F150: -0.05 | G150: 0.58 | H150: 0.3 | I150: 1.01 | J150: 0.78 | K150: 1.719622145 | L150: 1.720751853 | M150: 1.632076917 | N150: 1.809604238 | O150: 1.891331388 | P150: 1.889993568 | Q150: 1.799495263 | R150: 2.045774741 | S150: 1.839404416 | T150: 0.57
A151: 2019-10-01 | B151: 0.1 | C151: -0.04 | D151: 0.16 | E151: 0.68 | F151: 0.04 | G151: 0.4 | H151: -0.21 | I151: 0.7 | J151: 0.42 | K151: 1.721341767 | L151: 1.720063552 | M151: 1.63468824 | N151: 1.821909547 | O151: 1.892087921 | P151: 1.897553542 | Q151: 1.795716323 | R151: 2.060095164 | S151: 1.847129914 | T151: 0.59
A152: 2019-11-01 | B152: 0.51 | C152: 0.46 | D152: 0.68 | E152: 0.3 | F152: 0.54 | G152: 0.21 | H152: 0 | I152: 0.43 | J152: 0.45 | K152: 1.73012061 | L152: 1.727975844 | M152: 1.64580412 | N152: 1.827375276 | O152: 1.902305195 | P152: 1.901538405 | Q152: 1.795716323 | R152: 2.068953573 | S152: 1.855441999 | T152: 0.59
A153: 2019-12-01 | B153: 1.15 | C153: 0.87 | D153: 0.94 | E153: 2.09 | F153: 1.22 | G153: 0.42 | H153: -0.02 | I153: -0.16 | J153: 0.4 | K153: 1.750016997 | L153: 1.743009234 | M153: 1.661274679 | N153: 1.865567419 | O153: 1.925513319 | P153: 1.909524866 | Q153: 1.795357179 | R153: 2.065643248 | S153: 1.862863767 | T153: 0.59
A154: 2020-01-01 | B154: 0.21 | C154: 0.64 | D154: 0.29 | E154: 0.48 | F154: 0.19 | G154: -0.32 | H154: 0.69 | I154: 0.32 | J154: -0.76 | K154: 1.753692033 | L154: 1.754164493 | M154: 1.666092375 | N154: 1.874522143 | O154: 1.929171794 | P154: 1.903414386 | Q154: 1.807745144 | R154: 2.072253306 | S154: 1.848706002 | T154: 0.6
A155: 2020-02-01 | B155: 0.25 | C155: 0.12 | D155: 0.11 | E155: -0.04 | F155: 0.17 | G155: 0.73 | H155: 0.24 | I155: 0.18 | J155: 0.91 | K155: 1.758076263 | L155: 1.756269491 | M155: 1.667925077 | N155: 1.873772334 | O155: 1.932451386 | P155: 1.917309311 | Q155: 1.812083732 | R155: 2.075983362 | S155: 1.865529227 | T155: 0.59
A156: 2020-03-01 | B156: 0.07 | C156: * | D156: 0.1 | E156: 1.24 | F156: 0.18 | G156: 0.21 | H156: * | I156: 0.08 | J156: 0.2 | K156: 1.759306916 | L156: 1.756269491 | M156: 1.669593002 | N156: 1.897007111 | O156: 1.935929799 | P156: 1.921335661 | Q156: 1.812083732 | R156: 2.077644149 | S156: 1.869260285 | T156: 0.6
A157: 2020-04-01 | B157: -0.31 | C157: * | D157: -0.3 | E157: 0.8 | F157: -0.23 | G157: -0.22 | H157: * | I157: 0.44 | J157: -0.24 | K157: 1.753853065 | L157: 1.756269491 | M157: 1.664584223 | N157: 1.912183168 | O157: 1.93147716 | P157: 1.917108722 | Q157: 1.812083732 | R157: 2.086785783 | S157: 1.86477406 | T157: 0.6
A158: 2020-05-01 | B158: -0.38 | C158: * | D158: -0.24 | E158: 0.28 | F158: -0.25 | G158: -0.1 | H158: * | I158: 0.18 | J158: -0.16 | K158: 1.747188423 | L158: 1.756269491 | M158: 1.660589221 | N158: 1.91753728 | O158: 1.926648467 | P158: 1.915191614 | Q158: 1.812083732 | R158: 2.090541997 | S158: 1.861790422 | T158: 0.6
A159: 2020-06-01 | B159: 0.26 | C159: * | D159: 0.39 | E159: 1.56 | F159: 0.3 | G159: 0.35 | H159: * | I159: 0.58 | J159: 0.07 | K159: 1.751731113 | L159: 1.756269491 | M159: 1.667065519 | N159: 1.947450862 | O159: 1.932428413 | P159: 1.921894784 | Q159: 1.812083732 | R159: 2.102667141 | S159: 1.863093675 | T159: 0.6
A160: 2020-07-01 | B160: 0.36 | C160: * | D160: 0.25 | E160: 2.23 | F160: 0.44 | G160: 0.44 | H160: * | I160: 0.49 | J160: 0.46 | K160: 1.758037345 | L160: 1.756269491 | M160: 1.671233183 | N160: 1.990879016 | O160: 1.940931098 | P160: 1.930351121 | Q160: 1.812083732 | R160: 2.11297021 | S160: 1.871663906 | T160: 0.6
A161: 2020-08-01 | B161: 0.24 | C161: * | D161: 0.78 | E161: 2.74 | F161: 0.36 | G161: 0.5 | H161: * | I161: 0.65 | J161: 0.54 | K161: 1.762256635 | L161: 1.756269491 | M161: 1.684268801 | N161: 2.045429101 | O161: 1.94791845 | P161: 1.940002877 | Q161: 1.812083732 | R161: 2.126704516 | S161: 1.881770891 | T161: 0.6
A162: 2020-09-01 | B162: 0.64 | C162: * | D162: 1.12 | E162: 4.34 | F162: 0.87 | G162: -0.64 | H162: * | I162: 0.07 | J162: -0.21 | K162: 1.773535077 | L162: 1.756269491 | M162: 1.703132612 | N162: 2.134200724 | O162: 1.96486534 | P162: 1.927586859 | Q162: 1.812083732 | R162: 2.128193209 | S162: 1.877819172 | T162: -2.31
A163: 2020-10-01 | B163: 0.86 | C163: * | D163: 1.19 | E163: 3.23 | F163: 0.89 | G163: 0.28 | H163: * | I163: 0.02 | J163: 0.48 | K163: 1.788787479 | L163: 1.756269491 | M163: 1.72339989 | N163: 2.203135408 | O163: 1.982352642 | P163: 1.932984102 | Q163: 1.812083732 | R163: 2.128618848 | S163: 1.886832704 | T163: 0
A164: 2020-11-01 | B164: 0.89 | C164: * | D164: 1.03 | E164: 3.28 | F164: 0.95 | G164: -0.13 | H164: * | I164: 0.25 | J164: -0.17 | K164: 1.804707688 | L164: 1.756269491 | M164: 1.741150909 | N164: 2.275398249 | O164: 2.001184992 | P164: 1.930471223 | Q164: 1.812083732 | R164: 2.133940395 | S164: 1.883625089 | T164: 0
A165: 2020-12-01 | B165: 1.35 | C165: * | D165: 0.79 | E165: 0.96 | F165: 1.46 | G165: 0.4 | H165: * | I165: 0.33 | J165: 0.54 | K165: 1.829071241 | L165: 1.756269491 | M165: 1.754906001 | N165: 2.297242072 | O165: 2.030402293 | P165: 1.938193107 | Q165: 1.812083732 | R165: 2.140982398 | S165: 1.893796664 | T165: 0
A166: 2021-01-01 | B166: 0.25 | C166: * | D166: 0.86 | E166: 2.58 | F166: 0.27 | G166: 0.32 | H166: * | I166: 2.12 | J166: 0.22 | K166: 1.833643919 | L166: 1.756269491 | M166: 1.769998193 | N166: 2.356510918 | O166: 2.035884379 | P166: 1.944395325 | Q166: 1.812083732 | R166: 2.186371225 | S166: 1.897963017 | T166: 0.66
A167: 2021-02-01 | B167: 0.86 | C167: * | D167: 0.23 | E167: 2.53 | F167: 0.82 | G167: 0.62 | H167: * | I167: 0.74 | J167: 0.73 | K167: 1.849413257 | L167: 1.756269491 | M167: 1.774069189 | N167: 2.416130644 | O167: 2.052578631 | P167: 1.956450576 | Q167: 1.812083732 | R167: 2.202550372 | S167: 1.911818147 | T167: 0.67
A168: 2021-03-01 | B168: 0.93 | C168: * | D168: 0.71 | E168: 2.94 | F168: 0.86 | G168: -0.02 | H168: * | I168: 0.47 | J168: -0.14 | K168: 1.8666128 | L168: 1.756269491 | M168: 1.78666508 | N168: 2.487164885 | O168: 2.070230807 | P168: 1.956059286 | Q168: 1.812083732 | R168: 2.212902359 | S168: 1.909141602 | T168: 0.67
A169: 2021-04-01 | B169: 0.31 | C169: * | D169: 0.44 | E169: 1.51 | F169: 1.34 | G169: 1.19 | H169: * | I169: 1.71 | J169: 0.38 | K169: 1.8723993 | L169: 1.756269491 | M169: 1.794526406 | N169: 2.524721075 | O169: 2.0979719 | P169: 1.979336392 | Q169: 1.812083732 | R169: 2.250742989 | S169: 1.91639634 | T169: 0.67
A170: 2021-05-01 | B170: 0.83 | C170: * | D170: 0.41 | E170: 4.1 | F170: 0.64 | G170: 0.76 | H170: * | I170: 0.69 | J170: 0.96 | K170: 1.887940214 | L170: 1.756269491 | M170: 1.801883964 | N170: 2.628234639 | O170: 2.11139892 | P170: 1.994379348 | Q170: 1.812083732 | R170: 2.266273116 | S170: 1.934793744 | T170: 0.67
A171: 2021-06-01 | B171: 0.53 | C171: * | D171: 0.81 | E171: 0.6 | F171: 0.51 | G171: 0.51 | H171: * | I171: 0.86 | J171: 0.6 | K171: 1.897946297 | L171: 1.756269491 | M171: 1.816479225 | N171: 2.644004046 | O171: 2.122167054 | P171: 2.004550683 | Q171: 1.812083732 | R171: 2.285763065 | S171: 1.946402507 | T171: 0.67
A172: 2021-07-01 | B172: 0.96 | C172: * | D172: 1.02 | E172: 0.78 | F172: 1.02 | G172: -0.65 | H172: * | I172: 0.18 | J172: -0.45 | K172: 1.916166582 | L172: 1.756269491 | M172: 1.835007313 | N172: 2.664627278 | O172: 2.143813158 | P172: 1.991521104 | Q172: 1.812083732 | R172: 2.289877438 | S172: 1.937643696 | T172: -1.36
A173: 2021-08-01 | B173: 0.87 | C173: * | D173: 1.44 | E173: 0.66 | F173: 0.88 | G173: -0.04 | H173: * | I173: -0.04 | J173: -0.15 | K173: 1.932837231 | L173: 1.756269491 | M173: 1.861431418 | N173: 2.682213818 | O173: 2.162678714 | P173: 1.990724495 | Q173: 1.812083732 | R173: 2.288961487 | S173: 1.93473723 | T173: -0.1
A174: 2021-09-01 | B174: 1.16 | C174: * | D174: 1.13 | E174: -0.64 | F174: 1.2 | G174: 0.39 | H174: * | I174: 0.07 | J174: 0.65 | K174: 1.955258143 | L174: 1.756269491 | M174: 1.882465593 | N174: 2.66504765 | O174: 2.188630859 | P174: 1.998488321 | Q174: 1.812083732 | R174: 2.29056376 | S174: 1.947313022 | T174: -0.05
A175: 2021-10-01 | B175: 1.25 | C175: * | D175: 1 | E175: 0.64 | F175: 1.16 | G175: -0.05 | H175: * | I175: -0.84 | J175: 0.47 | K175: 1.97969887 | L175: 1.756269491 | M175: 1.901290249 | N175: 2.682103955 | O175: 2.214018977 | P175: 1.997489077 | Q175: 1.812083732 | R175: 2.271323025 | S175: 1.956465393 | T175: -0.06
A176: 2021-11-01 | B176: 0.95 | C176: * | D176: 0.72 | E176: 0.02 | F176: 0.84 | G176: -0.06 | H176: * | I176: -0.39 | J176: -1.18 | K176: 1.998506009 | L176: 1.756269491 | M176: 1.914979539 | N176: 2.682640375 | O176: 2.232616736 | P176: 1.996290583 | Q176: 1.812083732 | R176: 2.262464865 | S176: 1.933379102 | T176: -0.06
A177: 2021-12-01 | B177: 0.73 | C177: * | D177: 0.57 | E177: 0.87 | F177: 0.73 | G177: -0.06 | H177: * | I177: 0.01 | J177: 1.21 | K177: 2.013095103 | L177: 1.756269491 | M177: 1.925894922 | N177: 2.705979347 | O177: 2.248914838 | P177: 1.995092809 | Q177: 1.812083732 | R177: 2.262691112 | S177: 1.956772989 | T177: -0.06
A178: 2022-01-01 | B178: 0.54 | C178: * | D178: 0.74 | E178: 1.82 | F178: 0.67 | G178: 0.36 | H178: * | I178: 0.22 | J178: 0.67 | K178: 2.023965817 | L178: 1.756269491 | M178: 1.940146544 | N178: 2.755228171 | O178: 2.263982568 | P178: 2.002275143 | Q178: 1.812083732 | R178: 2.267669032 | S178: 1.969883368 | T178: -0.69
A179: 2022-02-01 | B179: 1.01 | C179: * | D179: 0.9 | E179: 1.83 | F179: 1 | G179: 0.47 | H179: * | I179: 0.51 | J179: 0.91 | K179: 2.044407871 | L179: 1.756269491 | M179: 1.957607863 | N179: 2.805648846 | O179: 2.286622393 | P179: 2.011685836 | Q179: 1.812083732 | R179: 2.279234144 | S179: 1.987809306 | T179: -0.69
A180: 2022-03-01 | B180: 1.62 | C180: * | D180: 1.28 | E180: 1.74 | F180: 1.71 | G180: 0.88 | H180: * | I180: 0.09 | J180: 1.29 | K180: 2.077527279 | L180: 1.756269491 | M180: 1.982665244 | N180: 2.854467136 | O180: 2.325723636 | P180: 2.029388671 | Q180: 1.812083732 | R180: 2.281285455 | S180: 2.013452047 | T180: -0.69
A181: 2022-04-01 | B181: 1.06 | C181: * | D181: 1.62 | E181: 1.41 | F181: 1.04 | G181: 1.77 | H181: * | I181: 0.81 | J181: 1.94 | K181: 2.099549068 | L181: 1.756269491 | M181: 2.014784421 | N181: 2.894715123 | O181: 2.349911162 | P181: 2.065308851 | Q181: 1.812083732 | R181: 2.299763867 | S181: 2.052513016 | T181: -0.69
A182: 2022-05-01 | B182: 0.47 | C182: 0.7743 | D182: 0.42 | E182: 0.52 | F182: 0.45 | G182: 1.01 | H182: 0.9903 | I182: -0.01 | J182: 1.24 | K182: 2.109416949 | L182: 1.756269491 | M182: 2.023246516 | N182: 2.909767641 | O182: 2.360485762 | P182: 2.08616847 | Q182: 1.812083732 | R182: 2.299533891 | S182: 2.077964178 | T182: -0.69
A183: 2022-06-01 | B183: 0.67 | C183: 0.5071 | D183: 0.28 | E183: 0.59 | F183: 0.62 | G183: 1.24 | H183: 0.9702 | I183: 0.47 | J183: 0.87 | K183: 2.123550042 | L183: 1.765175533 | M183: 2.028911606 | N183: 2.926935271 | O183: 2.375120774 | P183: 2.112036959 | Q183: 1.829664569 | R183: 2.3103417 | S183: 2.096042466 | T183: 2.99
A184: 2022-07-01 | B184: -0.68 | C184: 0.2257 | D184: 0.16 | E184: 0.21 | F184: -0.6 | G184: 1.13 | H184: 0.9841 | I184: 1 | J184: 1.14 | K184: 2.109109902 | L184: 1.769159535 | M184: 2.032157864 | N184: 2.933081835 | O184: 2.360870049 | P184: 2.135902977 | Q184: 1.847670298 | R184: 2.333445117 | S184: 2.11993735 | T184: 1.13
A185: 2022-08-01 | B185: -0.36 | C185: -0.0966 | D185: 0.12 | E185: -0.7 | F185: -0.31 | G185: 1.13 | H185: 1.0651 | I185: 0.53 | J185: 1.14 | K185: 2.101517106 | L185: 1.767450526 | M185: 2.034596454 | N185: 2.912550262 | O185: 2.353551352 | P185: 2.160038681 | Q185: 1.867349834 | R185: 2.345812376 | S185: 2.144104636 | T185: 1.13
A186: 2022-09-01 | B186: -0.29 | C186: -0.3308 | D186: 0.12 | E186: -0.95 | F186: -0.32 | G186: 1.13 | H186: 0.507 | I186: 0.82 | J186: 1.13 | K186: 2.095422707 | L186: 1.7616038 | M186: 2.03703797 | N186: 2.884881034 | O186: 2.346019988 | P186: 2.184447118 | Q186: 1.876817298 | R186: 2.365048037 | S186: 2.168333018 | T186: 1.13
A187: 2022-10-01 | B187: 0.59 | C187: 0.2119 | D187: 0.45 | E187: -0.97 | F187: 0.47 | G187: 1.16 | H187: 0.3141 | I187: 1.14 | J187: 1.35 | K187: 2.107785701 | L187: 1.765336639 | M187: 2.04620464 | N187: 2.856897688 | O187: 2.357046282 | P187: 2.209786704 | Q187: 1.882712381 | R187: 2.392009585 | S187: 2.197605514 | T187: 1.43
A188: 2022-11-01 | B188: 0.41 | C188: 0.1854 | D188: 0.47 | E188: -0.56 | F188: 0.38 | G188: 0.02 | H188: -0.078 | I188: 1.17 | J188: -0.4 | K188: 2.116427622 | L188: 1.768609573 | M188: 2.055821802 | N188: 2.840899061 | O188: 2.366003058 | P188: 2.210228662 | Q188: 1.881243865 | R188: 2.419996097 | S188: 2.188815092 | T188: 1.2
A189: 2022-12-01 | B189: 0.62 | C189: 0.4756 | D189: 0.54 | E189: 0.45 | F189: 0.69 | G189: 1.6 | H189: 0.4374 | I189: 1.14 | J189: 2.08 | K189: 2.129549473 | L189: 1.77702108 | M189: 2.06692324 | N189: 2.853683107 | O189: 2.382328479 | P189: 2.24559232 | Q189: 1.889472426 | R189: 2.447584053 | S189: 2.234342446 | T189: 1.2
A190: 2023-01-01 | B190: 0.53 | C190: 1.4594 | D190: 0.63 | E190: 0.21 | F190: 0.46 | G190: 0.16 | H190: 0.528 | I190: 0.49 | J190: -0.24 | K190: 2.140836085 | L190: 1.802954925 | M190: 2.079944856 | N190: 2.859675842 | O190: 2.39328719 | P190: 2.249185268 | Q190: 1.89944884 | R190: 2.459577215 | S190: 2.228980024 | T190: 1.21
A191: 2023-02-01 | B191: 0.84 | C191: 0.3632 | D191: 0.43 | E191: -0.06 | F191: 0.77 | G191: 1.26 | H191: 1.159 | I191: 0.15 | J191: 1.61 | K191: 2.158819108 | L191: 1.809503258 | M191: 2.088888619 | N191: 2.857960036 | O191: 2.411715501 | P191: 2.277525002 | Q191: 1.921463452 | R191: 2.46326658 | S191: 2.264866602 | T191: 1.2
A192: 2023-03-01 | B192: 0.71 | C192: 0.7384 | D192: 0.39 | E192: 0.05 | F192: 0.64 | G192: 0.82 | H192: 1.145 | I192: 0.32 | J192: 0.72 | K192: 2.174146724 | L192: 1.82286463 | M192: 2.097035285 | N192: 2.859389016 | O192: 2.42715048 | P192: 2.296200707 | Q192: 1.943464209 | R192: 2.471149033 | S192: 2.281173642 | T192: 1.2
A193: 2023-04-01 | B193: 0.61 | C193: 0.2282 | D193: 0.43 | E193: -0.95 | F193: 0.53 | G193: 1.49 | H193: 0.8666 | I193: 2.05 | J193: 1.3 | K193: 2.187409019 | L193: 1.827024407 | M193: 2.106052537 | N193: 2.83222482 | O193: 2.440014378 | P193: 2.330414098 | Q193: 1.96030627 | R193: 2.521807589 | S193: 2.310828899 | T193: 1.2
A194: 2023-05-01 | B194: 0.23 | C194: 0.2263 | D194: 0.2 | E194: -1.84 | F194: 0.36 | G194: 0.93 | H194: 0.3413 | I194: 0.56 | J194: 1.02 | K194: 2.19244006 | L194: 1.831158963 | M194: 2.110264642 | N194: 2.780111884 | O194: 2.44879843 | P194: 2.352086949 | Q194: 1.966996795 | R194: 2.535929711 | S194: 2.334399354 | T194: 1.2
A195: 2023-06-01 | B195: -0.08 | C195: 0.1233 | D195: -0.03 | E195: -1.93 | F195: -0.1 | G195: 0.11 | H195: 0.1588 | I195: 0.43 | J195: 0.29 | K195: 2.190686108 | L195: 1.833416782 | M195: 2.109631562 | N195: 2.726455724 | O195: 2.446349631 | P195: 2.354674245 | Q195: 1.970120386 | R195: 2.546834209 | S195: 2.341169112 | T195: 0.38
A196: 2023-07-01 | B196: 0.12 | C196: -0.0375 | D196: -0.14 | E196: -0.72 | F196: -0.09 | G196: 0.26 | H196: -0.0031 | I196: 0.48 | J196: 0.1 | K196: 2.193314931 | L196: 1.832729251 | M196: 2.106678078 | N196: 2.706825243 | O196: 2.444147917 | P196: 2.360796398 | Q196: 1.970059312 | R196: 2.559059013 | S196: 2.343510281 | T196: 0.78
A197: 2023-08-01 | B197: 0.23 | C197: -0.1534 | D197: -0.2 | E197: -0.14 | F197: 0.2 | G197: 0.58 | H197: 0.001 | I197: 0.82 | J197: 0.57 | K197: 2.198359556 | L197: 1.829917844 | M197: 2.102464722 | N197: 2.703035688 | O197: 2.449036212 | P197: 2.374489017 | Q197: 1.970079013 | R197: 2.580043297 | S197: 2.35686829 | T197: 0.78
A198: 2023-09-01 | B198: 0.26 | C198: 0.0944 | D198: 0.29 | E198: 0.37 | F198: 0.11 | G198: 0.04 | H198: 0.0577 | I198: 0.48 | J198: -0.16 | K198: 2.20407529 | L198: 1.831645287 | M198: 2.10856187 | N198: 2.71303692 | O198: 2.451730152 | P198: 2.375438812 | Q198: 1.971215748 | R198: 2.592427505 | S198: 2.353097301 | T198: 0.71
A199: 2023-10-01 | B199: 0.24 | C199: 0.27 | D199: 0.3 | E199: 0.5 | F199: 0.12 | G199: 0.32 | H199: 0.17 | I199: 0.71 | J199: 0.23 | K199: =K198*(1+B199/100) -> 2.209365071 | L199: =L198*(1+C199/100) -> 1.836590729 | M199: 2.114887555 | N199: 2.726602104 | O199: 2.454672228 | P199: 2.383040216 | Q199: 1.974566815 | R199: 2.61083374 | S199: 2.358509424 | T199: 0.76
A200: 2023-11-01 | B200: 0.28 | C200: 0.14 | D200: 0.43 | E200: 0.59 | F200: 0.1 | G200: 0.08 | H200: 0.6 | I200: 0.79 | J200: -0.23 | K200: 2.215551293 | L200: 1.839161956 | M200: 2.123981572 | N200: 2.742689057 | O200: 2.457126901 | P200: 2.384946649 | Q200: 1.986414216 | R200: 2.631459327 | S200: 2.353084853 | T200: 0.76
A201: 2023-12-01 | B201: 0.56 | C201: 0.35 | D201: 0.38 | E201: 0.74 | F201: 0.55 | G201: 0.35 | H201: 10.99 | I201: 0.87 | J201: 0.27 | K201: 2.227958381 | L201: 1.845599023 | M201: 2.132052702 | N201: 2.762984956 | O201: 2.470641099 | P201: 2.393293962 | Q201: 2.204721138 | R201: 2.654353023 | S201: 2.359438182 | T201: 0.76
A202: 2024-01-01 | B202: 0.42 | C202: 1.25 | D202: 0.46 | E202: 0.07 | F202: 0.57 | G202: 0.83 | H202: 0.15 | I202: 0.4 | J202: 0.81 | K202: 2.237315806 | L202: 1.868669011 | M202: 2.141860144 | N202: 2.764919045 | O202: 2.484723753 | P202: 2.413158302 | Q202: 2.20802822 | R202: 2.664970435 | S202: 2.378549631 | T202: 0.76
A203: 2024-02-01 | B203: 0.83 | C203: 0.29 | D203: 0.46 | E203: -0.52 | F203: 0.81 | G203: 0.65 | H203: 0.3 | I203: 0.36 | J203: 0.62 | K203: 2.255885527 | L203: 1.874088151 | M203: 2.151712701 | N203: 2.750541466 | O203: 2.504850015 | P203: 2.428843831 | Q203: 2.214652305 | R203: 2.674564329 | S203: 2.393296639 | T203: 0.76
A204: 2024-03-01 | B204: 0.16 | C204: 0.16 | D204: 0.26 | E204: -0.47 | F204: 0.19 | G204: 0.43 | H204: 0.15 | I204: 0.28 | J204: 0.32 | K204: 2.259494944 | L204: 1.877086692 | M204: 2.157307154 | N204: 2.737613921 | O204: 2.50960923 | P204: 2.439287859 | Q204: 2.217974283 | R204: 2.682053109 | S204: 2.400955188 | T204: 0.77
A205: 2024-04-01 | B205: 0.38 | C205: 0.51 | D205: 0.33 | E205: 0.31 | F205: 0.37 | G205: 1.16 | H205: 2.53 | I205: 0.84 | J205: 1.08 | K205: =K204*(1+B205/100) -> 2.268081025 | L205: 1.886659834 | M205: 2.164426267 | N205: 2.746100525 | O205: 2.518894784 | P205: 2.467583598 | Q205: 2.274089033 | R205: 2.704582355 | S205: 2.426885504 | T205: 0.76
A206: 2024-05-01 | B206: 0.46 | C206: 0.25 | D206: 0.09 | E206: 0.89 | F206: 0.46 | G206: 0.69 | H206: 0.01 | I206: 0.65 | J206: 0.77 | K206: 2.278514197 | L206: 1.891376483 | M206: 2.166374251 | N206: 2.770540819 | O206: 2.5304817 | P206: 2.484609925 | Q206: 2.274316441 | R206: 2.72216214 | S206: 2.445572522 | T206: 0.77
A207: 2024-06-01 | B207: 0.21 | C207: 0.14 | D207: 0.26 | E207: 0.81 | F207: 0.25 | G207: 0.54 | H207: 0.18 | I207: 0.72 | J207: 0.54 | K207: 2.283299077 | L207: 1.894024411 | M207: 2.172006824 | N207: 2.7929822 | O207: 2.536807905 | P207: 2.498026819 | Q207: 2.278410211 | R207: 2.741761707 | S207: 2.458778614 | T207: 0.37
A208: 2024-07-01 | B208: 0.38 | C208: 0.16 | D208: 0.26 | E208: -0.47 | F208: 0.19 | G208: 0.43 | H208: 0.15 | I208: 0.28 | J208: 0.32 | K208: =K207*(1+B208/100) -> 2.291975614 | L208: =L207*(1+C208/100) -> 1.89705485 | M208: =M207*(1+D208/100) -> 2.177654042 | N208: =N207*(1+E208/100) -> 2.779855184 | O208: =O207*(1+F208/100) -> 2.54162784 | P208: =P207*(1+G208/100) -> 2.508768334 | Q208: =Q207*(1+H208/100) -> 2.281827826 | R208: =R207*(1+I208/100) -> 2.74943864 | S208: =S207*(1+J208/100) -> 2.466646706 | T208: 0.77
A209: 2024-08-01 | B209: -0.02 | C209: 0.04 | D209: 0.18 | E209: 0.29 | F209: -0.14 | G209: 0.25 | H209: 0.49 | I209: 0.6 | J209: 0.14 | K209: 2.291517218 | L209: 1.897813672 | M209: 2.181573819 | N209: 2.787916764 | O209: 2.538069561 | P209: 2.515040255 | Q209: 2.293008783 | R209: 2.765935272 | S209: 2.470100011 | T209: 0.58
A210: 2024-09-01 | B210: 0.44 | C210: 0.25 | D210: 0.18 | E210: 0.62 | F210: 0.48 | G210: 0.46 | H210: -0.05 | I210: 0.75 | J210: 0.49 | K210: 2.301599894 | L210: 1.902558206 | M210: 2.185500652 | N210: 2.805201847 | O210: 2.550252295 | P210: 2.52660944 | Q210: 2.291862278 | R210: 2.786679787 | S210: 2.482203501 | T210: 0.58
... 2 more rows

Sheet tab 16
A4: Tabela 16 - Índices de preços - Expectativas de mercado
A6: Ano | B6: IPCA | C6: IGP-M
A7: 2023 | B7: 0.0446 | C7: -0.0336
A8: 2024 | B8: 0.043638 | C8: 0.039774
A9: Fonte: BACEN
A10: Caderno de Informação da Saúde Suplementar - dezembro/2024
A11: Notas: 1. 2023, Projeções - Sistema de Expectativas de Mercado, 27/12/2023 (IGP-M) e 29/12/2023 (IPCA).
A12: 2. 2024, Projeções - Sistema de Expectativas de Mercado, 30/09/2024.
